Local authority department which incurred the expenditure,Service Division,Cost Centre,Summary of the Purpose of Expenditure,Expense Type,Expense Code,Detailed Expense Type,Date of Transaction,Transaction Number,Beneficiary,Merchant Category Number,Merchant Category,Gross Amount,VAT,Net Amount
Regeneration and Local Services,Economic Development and Housing,030705,Visit County Durham,Supplies and Services,304999,Equipment and Materials,01-Sep-2018,000007780737973,MAILCHIMP MONTHLY,5968,Misc equipment tools and materials,222.20,37.03,185.17
Children and Young Peoples Services,"Head of Early Help, Inclusion and Vulnerable Children",085954,Walworth,Supplies and Services,324117,Provisions E324,01-Sep-2018,000007780737981,TESCO STORES 6329,5411,Catering costs - provisions,129.40,0.00,129.40
Regeneration and Local Services,Economic Development and Housing,030699,Business Growth and Innovation General,Supplies and Services,304999,Equipment and Materials,01-Sep-2018,000007780737985,LINKEDIN-404 2441944,5968,Misc equipment tools and materials,19.20,0.00,19.20
Children and Young Peoples Services,Head of Childrens Social Care,085341,High Etherley Satelite Home,Supplies and Services,324117,Provisions E324,01-Sep-2018,000007780738251,TESCO STORES 6329,5411,Catering costs - provisions,29.92,0.00,29.92
Children and Young Peoples Services,Head of Childrens Social Care,085341,High Etherley Satelite Home,Supplies and Services,324117,Provisions E324,01-Sep-2018,000007780738255,TESCO STORES 6329,5411,Catering costs - provisions,7.00,0.00,7.00
Regeneration and Local Services,Culture & Sport,054813,Gala Theatre - Technical,Supplies and Services,304259,Equipment and Materials,01-Sep-2018,000007780738267,Prime Video,5735,Equipment-purchase and rental,2.49,0.00,2.49
Children and Young Peoples Services,"Head of Early Help, Inclusion and Vulnerable Children",085954,Walworth,Supplies and Services,304259,Equipment and Materials,01-Sep-2018,000007780738353,AMZN MKTP UK AMAZON.CO,5942,Equipment-purchase and rental,25.98,0.00,25.98
Resources,Digital and Customer Services,065461,Business Support,Supplies and Services,312011,Newspapers books and periodicals E312,02-Sep-2018,000007780737885,Amazon.co.uk,5969,Books-school library,29.75,0.00,29.75
Regeneration and Local Services,Economic Development and Housing,030699,Business Growth and Innovation General,Supplies and Services,312011,Newspapers books and periodicals E312,02-Sep-2018,000007780737987,FASTHOSTS INTERNET,4816,Books-school library,59.99,10.00,49.99
Children and Young Peoples Services,Head of Education and Skills,070169,Durham SSP,Supplies and Services,384199,Miscellaneous Expenses,02-Sep-2018,000007780738129,AMZN Digital,5735,Other hired and contracted services,63.49,0.00,63.49
Children and Young Peoples Services,Head of Childrens Social Care,085333,Coxhoe Satelite Home,Supplies and Services,312011,Newspapers books and periodicals E312,02-Sep-2018,000007780738163,PAYPAL PAYPALGIFTS,4816,Books-school library,20.00,0.00,20.00
Children and Young Peoples Services,Head of Childrens Social Care,085333,Coxhoe Satelite Home,Supplies and Services,312011,Newspapers books and periodicals E312,02-Sep-2018,000007780738165,AMZN Mktp UK,5942,Books-school library,28.99,0.00,28.99
Children and Young Peoples Services,Head of Childrens Social Care,085352,Tow Law CU,Supplies and Services,324117,Provisions E324,02-Sep-2018,000007780738379,LIDL UK CROOK,5411,Catering costs - provisions,25.12,0.00,25.12
Resources,Resources Management,069000,Resources Management,Supplies and Services,324117,Provisions E324,02-Sep-2018,000007780738439,CO-OP GROUP 010830,5411,Catering costs - provisions,3.72,0.00,3.72
Regeneration and Local Services,Culture & Sport,026591,Hardwick Park,Supplies and Services,332047,Printing Stationery and Gen Off Exps,02-Sep-2018,000007780738589,AMZN Mktp UK,5942,Stationery,69.42,0.00,69.42
Regeneration and Local Services,Culture & Sport,026591,Hardwick Park,Supplies and Services,332047,Printing Stationery and Gen Off Exps,02-Sep-2018,000007780738591,AMZN Mktp UK,5942,Stationery,31.98,0.00,31.98
Regeneration and Local Services,Culture & Sport,011204,Events,Supplies and Services,324117,Provisions E324,02-Sep-2018,000007780738597,TESCO STORES 2916,5411,Catering costs - provisions,61.34,0.00,61.34
Adult and Health Services,Head of Adults,055309,Peterlee Pathways,Supplies and Services,324117,Provisions E324,02-Sep-2018,000007780738763,SAINSBURYS SACAT2073,5411,Catering costs - provisions,3.00,0.00,3.00
Children and Young Peoples Services,Head of Education and Skills,071801,Selby Cottage Childcare Centre,Supplies and Services,324117,Provisions E324,03-Sep-2018,000007787344663,JR HOLLAND FOODSERVICE,5422,Catering costs - provisions,499.00,0.00,499.00
Children and Young Peoples Services,Head of Education and Skills,071801,Selby Cottage Childcare Centre,Supplies and Services,324117,Provisions E324,03-Sep-2018,000007787344667,ASDA GROCERIES ONLINE,5411,Catering costs - provisions,95.77,0.00,95.77
Children and Young Peoples Services,Head of Education and Skills,071801,Selby Cottage Childcare Centre,Supplies and Services,324117,Provisions E324,03-Sep-2018,000007787344669,ASDA GROCERIES ONLINE,5411,Catering costs - provisions,-0.35,0.00,-0.35
Children and Young Peoples Services,Head of Education and Skills,071801,Selby Cottage Childcare Centre,Supplies and Services,312011,Newspapers books and periodicals E312,03-Sep-2018,000007787344675,HOME BARGAINS,5251,Books-school library,79.08,0.00,79.08
Children and Young Peoples Services,Head of Education and Skills,078411,16-19 Education & Training,Supplies and Services,304259,Equipment and Materials,03-Sep-2018,000007787344735,WWW.DURHAM.GOV.UK,9399,Equipment-purchase and rental,12.00,0.00,12.00
Regeneration and Local Services,Direct Services,010383,C&G - South Street Cleansing,Supplies and Services,304403,Equipment and Materials,03-Sep-2018,000007787344781,DECO TROPHIES & ENGRAV,5999,Other consumables,15.00,2.50,12.50
Children and Young Peoples Services,Head of Childrens Social Care,085342,9 Cedar Drive Aycliffe,Supplies and Services,324117,Provisions E324,03-Sep-2018,000007787344787,TESCO STORES 2916,5411,Catering costs - provisions,26.86,0.00,26.86
Children and Young Peoples Services,Head of Childrens Social Care,085342,9 Cedar Drive Aycliffe,Supplies and Services,324117,Provisions E324,03-Sep-2018,000007787344789,TESCO STORES 2916,5411,Catering costs - provisions,22.00,0.00,22.00
Children and Young Peoples Services,Head of Childrens Social Care,085342,9 Cedar Drive Aycliffe,Supplies and Services,304999,Equipment and Materials,03-Sep-2018,000007787344795,SUPERDRUG STORES PLC,5912,Misc equipment tools and materials,13.38,0.00,13.38
Regeneration and Local Services,Economic Development and Housing,030699,Business Growth and Innovation General,Supplies and Services,304403,Equipment and Materials,03-Sep-2018,000007787344823,ADOBE CREATIVE CLOUD,5734,Other consumables,49.94,8.32,41.62
Children and Young Peoples Services,Head of Childrens Social Care,085400,Head Of Childrens Services Manager,Supplies and Services,336005,Advertising E336,03-Sep-2018,000007787344897,WWW.SPECLE.NET,5045,Advertising other than for staff,54.00,9.00,45.00
Regeneration and Local Services,Direct Services,021242,Catering - County Hall,Supplies and Services,324117,Provisions E324,03-Sep-2018,000007787344903,WWW.ADELIEFOODS.CO.UK,5499,Catering costs - provisions,352.99,0.00,352.99
Regeneration and Local Services,Direct Services,021242,Catering - County Hall,Supplies and Services,324117,Provisions E324,03-Sep-2018,000007787344909,WWW.ADELIEFOODS.CO.UK,5499,Catering costs - provisions,182.84,0.00,182.84
Regeneration and Local Services,Direct Services,021242,Catering - County Hall,Supplies and Services,324117,Provisions E324,03-Sep-2018,000007787344911,WWW.ADELIEFOODS.CO.UK,5499,Catering costs - provisions,124.98,0.00,124.98
Regeneration and Local Services,Direct Services,021242,Catering - County Hall,Supplies and Services,324117,Provisions E324,03-Sep-2018,000007787344913,WWW.ADELIEFOODS.CO.UK,5499,Catering costs - provisions,96.00,0.00,96.00
Regeneration and Local Services,Direct Services,021242,Catering - County Hall,Supplies and Services,324117,Provisions E324,03-Sep-2018,000007787344917,FREEMAN CATERING BUTCH,5422,Catering costs - provisions,221.87,0.00,221.87
Regeneration and Local Services,Culture & Sport,054233,Bishop Auckland Town Hall Library,Supplies and Services,312011,Newspapers books and periodicals E312,03-Sep-2018,000007787344931,Amazon.co.uk,5969,Books-school library,24.46,0.00,24.46
Regeneration and Local Services,Culture & Sport,054233,Bishop Auckland Town Hall Library,Supplies and Services,324117,Provisions E324,03-Sep-2018,000007787344933,HERON FOODS LTD,5499,Catering costs - provisions,2.18,0.00,2.18
Regeneration and Local Services,Economic Development and Housing,030544,Rural Employability - Client Engagement,Supplies and Services,324117,Provisions E324,03-Sep-2018,000007787344937,ASDA STORES LTD 4313,5411,Catering costs - provisions,42.05,0.00,42.05
Regeneration and Local Services,Direct Services,010367,C&G - South Grounds Maintenance,Supplies and Services,304221,Equipment and Materials,03-Sep-2018,000007787344945,JEWSON LTD,5211,Direct materials,24.31,4.05,20.26
Children and Young Peoples Services,Head of Childrens Social Care,085362,LAC & Permanence Team 2,Supplies and Services,308011,Furniture,03-Sep-2018,000007787344991,ASDA GEORGE COM LEEDS,5411,Furniture repair and replacement,125.95,0.00,125.95
Children and Young Peoples Services,Head of Childrens Social Care,085334,West Rainton Satelite Home,Supplies and Services,324117,Provisions E324,03-Sep-2018,000007787345071,TESCO STORES 2371,5411,Catering costs - provisions,40.89,0.00,40.89
Children and Young Peoples Services,Head of Childrens Social Care,085334,West Rainton Satelite Home,Supplies and Services,324117,Provisions E324,03-Sep-2018,000007787345077,TESCO STORES 2371,5411,Catering costs - provisions,10.50,1.75,8.75
Children and Young Peoples Services,Head of Childrens Social Care,085334,West Rainton Satelite Home,Supplies and Services,324117,Provisions E324,03-Sep-2018,000007787345079,TESCO STORES 2371,5411,Catering costs - provisions,6.50,1.08,5.42
Children and Young Peoples Services,Head of Education and Skills,071732,Dean Bank Childcare,Supplies and Services,324117,Provisions E324,03-Sep-2018,000007787345111,TESCO STORES 2916,5411,Catering costs - provisions,49.66,0.00,49.66
Regeneration and Local Services,Culture & Sport,054813,Gala Theatre - Technical,Supplies and Services,304259,Equipment and Materials,03-Sep-2018,000007787345121,SP CHAMBERLAIN MUSIC,5733,Equipment-purchase and rental,27.15,0.00,27.15
Regeneration and Local Services,Culture & Sport,054813,Gala Theatre - Technical,Supplies and Services,304221,Equipment and Materials,03-Sep-2018,000007787345127,B & Q 1343,5211,Direct materials,29.61,0.00,29.61
Regeneration and Local Services,Culture & Sport,011060,Hardwick Park Catering,Supplies and Services,324117,Provisions E324,03-Sep-2018,000007787345237,FREEMAN CATERING BUTCH,5422,Catering costs - provisions,41.76,0.00,41.76
Regeneration and Local Services,Culture & Sport,011060,Hardwick Park Catering,Supplies and Services,324117,Provisions E324,03-Sep-2018,000007787345239,FREEMAN CATERING BUTCH,5422,Catering costs - provisions,22.35,0.00,22.35
Regeneration and Local Services,Culture & Sport,011060,Hardwick Park Catering,Supplies and Services,324117,Provisions E324,03-Sep-2018,000007787345243,JR HOLLAND FOODSERVICE,5422,Catering costs - provisions,27.88,0.00,27.88
Regeneration and Local Services,Direct Services,021234,Catering - Locomotion,Supplies and Services,324117,Provisions E324,03-Sep-2018,000007787345281,WWW.ADELIEFOODS.CO.UK,5499,Catering costs - provisions,34.64,0.00,34.64
Children and Young Peoples Services,"Head of Early Help, Inclusion and Vulnerable Children",085957,Secure Management,Supplies and Services,372009,Subscriptions E372,03-Sep-2018,000007787345287,Amazon Prime,5968,Subscriptions 372009,79.00,0.00,79.00
Children and Young Peoples Services,"Head of Early Help, Inclusion and Vulnerable Children",085957,Secure Management,Supplies and Services,304999,Equipment and Materials,03-Sep-2018,000007787345293,Amazon Prime,5968,Misc equipment tools and materials,7.99,0.00,7.99
Children and Young Peoples Services,"Head of Early Help, Inclusion and Vulnerable Children",085957,Secure Management,Supplies and Services,304999,Equipment and Materials,03-Sep-2018,000007787345295,Amazon Prime,5968,Misc equipment tools and materials,-7.99,0.00,-7.99
Regeneration and Local Services,Direct Services,010525,Catering - Green Lane,Supplies and Services,324117,Provisions E324,03-Sep-2018,000007787345329,WWW.ADELIEFOODS.CO.UK,5499,Catering costs - provisions,33.04,0.00,33.04
Regeneration and Local Services,Direct Services,010525,Catering - Green Lane,Supplies and Services,324117,Provisions E324,03-Sep-2018,000007787345333,FREEMAN CATERING BUTCH,5422,Catering costs - provisions,32.52,0.00,32.52
Regeneration and Local Services,Direct Services,010525,Catering - Green Lane,Supplies and Services,324117,Provisions E324,03-Sep-2018,000007787345335,JR HOLLAND FOODSERVICE,5422,Catering costs - provisions,16.36,0.00,16.36
Regeneration and Local Services,Direct Services,010525,Catering - Green Lane,Supplies and Services,324117,Provisions E324,03-Sep-2018,000007787345355,JR HOLLAND FOODSERVICE,5422,Catering costs - provisions,-16.36,0.00,-16.36
Children and Young Peoples Services,Head of Childrens Social Care,085551,Short Break Services-Park Hse Sher,Supplies and Services,324117,Provisions E324,03-Sep-2018,000007787345367,ALDI 12 774,5411,Catering costs - provisions,65.32,0.00,65.32
Children and Young Peoples Services,Head of Childrens Social Care,085333,Coxhoe Satelite Home,Supplies and Services,324117,Provisions E324,03-Sep-2018,000007787345473,TESCO STORES 2916,5411,Catering costs - provisions,51.95,0.00,51.95
Children and Young Peoples Services,Head of Childrens Social Care,085333,Coxhoe Satelite Home,Supplies and Services,324117,Provisions E324,03-Sep-2018,000007787345481,TESCO STORES 2916,5411,Catering costs - provisions,34.75,0.00,34.75
Children and Young Peoples Services,Head of Childrens Social Care,085333,Coxhoe Satelite Home,Supplies and Services,324117,Provisions E324,03-Sep-2018,000007787345485,TESCO STORES 2916,5411,Catering costs - provisions,18.30,0.00,18.30
Regeneration and Local Services,Direct Services,030691,"Catering - Durham Dales Centre			",Supplies and Services,324117,Provisions E324,03-Sep-2018,000007787345521,FREEMAN CATERING BUTCH,5422,Catering costs - provisions,133.38,0.00,133.38
Regeneration and Local Services,Direct Services,030691,"Catering - Durham Dales Centre			",Supplies and Services,324117,Provisions E324,03-Sep-2018,000007787345525,FREEMAN CATERING BUTCH,5422,Catering costs - provisions,78.58,0.00,78.58
Regeneration and Local Services,Direct Services,030691,"Catering - Durham Dales Centre			",Supplies and Services,324117,Provisions E324,03-Sep-2018,000007787345529,JR HOLLAND FOODSERVICE,5422,Catering costs - provisions,-6.48,0.00,-6.48
Regeneration and Local Services,Direct Services,030691,"Catering - Durham Dales Centre			",Supplies and Services,324117,Provisions E324,03-Sep-2018,000007787345533,JR HOLLAND FOODSERVICE,5422,Catering costs - provisions,-7.59,0.00,-7.59
Adult and Health Services,Head of Adults,055643,Hawthorn House LD Respite Unit,Supplies and Services,324117,Provisions E324,03-Sep-2018,000007787345535,FREEMAN CATERING BUTCH,5422,Catering costs - provisions,37.04,0.00,37.04
Children and Young Peoples Services,"Head of Early Help, Inclusion and Vulnerable Children",074000,TTF-Attachment and Results,Supplies and Services,324117,Provisions E324,03-Sep-2018,000007787345603,WILKO.COM,5399,Catering costs - provisions,52.00,8.67,43.33
Children and Young Peoples Services,"Head of Early Help, Inclusion and Vulnerable Children",074000,TTF-Attachment and Results,Supplies and Services,324117,Provisions E324,03-Sep-2018,000007787345607,ASDA GEORGE COM LEEDS,5411,Catering costs - provisions,28.92,4.82,24.10
Children and Young Peoples Services,"Head of Early Help, Inclusion and Vulnerable Children",074000,TTF-Attachment and Results,Supplies and Services,324117,Provisions E324,03-Sep-2018,000007787345607 - 1,ASDA GEORGE COM LEEDS,5411,Catering costs - provisions,102.03,,102.03
Resources,Digital and Customer Services,069010,Administration,Employees,040149,Recruitment Instruction and Training,03-Sep-2018,000007787345651,ASSOC OF ACCOUNTING TE,8931,Training-all costs,94.00,0.00,94.00
Resources,Digital and Customer Services,069010,Administration,Third Party Payments 4THIRD,430100,Rendered by Private Contractors,03-Sep-2018,000007787345655,EB SAVE TIME SAVE MON,7399,Payments to sub-contractors,64.18,10.70,53.48
Resources,Digital and Customer Services,069010,Administration,Supplies and Services,342033,Computers and Communications,03-Sep-2018,000007787345661,ELCOMPONENT LTD,5964,Computer hardware,475.20,79.20,396.00
Resources,Digital and Customer Services,069010,Administration,Supplies and Services,304259,Equipment and Materials,03-Sep-2018,000007787345663,WWW.CHAS.CO.UK,9399,Equipment-purchase and rental,754.80,125.80,629.00
Regeneration and Local Services,Economic Development and Housing,031500,Housing Solutions - Core Team,Supplies and Services,352001,Conference Expenses,03-Sep-2018,000007787345667,TRAVELODGE,3615,Conferencesseminars fees etc,39.00,6.50,32.50
Children and Young Peoples Services,Head of Education and Skills,071903,EYDCP-Sustainability EDS,Employees,040149,Recruitment Instruction and Training,03-Sep-2018,000007787345675,WWW.KATHYBRODIE.COM,8999,Training-all costs,15.00,0.00,15.00
Regeneration and Local Services,Culture & Sport,011060,Hardwick Park Catering,Supplies and Services,304083,Equipment and Materials,03-Sep-2018,000007787345687,AMZN Mktp UK,5942,Catering equipment,60.95,10.16,50.79
Regeneration and Local Services,Direct Services,021324,Catering - Meadowfield,Supplies and Services,324117,Provisions E324,03-Sep-2018,000007787345691,FREEMAN CATERING BUTCH,5422,Catering costs - provisions,76.61,0.00,76.61
Resources,Digital and Customer Services,069010,Administration,Transport,235057,Public Transport,03-Sep-2018,000007787345781,Oyster Online,4112,Staff travelling,50.00,0.00,50.00
Regeneration and Local Services,Direct Services,021235,Catering - Wharton Park,Supplies and Services,324117,Provisions E324,03-Sep-2018,000007787345787,WWW.ADELIEFOODS.CO.UK,5499,Catering costs - provisions,60.02,0.00,60.02
Regeneration and Local Services,Direct Services,021235,Catering - Wharton Park,Supplies and Services,324117,Provisions E324,03-Sep-2018,000007787345791,WWW.ADELIEFOODS.CO.UK,5499,Catering costs - provisions,57.24,0.00,57.24
Adult and Health Services,Head of Adults,055309,Peterlee Pathways,Supplies and Services,324117,Provisions E324,03-Sep-2018,000007787345803,LIDL UK PETERLEE,5411,Catering costs - provisions,5.92,0.00,5.92
Children and Young Peoples Services,Head of Childrens Social Care,085517,Supporting Solutions Service (Edge of Care),Supplies and Services,384956,Miscellaneous Expenses,03-Sep-2018,000007789876473,TVLICENSING.CO.UK,7392,Licences,150.50,0.00,150.50
Regeneration and Local Services,Culture & Sport,054812,Gala Theatre - Catering etc,Supplies and Services,324117,Provisions E324,03-Sep-2018,000007789876505,BATLEYS PERTH,5300,Catering costs - provisions,84.96,14.16,70.80
Regeneration and Local Services,Culture & Sport,054812,Gala Theatre - Catering etc,Supplies and Services,324117,Provisions E324,03-Sep-2018,000007789876505 - 1,BATLEYS PERTH,5300,Catering costs - provisions,39.39,,39.39
Regeneration and Local Services,Economic Development and Housing,031576,B& B - Temp Accom,Supplies and Services,364320,Grants to Voluntary Organisations,03-Sep-2018,000007789876561,PREMIER INN,3811,Accommodation assistance,154.00,25.67,128.33
Regeneration and Local Services,Economic Development and Housing,031500,Housing Solutions - Core Team,Employees,040149,Recruitment Instruction and Training,03-Sep-2018,000007789876703,PREMIER INN,3811,Training-all costs,67.00,11.17,55.83
Children and Young Peoples Services,Childrens Services Operational Support,052986,CYPS - Locality and Operational Support,Supplies and Services,304259,Equipment and Materials,03-Sep-2018,000007789876997,HALFORDS ON LINE,5940,Equipment-purchase and rental,53.46,8.91,44.55
Children and Young Peoples Services,Childrens Services Operational Support,052986,CYPS - Locality and Operational Support,Supplies and Services,304259,Equipment and Materials,03-Sep-2018,000007789876997 - 1,HALFORDS ON LINE,5940,Equipment-purchase and rental,133.64,,133.64
Resources,Digital and Customer Services,065461,Business Support,Supplies and Services,352001,Conference Expenses,04-Sep-2018,000007789876289,BITEABLE PTY LTD,7392,Conferencesseminars fees etc,22.63,0.00,22.63
Children and Young Peoples Services,Head of Education and Skills,078411,16-19 Education & Training,Supplies and Services,328041,Clothing uniforms and laundry E328,04-Sep-2018,000007789876315,FLORENCE ROBY LTD,5137,Clothing uniforms and laundry,92.00,15.33,76.67
Children and Young Peoples Services,Head of Childrens Social Care,085342,9 Cedar Drive Aycliffe,Supplies and Services,348037,Subsistence E348,04-Sep-2018,000007789876377,COSTA COFFEE,5814,Subsistence,8.95,0.00,8.95
Children and Young Peoples Services,Head of Childrens Social Care,085342,9 Cedar Drive Aycliffe,Supplies and Services,328041,Clothing uniforms and laundry E328,04-Sep-2018,000007789876381,NEW LOOK 1996,5621,Clothing uniforms and laundry,17.03,0.00,17.03
Children and Young Peoples Services,"Head of Early Help, Inclusion and Vulnerable Children",085962,Aycliffe Secure - Durham,Supplies and Services,308013,Furniture,04-Sep-2018,000007789876383,AMZN Mktp UK,5942,Curtains and carpets,13.60,0.00,13.60
Children and Young Peoples Services,"Head of Early Help, Inclusion and Vulnerable Children",085965,Barnard,Supplies and Services,328041,Clothing uniforms and laundry E328,04-Sep-2018,000007789876387,FOOTASYLUM PLC,5941,Clothing uniforms and laundry,38.94,0.00,38.94
Children and Young Peoples Services,"Head of Early Help, Inclusion and Vulnerable Children",085962,Aycliffe Secure - Durham,Supplies and Services,324117,Provisions E324,04-Sep-2018,000007789876389,TESCO STORES 6329,5411,Catering costs - provisions,84.77,0.00,84.77
Children and Young Peoples Services,"Head of Early Help, Inclusion and Vulnerable Children",085965,Barnard,Supplies and Services,328041,Clothing uniforms and laundry E328,04-Sep-2018,000007789876391,VERY,5964,Clothing uniforms and laundry,42.99,0.00,42.99
Children and Young Peoples Services,"Head of Early Help, Inclusion and Vulnerable Children",085962,Aycliffe Secure - Durham,Supplies and Services,328041,Clothing uniforms and laundry E328,04-Sep-2018,000007789876393,VERY,5964,Clothing uniforms and laundry,38.99,0.00,38.99
Children and Young Peoples Services,Head of Childrens Social Care,085332,Middlestone Moor CU,Supplies and Services,324117,Provisions E324,04-Sep-2018,000007789876397,ASDA SUPERSTORE 4987,5411,Catering costs - provisions,31.01,5.17,25.84
Regeneration and Local Services,Economic Development and Housing,030699,Business Growth and Innovation General,Supplies and Services,304403,Equipment and Materials,04-Sep-2018,000007789876403,MEETEDGAR MONTHLY,5734,Other consumables,38.25,0.00,38.25
Regeneration and Local Services,Economic Development and Housing,030699,Business Growth and Innovation General,Supplies and Services,312011,Newspapers books and periodicals E312,04-Sep-2018,000007789876407,FASTHOSTS INTERNET,4816,Books-school library,6.34,1.06,5.28
Regeneration and Local Services,Direct Services,010367,C&G - South Grounds Maintenance,Supplies and Services,304221,Equipment and Materials,04-Sep-2018,000007789876447,SCREWFIX PETERLEE,5211,Direct materials,33.10,5.52,27.58
Regeneration and Local Services,Direct Services,021242,Catering - County Hall,Supplies and Services,324117,Provisions E324,04-Sep-2018,000007789876479,JR HOLLAND FOODSERVICE,5422,Catering costs - provisions,21.29,0.00,21.29
Regeneration and Local Services,Direct Services,021242,Catering - County Hall,Supplies and Services,324117,Provisions E324,04-Sep-2018,000007789876481,JR HOLLAND FOODSERVICE,5422,Catering costs - provisions,6.90,0.00,6.90
Regeneration and Local Services,Direct Services,021242,Catering - County Hall,Supplies and Services,324117,Provisions E324,04-Sep-2018,000007789876485,JR HOLLAND FOODSERVICE,5422,Catering costs - provisions,6.60,0.00,6.60
Children and Young Peoples Services,Head of Education and Skills,070169,Durham SSP,Supplies and Services,384199,Miscellaneous Expenses,04-Sep-2018,000007789876487,AMZN Mktp UK,5942,Other hired and contracted services,19.25,0.00,19.25
Children and Young Peoples Services,Head of Education and Skills,070169,Durham SSP,Supplies and Services,384199,Miscellaneous Expenses,04-Sep-2018,000007789876491,LIKETY SPLIT,5812,Other hired and contracted services,22.80,3.80,19.00
Children and Young Peoples Services,Head of Education and Skills,070169,Durham SSP,Supplies and Services,384199,Miscellaneous Expenses,04-Sep-2018,000007789876493,WH SMITH,5994,Other hired and contracted services,6.99,0.00,6.99
Regeneration and Local Services,Direct Services,010367,C&G - South Grounds Maintenance,Supplies and Services,304221,Equipment and Materials,04-Sep-2018,000007789876495,JEWSON LTD,5211,Direct materials,19.03,3.17,15.86
Regeneration and Local Services,Culture & Sport,054812,Gala Theatre - Catering etc,Supplies and Services,324117,Provisions E324,04-Sep-2018,000007789876499,JR HOLLAND FOODSERVICE,5422,Catering costs - provisions,27.08,0.00,27.08
Children and Young Peoples Services,Head of Childrens Social Care,085362,LAC & Permanence Team 2,Supplies and Services,384871,Miscellaneous Expenses,04-Sep-2018,000007789876533,DCC Theatres,9399,Training-other activities,54.00,0.00,54.00
Children and Young Peoples Services,Childrens Services Operational Support,052986,CYPS - Locality and Operational Support,Supplies and Services,304259,Equipment and Materials,04-Sep-2018,000007789876565,PAYPAL MRZ GLOBAL,5732,Equipment-purchase and rental,23.44,0.00,23.44
Regeneration and Local Services,Direct Services,010367,C&G - South Grounds Maintenance,Employees,040149,Recruitment Instruction and Training,04-Sep-2018,000007789876579,LORD TECHNICAL LIMITED,8999,Training-all costs,220.64,0.00,220.64
Children and Young Peoples Services,Head of Education and Skills,071732,Dean Bank Childcare,Supplies and Services,312011,Newspapers books and periodicals E312,04-Sep-2018,000007789876589,Amazon.co.uk,5969,Books-school library,33.32,0.00,33.32
Regeneration and Local Services,Culture & Sport,054813,Gala Theatre - Technical,Supplies and Services,312011,Newspapers books and periodicals E312,04-Sep-2018,000007789876593,AMZN Mktp UK,5942,Books-school library,3.99,0.00,3.99
Regeneration and Local Services,Culture & Sport,054813,Gala Theatre - Technical,Supplies and Services,312011,Newspapers books and periodicals E312,04-Sep-2018,000007789876597,AMZN Mktp UK,5942,Books-school library,4.99,0.00,4.99
Regeneration and Local Services,Culture & Sport,054813,Gala Theatre - Technical,Supplies and Services,304221,Equipment and Materials,04-Sep-2018,000007789876599,SCREWFIX DIRECT,5211,Direct materials,8.25,0.00,8.25
Regeneration and Local Services,Economic Development and Housing,031500,Housing Solutions - Core Team,Supplies and Services,352001,Conference Expenses,04-Sep-2018,000007789876645,TRAVELODGE,3615,Conferencesseminars fees etc,158.00,26.33,131.67
Regeneration and Local Services,Economic Development and Housing,031500,Housing Solutions - Core Team,Supplies and Services,352001,Conference Expenses,04-Sep-2018,000007789876649,TRAVELODGE,3615,Conferencesseminars fees etc,158.00,26.33,131.67
Regeneration and Local Services,Culture & Sport,011060,Hardwick Park Catering,Supplies and Services,324117,Provisions E324,04-Sep-2018,000007789876663,JR HOLLAND FOODSERVICE,5422,Catering costs - provisions,49.21,0.00,49.21
Regeneration and Local Services,Culture & Sport,054815,Gala Theatre Stage School,Supplies and Services,384999,Miscellaneous Expenses,04-Sep-2018,000007789876673,OPENAIRTHEATRE.COM,7922,Other expenses,59.00,0.00,59.00
Regeneration and Local Services,Economic Development and Housing,030757,Interserve/Skills Support for the Unemployed,Employees,040149,Recruitment Instruction and Training,04-Sep-2018,000007789876677,NCS VUE CITB HS&E REV,8299,Training-all costs,483.00,0.00,483.00
Regeneration and Local Services,Economic Development and Housing,030757,Interserve/Skills Support for the Unemployed,Employees,040149,Recruitment Instruction and Training,04-Sep-2018,000007789876681,WWW.CSKILLS.ORG,8249,Training-all costs,36.00,6.00,30.00
Regeneration and Local Services,Economic Development and Housing,030757,Interserve/Skills Support for the Unemployed,Employees,040149,Recruitment Instruction and Training,04-Sep-2018,000007789876687,WWW.CSKILLS.ORG,8249,Training-all costs,36.00,6.00,30.00
Regeneration and Local Services,Direct Services,021234,Catering - Locomotion,Supplies and Services,324117,Provisions E324,04-Sep-2018,000007789876689,JR HOLLAND FOODSERVICE,5422,Catering costs - provisions,94.68,0.00,94.68
Regeneration and Local Services,Direct Services,021234,Catering - Locomotion,Supplies and Services,324117,Provisions E324,04-Sep-2018,000007789876697,JR HOLLAND FOODSERVICE,5422,Catering costs - provisions,9.66,0.00,9.66
Children and Young Peoples Services,"Head of Early Help, Inclusion and Vulnerable Children",085957,Secure Management,Supplies and Services,304259,Equipment and Materials,04-Sep-2018,000007789876705,ARGOS RETAIL GROUP,5310,Equipment-purchase and rental,179.88,0.00,179.88
Children and Young Peoples Services,"Head of Early Help, Inclusion and Vulnerable Children",085965,Barnard,Supplies and Services,328041,Clothing uniforms and laundry E328,04-Sep-2018,000007789876709,FOOTASYLUM PLC,5941,Clothing uniforms and laundry,48.94,0.00,48.94
Children and Young Peoples Services,Head of Childrens Social Care,085357,Bespoke Placements,Supplies and Services,364320,Grants to Voluntary Organisations,04-Sep-2018,000007789876717,Hotel on Booking.com,7011,Accommodation assistance,600.00,0.00,600.00
Transformation and Partnerships,Comms & Information Management,060131,County Records,Supplies and Services,312011,Newspapers books and periodicals E312,04-Sep-2018,000007789876727,BOOKDEPOSITORY.COM,5942,Books-school library,14.99,0.00,14.99
Transformation and Partnerships,Comms & Information Management,060131,County Records,Supplies and Services,304403,Equipment and Materials,04-Sep-2018,000007789876729,WWW.POPPYSHOP.ORG.UK,5947,Other consumables,79.96,13.33,66.63
Regeneration and Local Services,Culture & Sport,054819,Gala Theatre - Theatre,Supplies and Services,336005,Advertising E336,04-Sep-2018,000007789876731,PAYPAL BEERMATS4U,5169,Advertising other than for staff,14.40,0.00,14.40
Regeneration and Local Services,Culture & Sport,054819,Gala Theatre - Theatre,Supplies and Services,336005,Advertising E336,04-Sep-2018,000007789876735,PAYPAL BEERMATS4U,5169,Advertising other than for staff,105.60,0.00,105.60
Children and Young Peoples Services,Head of Childrens Social Care,085341,High Etherley Satelite Home,Transport,215995,Running Costs of Vehicles,04-Sep-2018,000007789876761,G W HOLMES & SONS,5541,Vehicle running expenses,45.50,0.00,45.50
Children and Young Peoples Services,Head of Childrens Social Care,085333,Coxhoe Satelite Home,Supplies and Services,304221,Equipment and Materials,04-Sep-2018,000007789876811,B & Q 1343,5211,Direct materials,52.23,0.00,52.23
Children and Young Peoples Services,Head of Childrens Social Care,085333,Coxhoe Satelite Home,Supplies and Services,328041,Clothing uniforms and laundry E328,04-Sep-2018,000007789876815,B & M RETAIL,5310,Clothing uniforms and laundry,77.80,0.00,77.80
Children and Young Peoples Services,Head of Childrens Social Care,085333,Coxhoe Satelite Home,Supplies and Services,324117,Provisions E324,04-Sep-2018,000007789876819,ALDI 12 774,5411,Catering costs - provisions,34.38,0.00,34.38
Regeneration and Local Services,Direct Services,030691,"Catering - Durham Dales Centre			",Supplies and Services,324117,Provisions E324,04-Sep-2018,000007789876869,JR HOLLAND FOODSERVICE,5422,Catering costs - provisions,125.55,0.00,125.55
Regeneration and Local Services,Direct Services,030691,"Catering - Durham Dales Centre			",Supplies and Services,324117,Provisions E324,04-Sep-2018,000007789876875,JR HOLLAND FOODSERVICE,5422,Catering costs - provisions,24.02,0.00,24.02
Adult and Health Services,Head of Adults,055643,Hawthorn House LD Respite Unit,Supplies and Services,324117,Provisions E324,04-Sep-2018,000007789876889,JR HOLLAND FOODSERVICE,5422,Catering costs - provisions,76.28,0.00,76.28
Adult and Health Services,Head of Adults,055643,Hawthorn House LD Respite Unit,Supplies and Services,324117,Provisions E324,04-Sep-2018,000007789876897,JR HOLLAND FOODSERVICE,5422,Catering costs - provisions,21.60,0.00,21.60
Children and Young Peoples Services,"Head of Early Help, Inclusion and Vulnerable Children",074000,TTF-Attachment and Results,Supplies and Services,312011,Newspapers books and periodicals E312,04-Sep-2018,000007789876931,AMZN Mktp UK,5942,Books-school library,15.56,2.59,12.97
Children and Young Peoples Services,"Head of Early Help, Inclusion and Vulnerable Children",074000,TTF-Attachment and Results,Supplies and Services,312011,Newspapers books and periodicals E312,04-Sep-2018,000007789876937,Amazon.co.uk,5969,Books-school library,32.29,5.38,26.91
Children and Young Peoples Services,"Head of Early Help, Inclusion and Vulnerable Children",074000,TTF-Attachment and Results,Supplies and Services,312011,Newspapers books and periodicals E312,04-Sep-2018,000007789876941,Amazon.co.uk,5969,Books-school library,23.99,4.00,19.99
Children and Young Peoples Services,"Head of Early Help, Inclusion and Vulnerable Children",074000,TTF-Attachment and Results,Supplies and Services,312011,Newspapers books and periodicals E312,04-Sep-2018,000007789876945,Amazon.co.uk,5969,Books-school library,23.99,4.00,19.99
Adult and Health Services,Head of Adults,055807,Newton Aycliffe Pathways,Supplies and Services,340001,Postages E340,04-Sep-2018,000007789877099,THE POST OFFICE,9402,Postages,8.04,0.00,8.04
Adult and Health Services,Head of Adults,055807,Newton Aycliffe Pathways,Supplies and Services,332047,Printing Stationery and Gen Off Exps,04-Sep-2018,000007789877101,YOUNGS NEWSAGE LTD 391,5411,Stationery,5.50,0.00,5.50
Regeneration and Local Services,Direct Services,021235,Catering - Wharton Park,Supplies and Services,324117,Provisions E324,04-Sep-2018,000007789877117,JR HOLLAND FOODSERVICE,5422,Catering costs - provisions,18.17,0.00,18.17
Adult and Health Services,Head of Adults,055309,Peterlee Pathways,Supplies and Services,304259,Equipment and Materials,04-Sep-2018,000007789877181,CURRYS SUPERSTORE CSS,5732,Equipment-purchase and rental,39.99,0.00,39.99
Children and Young Peoples Services,Head of Childrens Social Care,085363,LAC & Permanence Team 3,Supplies and Services,304259,Equipment and Materials,04-Sep-2018,000007789877185,WWW.DURHAM.GOV.UK,9399,Equipment-purchase and rental,24.00,0.00,24.00
Children and Young Peoples Services,Head of Childrens Social Care,085363,LAC & Permanence Team 3,Supplies and Services,304259,Equipment and Materials,04-Sep-2018,000007789877189,WWW.DURHAM.GOV.UK,9399,Equipment-purchase and rental,12.00,0.00,12.00
Transformation and Partnerships,Partnerships & Community Engagement Div.,060472,Syrian Vulnerable Persons Scheme,Supplies and Services,308011,Furniture,04-Sep-2018,000007789877213,SP TERRYS FABRICS,5691,Furniture repair and replacement,156.95,26.16,130.79
Transformation and Partnerships,Partnerships & Community Engagement Div.,060472,Syrian Vulnerable Persons Scheme,Supplies and Services,308011,Furniture,04-Sep-2018,000007789877217,WILKO DURHAM 426,5722,Furniture repair and replacement,112.00,18.67,93.33
Transformation and Partnerships,Partnerships & Community Engagement Div.,060472,Syrian Vulnerable Persons Scheme,Supplies and Services,308011,Furniture,04-Sep-2018,000007789877219,www.247blinds.co.uk,5714,Furniture repair and replacement,210.03,35.01,175.02
Children and Young Peoples Services,Head of Childrens Social Care,085333,Coxhoe Satelite Home,Supplies and Services,344033,Telephones,04-Sep-2018,000007793837953,PAYPAL MANITRADERS,4812,Telephones general-all costs,5.95,0.00,5.95
Children and Young Peoples Services,Head of Childrens Social Care,085333,Coxhoe Satelite Home,Supplies and Services,304259,Equipment and Materials,04-Sep-2018,000007793837955,PAYPAL JIANGRUIKUN,5732,Equipment-purchase and rental,55.87,0.00,55.87
Resources,Digital and Customer Services,065335,School Services - Implementations,Supplies and Services,304639,Equipment and Materials,04-Sep-2018,000007793838125,AMZN MKTP UK AMAZON.CO,5942,Technicians-supplies,22.08,3.68,18.40
Regeneration and Local Services,Economic Development and Housing,031500,Housing Solutions - Core Team,Employees,040149,Recruitment Instruction and Training,04-Sep-2018,000007793838139,PREMIER INN,3811,Training-all costs,227.50,37.92,189.58
Children and Young Peoples Services,Head of Childrens Social Care,085342,9 Cedar Drive Aycliffe,Supplies and Services,304259,Equipment and Materials,04-Sep-2018,000007798719599,FOOTASYLUM LTD,5941,Equipment-purchase and rental,69.97,0.00,69.97
Regeneration and Local Services,Direct Services,021242,Catering - County Hall,Supplies and Services,324117,Provisions E324,04-Sep-2018,000007798719725,BATLEYS PERTH,5300,Catering costs - provisions,157.44,26.24,131.20
Regeneration and Local Services,Direct Services,021242,Catering - County Hall,Supplies and Services,324117,Provisions E324,04-Sep-2018,000007798719725 - 1,BATLEYS PERTH,5300,Catering costs - provisions,90.35,,90.35
Regeneration and Local Services,Culture & Sport,011060,Hardwick Park Catering,Supplies and Services,324117,Provisions E324,04-Sep-2018,000007798720003,BATLEYS PERTH,5300,Catering costs - provisions,419.64,69.94,349.70
Regeneration and Local Services,Culture & Sport,011060,Hardwick Park Catering,Supplies and Services,324117,Provisions E324,04-Sep-2018,000007798720003 - 1,BATLEYS PERTH,5300,Catering costs - provisions,213.64,,213.64
Regeneration and Local Services,Direct Services,021234,Catering - Locomotion,Supplies and Services,324117,Provisions E324,04-Sep-2018,000007798720033,BATLEYS PERTH,5300,Catering costs - provisions,208.86,34.81,174.05
Regeneration and Local Services,Direct Services,021234,Catering - Locomotion,Supplies and Services,324117,Provisions E324,04-Sep-2018,000007798720033 - 1,BATLEYS PERTH,5300,Catering costs - provisions,25.86,,25.86
Regeneration and Local Services,Direct Services,021324,Catering - Meadowfield,Supplies and Services,324117,Provisions E324,04-Sep-2018,000007798720361,BATLEYS PERTH,5300,Catering costs - provisions,39.36,6.56,32.80
Regeneration and Local Services,Direct Services,021324,Catering - Meadowfield,Supplies and Services,324117,Provisions E324,04-Sep-2018,000007798720361 - 1,BATLEYS PERTH,5300,Catering costs - provisions,71.17,,71.17
Regeneration and Local Services,Direct Services,030691,"Catering - Durham Dales Centre			",Supplies and Services,324001,Provisions E324,04-Sep-2018,000007798720635,LANCHESTER WINE CE,5921,Bar supplies,73.30,0.00,73.30
Resources,Digital and Customer Services,065461,Business Support,Supplies and Services,352001,Conference Expenses,05-Sep-2018,000007789876291,BITEABLE PTY LTD,7392,Conferencesseminars fees etc,0.62,0.00,0.62
Regeneration and Local Services,Economic Development and Housing,030699,Business Growth and Innovation General,Supplies and Services,304403,Equipment and Materials,05-Sep-2018,000007789876411,MEETEDGAR MONTHLY,5734,Other consumables,1.05,0.00,1.05
Children and Young Peoples Services,Head of Education and Skills,071801,Selby Cottage Childcare Centre,Supplies and Services,324117,Provisions E324,05-Sep-2018,000007793837869,TESCO STORES 2278,5411,Catering costs - provisions,91.16,0.00,91.16
Children and Young Peoples Services,Head of Education and Skills,071801,Selby Cottage Childcare Centre,Supplies and Services,324117,Provisions E324,05-Sep-2018,000007793837871,TESCO STORES 2278,5411,Catering costs - provisions,4.34,0.00,4.34
Children and Young Peoples Services,Head of Education and Skills,071801,Selby Cottage Childcare Centre,Supplies and Services,324117,Provisions E324,05-Sep-2018,000007793837873,TESCO STORES 2278,5411,Catering costs - provisions,2.52,0.00,2.52
Resources,Digital and Customer Services,065461,Business Support,Supplies and Services,312011,Newspapers books and periodicals E312,05-Sep-2018,000007793837875,AMZN MKTP UK AMAZON.CO,5942,Books-school library,149.00,0.00,149.00
Regeneration and Local Services,Direct Services,010383,C&G - South Street Cleansing,Supplies and Services,324117,Provisions E324,05-Sep-2018,000007793837881,J M RAINE,5399,Catering costs - provisions,102.56,17.09,85.47
Children and Young Peoples Services,"Head of Early Help, Inclusion and Vulnerable Children",085962,Aycliffe Secure - Durham,Supplies and Services,308013,Furniture,05-Sep-2018,000007793837883,AMZN Mktp UK,5942,Curtains and carpets,10.34,0.00,10.34
Children and Young Peoples Services,"Head of Early Help, Inclusion and Vulnerable Children",085962,Aycliffe Secure - Durham,Supplies and Services,384999,Miscellaneous Expenses,05-Sep-2018,000007793837885,AMZN Mktp UK,5942,Other expenses,9.24,0.00,9.24
Children and Young Peoples Services,"Head of Early Help, Inclusion and Vulnerable Children",085962,Aycliffe Secure - Durham,Supplies and Services,384999,Miscellaneous Expenses,05-Sep-2018,000007793837887,AMZN Mktp UK,5942,Other expenses,6.98,0.00,6.98
Children and Young Peoples Services,"Head of Early Help, Inclusion and Vulnerable Children",085962,Aycliffe Secure - Durham,Supplies and Services,312011,Newspapers books and periodicals E312,05-Sep-2018,000007793837889,AMZN Mktp UK,5942,Books-school library,13.99,0.00,13.99
Children and Young Peoples Services,"Head of Early Help, Inclusion and Vulnerable Children",085965,Barnard,Supplies and Services,324117,Provisions E324,05-Sep-2018,000007793837891,TESCO STORES 6329,5411,Catering costs - provisions,125.08,0.00,125.08
Children and Young Peoples Services,"Head of Early Help, Inclusion and Vulnerable Children",085962,Aycliffe Secure - Durham,Supplies and Services,384999,Miscellaneous Expenses,05-Sep-2018,000007793837893,AMZN Mktp UK,5942,Other expenses,8.42,0.00,8.42
Children and Young Peoples Services,"Head of Early Help, Inclusion and Vulnerable Children",085962,Aycliffe Secure - Durham,Supplies and Services,304259,Equipment and Materials,05-Sep-2018,000007793837895,WWW.ARGOS.CO.UK,5310,Equipment-purchase and rental,122.95,21.15,101.80
Children and Young Peoples Services,Head of Childrens Social Care,085332,Middlestone Moor CU,Supplies and Services,304221,Equipment and Materials,05-Sep-2018,000007793837897,AYCLIFFE DECORATIV,5211,Direct materials,43.75,7.29,36.46
Children and Young Peoples Services,Head of Childrens Social Care,085332,Middlestone Moor CU,Supplies and Services,324117,Provisions E324,05-Sep-2018,000007793837899,TESCO STORES 2371,5411,Catering costs - provisions,149.99,0.00,149.99
Children and Young Peoples Services,Head of Childrens Social Care,085332,Middlestone Moor CU,Supplies and Services,324117,Provisions E324,05-Sep-2018,000007793837901,TESCO STORES 2916,5411,Catering costs - provisions,3.80,0.00,3.80
Children and Young Peoples Services,Head of Childrens Social Care,085332,Middlestone Moor CU,Supplies and Services,304259,Equipment and Materials,05-Sep-2018,000007793837903,WILKO RETAIL LIMIT,5722,Equipment-purchase and rental,16.00,0.00,16.00
Regeneration and Local Services,Direct Services,021242,Catering - County Hall,Supplies and Services,324117,Provisions E324,05-Sep-2018,000007793837923,JR HOLLAND FOODSERVICE,5422,Catering costs - provisions,129.94,0.00,129.94
Regeneration and Local Services,Direct Services,021242,Catering - County Hall,Supplies and Services,324117,Provisions E324,05-Sep-2018,000007793837925,JR HOLLAND FOODSERVICE,5422,Catering costs - provisions,30.14,0.00,30.14
Regeneration and Local Services,Economic Development and Housing,030544,Rural Employability - Client Engagement,Supplies and Services,304221,Equipment and Materials,05-Sep-2018,000007793837931,SCREWFIX DURHAM,5211,Direct materials,64.97,10.83,54.14
Children and Young Peoples Services,Head of Childrens Social Care,085361,LAC & Permanence Team 1,Supplies and Services,384999,Miscellaneous Expenses,05-Sep-2018,000007793837951,WWW.DURHAM.GOV.UK,9399,Other expenses,12.00,0.00,12.00
Children and Young Peoples Services,Head of Childrens Social Care,085334,West Rainton Satelite Home,Supplies and Services,312011,Newspapers books and periodicals E312,05-Sep-2018,000007793837969,HOME BARGAINS,5251,Books-school library,22.79,0.00,22.79
Children and Young Peoples Services,Head of Childrens Social Care,085334,West Rainton Satelite Home,Supplies and Services,312011,Newspapers books and periodicals E312,05-Sep-2018,000007793837971,HOME BARGAINS,5251,Books-school library,22.47,0.00,22.47
Children and Young Peoples Services,Head of Childrens Social Care,085334,West Rainton Satelite Home,Supplies and Services,324117,Provisions E324,05-Sep-2018,000007793837973,TESCO STORES 2371,5411,Catering costs - provisions,4.80,0.80,4.00
Children and Young Peoples Services,Head of Childrens Social Care,085334,West Rainton Satelite Home,Supplies and Services,324117,Provisions E324,05-Sep-2018,000007793837973 - 1,TESCO STORES 2371,5411,Catering costs - provisions,6.20,,6.20
Children and Young Peoples Services,Head of Education and Skills,071732,Dean Bank Childcare,Supplies and Services,324117,Provisions E324,05-Sep-2018,000007793837977,ASDA GROCERIES ONLINE,5411,Catering costs - provisions,64.35,0.00,64.35
Regeneration and Local Services,Culture & Sport,054813,Gala Theatre - Technical,Supplies and Services,312011,Newspapers books and periodicals E312,05-Sep-2018,000007793837979,AMZN Mktp UK,5942,Books-school library,31.13,0.00,31.13
Regeneration and Local Services,Culture & Sport,054813,Gala Theatre - Technical,Supplies and Services,312011,Newspapers books and periodicals E312,05-Sep-2018,000007793837981,AMZN Mktp UK,5942,Books-school library,24.99,0.00,24.99
Regeneration and Local Services,Culture & Sport,054813,Gala Theatre - Technical,Supplies and Services,312011,Newspapers books and periodicals E312,05-Sep-2018,000007793837983,AMZN Mktp UK,5942,Books-school library,72.90,0.00,72.90
Regeneration and Local Services,Culture & Sport,054813,Gala Theatre - Technical,Supplies and Services,304221,Equipment and Materials,05-Sep-2018,000007793838001,B & Q 1221,5211,Direct materials,21.00,0.00,21.00
Regeneration and Local Services,Culture & Sport,010919,Countryside Site Management,Supplies and Services,304221,Equipment and Materials,05-Sep-2018,000007793838003,SCREWFIX BISHOP AUCKLA,5211,Direct materials,40.07,6.68,33.39
Regeneration and Local Services,Culture & Sport,011060,Hardwick Park Catering,Supplies and Services,324117,Provisions E324,05-Sep-2018,000007793838007,JR HOLLAND FOODSERVICE,5422,Catering costs - provisions,111.75,0.00,111.75
Regeneration and Local Services,Culture & Sport,011060,Hardwick Park Catering,Supplies and Services,324117,Provisions E324,05-Sep-2018,000007793838009,JR HOLLAND FOODSERVICE,5422,Catering costs - provisions,72.36,0.00,72.36
Regeneration and Local Services,Culture & Sport,011060,Hardwick Park Catering,Supplies and Services,324117,Provisions E324,05-Sep-2018,000007793838011,JR HOLLAND FOODSERVICE,5422,Catering costs - provisions,9.40,0.00,9.40
Regeneration and Local Services,Economic Development and Housing,030757,Interserve/Skills Support for the Unemployed,Employees,040149,Recruitment Instruction and Training,05-Sep-2018,000007793838015,WWW.CSKILLS.ORG,8249,Training-all costs,36.00,6.00,30.00
Children and Young Peoples Services,"Head of Early Help, Inclusion and Vulnerable Children",085962,Aycliffe Secure - Durham,Supplies and Services,384985,Miscellaneous Expenses,05-Sep-2018,000007793838017,WEBUY.COM,5065,Miscellaneous-special facilities,11.50,0.00,11.50
Regeneration and Local Services,Direct Services,010525,Catering - Green Lane,Supplies and Services,324117,Provisions E324,05-Sep-2018,000007793838021,JR HOLLAND FOODSERVICE,5422,Catering costs - provisions,51.80,0.00,51.80
Regeneration and Local Services,Direct Services,010525,Catering - Green Lane,Supplies and Services,324117,Provisions E324,05-Sep-2018,000007793838023,JR HOLLAND FOODSERVICE,5422,Catering costs - provisions,4.71,0.00,4.71
Children and Young Peoples Services,Head of Childrens Social Care,085352,Tow Law CU,Supplies and Services,324117,Provisions E324,05-Sep-2018,000007793838025,TESCO STORES 2371,5411,Catering costs - provisions,186.26,0.00,186.26
Regeneration and Local Services,Economic Development and Housing,030554,International Relations,Supplies and Services,348037,Subsistence E348,05-Sep-2018,000007793838029,FLAT WHITE DURHAM,5814,Subsistence,29.90,0.00,29.90
Children and Young Peoples Services,Head of Childrens Social Care,085341,High Etherley Satelite Home,Supplies and Services,324117,Provisions E324,05-Sep-2018,000007793838035,TESCO STORES 6329,5411,Catering costs - provisions,31.97,0.00,31.97
Children and Young Peoples Services,Head of Childrens Social Care,085333,Coxhoe Satelite Home,Supplies and Services,324117,Provisions E324,05-Sep-2018,000007793838063,TESCO STORES 2916,5411,Catering costs - provisions,51.72,8.62,43.10
Children and Young Peoples Services,Head of Childrens Social Care,085333,Coxhoe Satelite Home,Supplies and Services,304259,Equipment and Materials,05-Sep-2018,000007793838065,WILKO RETAIL LIMIT,5722,Equipment-purchase and rental,45.50,0.00,45.50
Regeneration and Local Services,Direct Services,030691,"Catering - Durham Dales Centre			",Supplies and Services,324117,Provisions E324,05-Sep-2018,000007793838077,JR HOLLAND FOODSERVICE,5422,Catering costs - provisions,109.31,0.00,109.31
Regeneration and Local Services,Direct Services,030691,"Catering - Durham Dales Centre			",Supplies and Services,324117,Provisions E324,05-Sep-2018,000007793838079,JR HOLLAND FOODSERVICE,5422,Catering costs - provisions,25.35,0.00,25.35
Adult and Health Services,Head of Adults,055643,Hawthorn House LD Respite Unit,Supplies and Services,324117,Provisions E324,05-Sep-2018,000007793838099,JR HOLLAND FOODSERVICE,5422,Catering costs - provisions,17.10,0.00,17.10
Adult and Health Services,Head of Adults,055643,Hawthorn House LD Respite Unit,Supplies and Services,324117,Provisions E324,05-Sep-2018,000007793838101,JR HOLLAND FOODSERVICE,5422,Catering costs - provisions,6.22,0.00,6.22
Regeneration and Local Services,Direct Services,010301,C&G - North Grounds Maintenance,Supplies and Services,304403,Equipment and Materials,05-Sep-2018,000007793838121,BESCOL,5231,Other consumables,57.56,9.59,47.97
Resources,Digital and Customer Services,065335,School Services - Implementations,Supplies and Services,304639,Equipment and Materials,05-Sep-2018,000007793838127,WWW.LAPTOPBITS.CO.UK,5045,Technicians-supplies,32.40,0.00,32.40
Children and Young Peoples Services,Head of Childrens Social Care,085517,Supporting Solutions Service (Edge of Care),Supplies and Services,324117,Provisions E324,05-Sep-2018,000007793838149,ASDA STORES LTD 4313,5411,Catering costs - provisions,255.25,0.00,255.25
Regeneration and Local Services,Culture & Sport,054235,Bishop Auckland Town Hall Cafe,Supplies and Services,324117,Provisions E324,05-Sep-2018,000007793838157,JR HOLLAND FOODSERVICE,5422,Catering costs - provisions,36.41,0.00,36.41
Regeneration and Local Services,Culture & Sport,011058,Wharton Park,Supplies and Services,332047,Printing Stationery and Gen Off Exps,05-Sep-2018,000007793838159,AMZN Mktp UK,5942,Stationery,7.99,1.33,6.66
Regeneration and Local Services,Culture & Sport,026591,Hardwick Park,Supplies and Services,332047,Printing Stationery and Gen Off Exps,05-Sep-2018,000007793838161,AMZN Mktp UK,5942,Stationery,21.50,0.00,21.50
Regeneration and Local Services,Direct Services,021324,Catering - Meadowfield,Supplies and Services,324117,Provisions E324,05-Sep-2018,000007793838163,JR HOLLAND FOODSERVICE,5422,Catering costs - provisions,40.34,0.00,40.34
Regeneration and Local Services,Direct Services,021324,Catering - Meadowfield,Supplies and Services,324117,Provisions E324,05-Sep-2018,000007793838165,JR HOLLAND FOODSERVICE,5422,Catering costs - provisions,13.89,0.00,13.89
Regeneration and Local Services,Direct Services,010301,C&G - North Grounds Maintenance,Third Party Payments 4THIRD,430100,Rendered by Private Contractors,05-Sep-2018,000007793838169,JOHN WARREN (ANIMAL BY,7399,Payments to sub-contractors,10.80,1.80,9.00
Regeneration and Local Services,Culture & Sport,054233,Bishop Auckland Town Hall Library,Supplies and Services,324117,Provisions E324,05-Sep-2018,000007793838209,HERON FOODS LTD,5499,Catering costs - provisions,4.46,0.00,4.46
Regeneration and Local Services,Direct Services,021235,Catering - Wharton Park,Supplies and Services,324117,Provisions E324,05-Sep-2018,000007793838221,JR HOLLAND FOODSERVICE,5422,Catering costs - provisions,27.79,0.00,27.79
Adult and Health Services,Head of Adults,055309,Peterlee Pathways,Supplies and Services,312011,Newspapers books and periodicals E312,05-Sep-2018,000007793838275,AMZN Mktp UK,5942,Books-school library,19.75,0.00,19.75
Regeneration and Local Services,Spatial Policy Planning Assets & Environment,031200,North Pennines Core,Supplies and Services,312011,Newspapers books and periodicals E312,05-Sep-2018,000007793838301,AMZN Mktp UK,5942,Books-school library,27.53,4.59,22.94
Regeneration and Local Services,Direct Services,019100,Fleet - Strategic Fleet,Supplies and Services,304259,Equipment and Materials,05-Sep-2018,000007798720065,DVSA MOT COMP 2,9399,Equipment-purchase and rental,410.00,0.00,410.00
Regeneration and Local Services,Economic Development and Housing,031500,Housing Solutions - Core Team,Supplies and Services,364320,Grants to Voluntary Organisations,05-Sep-2018,000007798720227,PREMIER INN,3811,Accommodation assistance,71.00,0.00,71.00
Resources,Digital and Customer Services,069010,Administration,Supplies and Services,312011,Newspapers books and periodicals E312,06-Sep-2018,000007793838137,Amazon.co.uk,5969,Books-school library,27.11,0.00,27.11
Children and Young Peoples Services,Head of Education and Skills,071801,Selby Cottage Childcare Centre,Supplies and Services,324117,Provisions E324,06-Sep-2018,000007798719435,TESCO STORES 2278,5411,Catering costs - provisions,8.50,0.00,8.50
Resources,Digital and Customer Services,065461,Business Support,Supplies and Services,312011,Newspapers books and periodicals E312,06-Sep-2018,000007798719445,AMZN Mktp UK,5942,Books-school library,64.97,10.83,54.14
Adult and Health Services,Head of Adults,055302,Durham Pathways,Supplies and Services,324117,Provisions E324,06-Sep-2018,000007798719545,SAINSBURYS SACAT 0776,5411,Catering costs - provisions,11.26,0.00,11.26
Adult and Health Services,Head of Adults,055302,Durham Pathways,Supplies and Services,304259,Equipment and Materials,06-Sep-2018,000007798719549,WILKO DURHAM 426,5722,Equipment-purchase and rental,14.80,0.00,14.80
Adult and Health Services,Head of Adults,055302,Durham Pathways,Supplies and Services,324117,Provisions E324,06-Sep-2018,000007798719553,ASDA STORES LTD 4313,5411,Catering costs - provisions,64.00,0.00,64.00
Adult and Health Services,Head of Adults,055302,Durham Pathways,Supplies and Services,328041,Clothing uniforms and laundry E328,06-Sep-2018,000007798719555,Argos Durham Arnis,5310,Clothing uniforms and laundry,-24.99,0.00,-24.99
Children and Young Peoples Services,"Head of Early Help, Inclusion and Vulnerable Children",085962,Aycliffe Secure - Durham,Supplies and Services,384999,Miscellaneous Expenses,06-Sep-2018,000007798719605,AMZN Mktp UK,5942,Other expenses,8.48,0.00,8.48
Children and Young Peoples Services,"Head of Early Help, Inclusion and Vulnerable Children",085962,Aycliffe Secure - Durham,Supplies and Services,384999,Miscellaneous Expenses,06-Sep-2018,000007798719609,AMZN Mktp UK,5942,Other expenses,7.99,0.00,7.99
Children and Young Peoples Services,"Head of Early Help, Inclusion and Vulnerable Children",085965,Barnard,Supplies and Services,324117,Provisions E324,06-Sep-2018,000007798719613,TESCO STORES 6329,5411,Catering costs - provisions,106.48,0.00,106.48
Children and Young Peoples Services,"Head of Early Help, Inclusion and Vulnerable Children",085962,Aycliffe Secure - Durham,Supplies and Services,384999,Miscellaneous Expenses,06-Sep-2018,000007798719617,AMZN MKTP UK AMAZON.CO,5942,Other expenses,4.37,0.00,4.37
Children and Young Peoples Services,Head of Childrens Social Care,085332,Middlestone Moor CU,Supplies and Services,328041,Clothing uniforms and laundry E328,06-Sep-2018,000007798719621,ARGOS RETAIL GROUP,5310,Clothing uniforms and laundry,6.99,0.00,6.99
Regeneration and Local Services,Direct Services,021242,Catering - County Hall,Supplies and Services,324117,Provisions E324,06-Sep-2018,000007798719713,JR HOLLAND FOODSERVICE,5422,Catering costs - provisions,133.36,0.00,133.36
Regeneration and Local Services,Direct Services,021242,Catering - County Hall,Supplies and Services,324117,Provisions E324,06-Sep-2018,000007798719721,JR HOLLAND FOODSERVICE,5422,Catering costs - provisions,13.20,0.00,13.20
Regeneration and Local Services,Direct Services,021242,Catering - County Hall,Supplies and Services,324117,Provisions E324,06-Sep-2018,000007798719723,JR HOLLAND FOODSERVICE,5422,Catering costs - provisions,3.00,0.00,3.00
Regeneration and Local Services,Culture & Sport,054233,Bishop Auckland Town Hall Library,Supplies and Services,324117,Provisions E324,06-Sep-2018,000007798719731,HERON FOODS LTD,5499,Catering costs - provisions,2.37,0.00,2.37
Regeneration and Local Services,Culture & Sport,054233,Bishop Auckland Town Hall Library,Supplies and Services,304259,Equipment and Materials,06-Sep-2018,000007798719735,WILKO RETAIL LIMIT,5722,Equipment-purchase and rental,14.00,0.00,14.00
Regeneration and Local Services,Culture & Sport,054233,Bishop Auckland Town Hall Library,Supplies and Services,324117,Provisions E324,06-Sep-2018,000007798719739,WM MORRISON 040,5411,Catering costs - provisions,12.80,0.00,12.80
Children and Young Peoples Services,Head of Education and Skills,070169,Durham SSP,Supplies and Services,384199,Miscellaneous Expenses,06-Sep-2018,000007798719753,CASTLEMOUNT LTD,2741,Other hired and contracted services,94.14,15.69,78.45
Resources,Digital and Customer Services,065461,Business Support,Supplies and Services,372009,Subscriptions E372,06-Sep-2018,000007798719767,WEB NETWORKSOLUTIONS,5968,Subscriptions 372009,181.37,0.00,181.37
Regeneration and Local Services,Culture & Sport,054812,Gala Theatre - Catering etc,Supplies and Services,324117,Provisions E324,06-Sep-2018,000007798719777,JR HOLLAND FOODSERVICE,5422,Catering costs - provisions,47.41,0.00,47.41
Regeneration and Local Services,Direct Services,021242,Catering - County Hall,Supplies and Services,312011,Newspapers books and periodicals E312,06-Sep-2018,000007798719813,HOME BARGAINS,5251,Books-school library,30.27,0.00,30.27
Regeneration and Local Services,Direct Services,021242,Catering - County Hall,Supplies and Services,324117,Provisions E324,06-Sep-2018,000007798719815,TESCO STORES 2278,5411,Catering costs - provisions,19.31,0.00,19.31
Regeneration and Local Services,Direct Services,021242,Catering - County Hall,Supplies and Services,324117,Provisions E324,06-Sep-2018,000007798719817,TESCO STORES 2278,5411,Catering costs - provisions,11.95,0.00,11.95
Regeneration and Local Services,Culture & Sport,011217,Commercial Management,Supplies and Services,304403,Equipment and Materials,06-Sep-2018,000007798719831,Amazon Prime,5968,Other consumables,7.99,0.00,7.99
Children and Young Peoples Services,Head of Education and Skills,071732,Dean Bank Childcare,Supplies and Services,312011,Newspapers books and periodicals E312,06-Sep-2018,000007798719895,AMZN Mktp UK,5942,Books-school library,26.97,0.00,26.97
Children and Young Peoples Services,Head of Education and Skills,071732,Dean Bank Childcare,Supplies and Services,328041,Clothing uniforms and laundry E328,06-Sep-2018,000007798719897,B & M RETAIL,5310,Clothing uniforms and laundry,11.70,0.00,11.70
Resources,Legal & Democratic Services,067910,Democratic Representation,Supplies and Services,384965,Miscellaneous Expenses,06-Sep-2018,000007798719909,CO-OP GROUP 310016,5411,Civic Functions,5.01,0.00,5.01
Regeneration and Local Services,Direct Services,010301,C&G - North Grounds Maintenance,Supplies and Services,304221,Equipment and Materials,06-Sep-2018,000007798719979,HEXHAM MACHINERY CENTR,5261,Direct materials,412.80,68.80,344.00
Regeneration and Local Services,Direct Services,010301,C&G - North Grounds Maintenance,Supplies and Services,304221,Equipment and Materials,06-Sep-2018,000007798719983,HEXHAM MACHINERY CENTR,5261,Direct materials,280.80,46.80,234.00
Regeneration and Local Services,Culture & Sport,054813,Gala Theatre - Technical,Supplies and Services,324117,Provisions E324,06-Sep-2018,000007798719995,ASDA STORES LTD 5001,5411,Catering costs - provisions,19.39,0.00,19.39
Regeneration and Local Services,Direct Services,021234,Catering - Locomotion,Supplies and Services,324117,Provisions E324,06-Sep-2018,000007798720023,JR HOLLAND FOODSERVICE,5422,Catering costs - provisions,71.10,0.00,71.10
Regeneration and Local Services,Direct Services,021234,Catering - Locomotion,Supplies and Services,324117,Provisions E324,06-Sep-2018,000007798720029,JR HOLLAND FOODSERVICE,5422,Catering costs - provisions,16.20,0.00,16.20
Regeneration and Local Services,Economic Development and Housing,030714,Salvus House,Supplies and Services,324117,Provisions E324,06-Sep-2018,000007798720051,CO-OP GROUP FOOD,5411,Catering costs - provisions,1.88,0.00,1.88
Children and Young Peoples Services,Head of Childrens Social Care,085333,Coxhoe Satelite Home,Supplies and Services,324117,Provisions E324,06-Sep-2018,000007798720231,TESCO STORES 2371,5411,Catering costs - provisions,73.79,0.00,73.79
Children and Young Peoples Services,Head of Childrens Social Care,085333,Coxhoe Satelite Home,Supplies and Services,324117,Provisions E324,06-Sep-2018,000007798720235,TESCO STORES 2371,5411,Catering costs - provisions,13.60,0.00,13.60
Children and Young Peoples Services,Head of Childrens Social Care,085333,Coxhoe Satelite Home,Supplies and Services,332047,Printing Stationery and Gen Off Exps,06-Sep-2018,000007798720241,RYMAN,5943,Stationery,31.96,0.00,31.96
Children and Young Peoples Services,Head of Childrens Social Care,085333,Coxhoe Satelite Home,Supplies and Services,328041,Clothing uniforms and laundry E328,06-Sep-2018,000007798720245,B & M RETAIL,5310,Clothing uniforms and laundry,18.62,0.00,18.62
Regeneration and Local Services,Economic Development and Housing,031576,B& B - Temp Accom,Supplies and Services,364320,Grants to Voluntary Organisations,06-Sep-2018,000007798720277,TRAVELODGE,3615,Accommodation assistance,242.00,40.33,201.67
Regeneration and Local Services,Spatial Policy Planning Assets & Environment,031222,North Pennines Allen Valleys Landscape Partnership,Supplies and Services,348037,Subsistence E348,06-Sep-2018,000007798720281,CAFE IN THE GARDEN,5812,Subsistence,17.70,0.00,17.70
Regeneration and Local Services,Spatial Policy Planning Assets & Environment,031200,North Pennines Core,Supplies and Services,348037,Subsistence E348,06-Sep-2018,000007798720285,Partisan,5812,Subsistence,18.20,0.00,18.20
Children and Young Peoples Services,Head of Education and Skills,070264,EDC Premises,Supplies and Services,324117,Provisions E324,06-Sep-2018,000007798720291,ASDA STORES,5411,Catering costs - provisions,3.54,0.59,2.95
Children and Young Peoples Services,Head of Education and Skills,070264,EDC Premises,Supplies and Services,324117,Provisions E324,06-Sep-2018,000007798720291 - 1,ASDA STORES,5411,Catering costs - provisions,3.43,,3.43
Resources,Digital and Customer Services,065335,School Services - Implementations,Supplies and Services,304303,Equipment and Materials,06-Sep-2018,000007798720297,SCREWFIX DIRECT,5211,Network for resale,11.99,0.00,11.99
Children and Young Peoples Services,"Head of Early Help, Inclusion and Vulnerable Children",085957,Secure Management,Supplies and Services,324117,Provisions E324,06-Sep-2018,000007798720313,TESCO DELIVERY SAVER2,5968,Catering costs - provisions,6.99,0.00,6.99
Children and Young Peoples Services,Head of Childrens Social Care,085517,Supporting Solutions Service (Edge of Care),Supplies and Services,324117,Provisions E324,06-Sep-2018,000007798720337,SAINSBURYS 0776,5411,Catering costs - provisions,19.30,0.00,19.30
Children and Young Peoples Services,Head of Childrens Social Care,085517,Supporting Solutions Service (Edge of Care),Supplies and Services,304259,Equipment and Materials,06-Sep-2018,000007798720341,WILKO DURHAM 426,5722,Equipment-purchase and rental,38.85,0.00,38.85
Children and Young Peoples Services,Head of Childrens Social Care,085517,Supporting Solutions Service (Edge of Care),Supplies and Services,324117,Provisions E324,06-Sep-2018,000007798720343,ASDA STORES LTD 4313,5411,Catering costs - provisions,7.00,0.00,7.00
Children and Young Peoples Services,Head of Childrens Social Care,085517,Supporting Solutions Service (Edge of Care),Supplies and Services,324117,Provisions E324,06-Sep-2018,000007798720345,ASDA STORES LTD 4313,5411,Catering costs - provisions,-4.00,0.00,-4.00
Children and Young Peoples Services,Head of Childrens Social Care,085372,Young People Services - North,Supplies and Services,328041,Clothing uniforms and laundry E328,06-Sep-2018,000007798720349,WWW.ARGOS.CO.UK,5310,Clothing uniforms and laundry,329.98,0.00,329.98
Children and Young Peoples Services,Head of Education and Skills,071903,EYDCP-Sustainability EDS,Supplies and Services,304403,Equipment and Materials,06-Sep-2018,000007798720355,CAN I GO AND PLAY NOW,5734,Other consumables,5.00,0.00,5.00
Regeneration and Local Services,Direct Services,010301,C&G - North Grounds Maintenance,Supplies and Services,304403,Equipment and Materials,06-Sep-2018,000007798720367,TIMPSON LTD,7251,Other consumables,30.00,5.00,25.00
Children and Young Peoples Services,"Head of Early Help, Inclusion and Vulnerable Children",088107,Ferryhill & Newton Aycliffe 0-19 Community Family Hub,Supplies and Services,324117,Provisions E324,06-Sep-2018,000007798720489,SAINSBURYS SACAT 0776,5411,Catering costs - provisions,21.95,0.00,21.95
Children and Young Peoples Services,Head of Childrens Social Care,085363,LAC & Permanence Team 3,Supplies and Services,304259,Equipment and Materials,06-Sep-2018,000007798720587,GCC - REGISTRARS,9399,Equipment-purchase and rental,15.65,2.61,13.04
Regeneration and Local Services,Direct Services,021242,Catering - County Hall,Supplies and Services,324117,Provisions E324,06-Sep-2018,000007804842265,BATLEYS PERTH,5300,Catering costs - provisions,200.64,33.44,167.20
Regeneration and Local Services,Direct Services,021242,Catering - County Hall,Supplies and Services,324117,Provisions E324,06-Sep-2018,000007804842265 - 1,BATLEYS PERTH,5300,Catering costs - provisions,78.35,,78.35
Regeneration and Local Services,Culture & Sport,011060,Hardwick Park Catering,Supplies and Services,324117,Provisions E324,06-Sep-2018,000007804842583,BATLEYS PERTH,5300,Catering costs - provisions,337.20,56.20,281.00
Regeneration and Local Services,Culture & Sport,011060,Hardwick Park Catering,Supplies and Services,324117,Provisions E324,06-Sep-2018,000007804842583 - 1,BATLEYS PERTH,5300,Catering costs - provisions,193.45,,193.45
Regeneration and Local Services,Economic Development and Housing,031576,B& B - Temp Accom,Supplies and Services,364320,Grants to Voluntary Organisations,06-Sep-2018,000007804842663,PREMIER INN,3811,Accommodation assistance,63.50,10.58,52.92
Regeneration and Local Services,Direct Services,010525,Catering - Green Lane,Supplies and Services,324117,Provisions E324,06-Sep-2018,000007804842701,BATLEYS PERTH,5300,Catering costs - provisions,-6.59,-1.10,-5.49
Regeneration and Local Services,Spatial Policy Planning Assets & Environment,031200,North Pennines Core,Transport,235057,Public Transport,06-Sep-2018,000007804842975,3C_ ECML DURHAM STATIO,7523,Staff travelling,13.50,0.00,13.50
Regeneration and Local Services,Direct Services,021235,Catering - Wharton Park,Supplies and Services,324117,Provisions E324,06-Sep-2018,000007804843321,BATLEYS PERTH,5300,Catering costs - provisions,93.24,15.54,77.70
Regeneration and Local Services,Direct Services,021235,Catering - Wharton Park,Supplies and Services,324117,Provisions E324,06-Sep-2018,000007804843321 - 1,BATLEYS PERTH,5300,Catering costs - provisions,16.58,,16.58
Resources,Digital and Customer Services,065461,Business Support,Supplies and Services,372009,Subscriptions E372,07-Sep-2018,000007798719771,WEB NETWORKSOLUTIONS,5968,Subscriptions 372009,4.99,0.00,4.99
Children and Young Peoples Services,"Head of Early Help, Inclusion and Vulnerable Children",085956,Lumley,Supplies and Services,324117,Provisions E324,07-Sep-2018,000007804842161,TESCO STORES 6329,5411,Catering costs - provisions,71.95,0.00,71.95
Children and Young Peoples Services,Head of Childrens Social Care,085332,Middlestone Moor CU,Supplies and Services,324117,Provisions E324,07-Sep-2018,000007804842167,TESCO STORES 2916,5411,Catering costs - provisions,6.00,0.00,6.00
Children and Young Peoples Services,Head of Childrens Social Care,085332,Middlestone Moor CU,Supplies and Services,304221,Equipment and Materials,07-Sep-2018,000007804842171,B & Q 1120,5211,Direct materials,17.82,0.00,17.82
Children and Young Peoples Services,Head of Childrens Social Care,085332,Middlestone Moor CU,Supplies and Services,324117,Provisions E324,07-Sep-2018,000007804842175,ALDI 74 774,5411,Catering costs - provisions,7.35,0.00,7.35
Children and Young Peoples Services,Head of Childrens Social Care,085332,Middlestone Moor CU,Supplies and Services,304259,Equipment and Materials,07-Sep-2018,000007804842177,WILKO RETAIL LIMIT,5722,Equipment-purchase and rental,52.00,0.00,52.00
Children and Young Peoples Services,Head of Childrens Social Care,085332,Middlestone Moor CU,Supplies and Services,304259,Equipment and Materials,07-Sep-2018,000007804842181,WILKO RETAIL LIMIT,5722,Equipment-purchase and rental,-7.00,0.00,-7.00
Regeneration and Local Services,Direct Services,021242,Catering - County Hall,Supplies and Services,324117,Provisions E324,07-Sep-2018,000007804842243,HOPWELLS LTD,5811,Catering costs - provisions,262.99,0.00,262.99
Regeneration and Local Services,Direct Services,021242,Catering - County Hall,Supplies and Services,324117,Provisions E324,07-Sep-2018,000007804842251,HOPWELLS LTD,5811,Catering costs - provisions,164.55,0.00,164.55
Regeneration and Local Services,Direct Services,021242,Catering - County Hall,Supplies and Services,324117,Provisions E324,07-Sep-2018,000007804842253,HOPWELLS LTD,5811,Catering costs - provisions,136.46,0.00,136.46
Regeneration and Local Services,Direct Services,021242,Catering - County Hall,Supplies and Services,324117,Provisions E324,07-Sep-2018,000007804842259,JR HOLLAND FOODSERVICE,5422,Catering costs - provisions,71.54,0.00,71.54
Regeneration and Local Services,Direct Services,021242,Catering - County Hall,Supplies and Services,324117,Provisions E324,07-Sep-2018,000007804842263,JR HOLLAND FOODSERVICE,5422,Catering costs - provisions,13.20,0.00,13.20
Children and Young Peoples Services,Head of Childrens Social Care,085380,Operations Manager Adoption & Fostering,Supplies and Services,312011,Newspapers books and periodicals E312,07-Sep-2018,000007804842273,AMZN Mktp UK,5942,Books-school library,2.95,0.00,2.95
Children and Young Peoples Services,Head of Childrens Social Care,085371,Young People Services - South,Transport,235057,Public Transport,07-Sep-2018,000007804842287,HOLIDAY PAYMENT VRUK,4722,Staff travelling,581.00,0.00,581.00
Regeneration and Local Services,Culture & Sport,054812,Gala Theatre - Catering etc,Supplies and Services,324117,Provisions E324,07-Sep-2018,000007804842299,HOPWELLS LTD,5811,Catering costs - provisions,20.68,0.00,20.68
Children and Young Peoples Services,Head of Childrens Social Care,085361,LAC & Permanence Team 1,Supplies and Services,384999,Miscellaneous Expenses,07-Sep-2018,000007804842349,HM PASSPORT OFFICE,9399,Other expenses,98.00,0.00,98.00
Children and Young Peoples Services,Head of Childrens Social Care,085334,West Rainton Satelite Home,Supplies and Services,304403,Equipment and Materials,07-Sep-2018,000007804842397,Keith Fenwick Electric,5065,Other consumables,21.00,0.00,21.00
Children and Young Peoples Services,Head of Childrens Social Care,085334,West Rainton Satelite Home,Supplies and Services,324117,Provisions E324,07-Sep-2018,000007804842401,TESCO STORES 2371,5411,Catering costs - provisions,80.20,0.00,80.20
Children and Young Peoples Services,Head of Education and Skills,071732,Dean Bank Childcare,Supplies and Services,312011,Newspapers books and periodicals E312,07-Sep-2018,000007804842437,AMZN Mktp UK,5942,Books-school library,20.58,0.00,20.58
Children and Young Peoples Services,Head of Education and Skills,071732,Dean Bank Childcare,Supplies and Services,312011,Newspapers books and periodicals E312,07-Sep-2018,000007804842441,AMZN Mktp UK,5942,Books-school library,3.48,0.00,3.48
Children and Young Peoples Services,Head of Education and Skills,071732,Dean Bank Childcare,Supplies and Services,312011,Newspapers books and periodicals E312,07-Sep-2018,000007804842443,AMZN Mktp UK,5942,Books-school library,8.24,0.00,8.24
Regeneration and Local Services,Culture & Sport,054813,Gala Theatre - Technical,Supplies and Services,304259,Equipment and Materials,07-Sep-2018,000007804842527,Prime Video,5735,Equipment-purchase and rental,7.99,0.00,7.99
Regeneration and Local Services,Culture & Sport,010919,Countryside Site Management,Supplies and Services,304999,Equipment and Materials,07-Sep-2018,000007804842551,WWW.JACKSONSLEISURE.CO,5998,Misc equipment tools and materials,200.95,33.49,167.46
Regeneration and Local Services,Culture & Sport,010919,Countryside Site Management,Supplies and Services,304221,Equipment and Materials,07-Sep-2018,000007804842555,SCREWFIX BISHOP AUCKLA,5211,Direct materials,76.02,12.67,63.35
Regeneration and Local Services,Culture & Sport,011060,Hardwick Park Catering,Supplies and Services,324117,Provisions E324,07-Sep-2018,000007804842567,HOPWELLS LTD,5811,Catering costs - provisions,660.60,110.10,550.50
Regeneration and Local Services,Culture & Sport,011060,Hardwick Park Catering,Supplies and Services,324117,Provisions E324,07-Sep-2018,000007804842567 - 1,HOPWELLS LTD,5811,Catering costs - provisions,58.17,,58.17
Regeneration and Local Services,Culture & Sport,011060,Hardwick Park Catering,Supplies and Services,324117,Provisions E324,07-Sep-2018,000007804842573,HOPWELLS LTD,5811,Catering costs - provisions,539.46,89.91,449.55
Regeneration and Local Services,Culture & Sport,011060,Hardwick Park Catering,Supplies and Services,324117,Provisions E324,07-Sep-2018,000007804842573 - 1,HOPWELLS LTD,5811,Catering costs - provisions,177.74,,177.74
Regeneration and Local Services,Culture & Sport,011060,Hardwick Park Catering,Supplies and Services,324117,Provisions E324,07-Sep-2018,000007804842579,JR HOLLAND FOODSERVICE,5422,Catering costs - provisions,17.54,0.00,17.54
Regeneration and Local Services,Culture & Sport,011060,Hardwick Park Catering,Supplies and Services,324117,Provisions E324,07-Sep-2018,000007804842589,HOPWELLS LTD,5811,Catering costs - provisions,-18.41,-3.07,-15.34
Regeneration and Local Services,Economic Development and Housing,030757,Interserve/Skills Support for the Unemployed,Employees,040149,Recruitment Instruction and Training,07-Sep-2018,000007804842609,WWW.CSKILLS.ORG,8249,Training-all costs,36.00,6.00,30.00
Regeneration and Local Services,Economic Development and Housing,030757,Interserve/Skills Support for the Unemployed,Employees,040149,Recruitment Instruction and Training,07-Sep-2018,000007804842611,WWW.CSKILLS.ORG,8249,Training-all costs,36.00,6.00,30.00
Regeneration and Local Services,Economic Development and Housing,030757,Interserve/Skills Support for the Unemployed,Employees,040149,Recruitment Instruction and Training,07-Sep-2018,000007804842615,WWW.CSKILLS.ORG,8249,Training-all costs,36.00,6.00,30.00
Regeneration and Local Services,Economic Development and Housing,030757,Interserve/Skills Support for the Unemployed,Employees,040149,Recruitment Instruction and Training,07-Sep-2018,000007804842619,WWW.CSKILLS.ORG,8249,Training-all costs,36.00,6.00,30.00
Regeneration and Local Services,Economic Development and Housing,030757,Interserve/Skills Support for the Unemployed,Employees,040149,Recruitment Instruction and Training,07-Sep-2018,000007804842623,WWW.CSKILLS.ORG,8249,Training-all costs,36.00,6.00,30.00
Regeneration and Local Services,Economic Development and Housing,030757,Interserve/Skills Support for the Unemployed,Employees,040149,Recruitment Instruction and Training,07-Sep-2018,000007804842625,WWW.CSKILLS.ORG,8249,Training-all costs,36.00,6.00,30.00
Regeneration and Local Services,Direct Services,021234,Catering - Locomotion,Supplies and Services,324117,Provisions E324,07-Sep-2018,000007804842643,HOPWELLS LTD,5811,Catering costs - provisions,148.62,24.77,123.85
Regeneration and Local Services,Direct Services,021234,Catering - Locomotion,Supplies and Services,324117,Provisions E324,07-Sep-2018,000007804842643 - 1,HOPWELLS LTD,5811,Catering costs - provisions,217.76,,217.76
Regeneration and Local Services,Direct Services,021234,Catering - Locomotion,Supplies and Services,324117,Provisions E324,07-Sep-2018,000007804842649,HOPWELLS LTD,5811,Catering costs - provisions,248.57,0.00,248.57
Regeneration and Local Services,Direct Services,021234,Catering - Locomotion,Supplies and Services,324117,Provisions E324,07-Sep-2018,000007804842653,HOPWELLS LTD,5811,Catering costs - provisions,83.78,0.00,83.78
Regeneration and Local Services,Economic Development and Housing,031576,B& B - Temp Accom,Supplies and Services,364320,Grants to Voluntary Organisations,07-Sep-2018,000007804842667,TRAVELODGE,3615,Accommodation assistance,184.00,30.67,153.33
Regeneration and Local Services,Direct Services,010525,Catering - Green Lane,Supplies and Services,324117,Provisions E324,07-Sep-2018,000007804842675,HOPWELLS LTD,5811,Catering costs - provisions,141.56,0.00,141.56
Regeneration and Local Services,Direct Services,010525,Catering - Green Lane,Supplies and Services,324117,Provisions E324,07-Sep-2018,000007804842681,HOPWELLS LTD,5811,Catering costs - provisions,101.21,0.00,101.21
Regeneration and Local Services,Direct Services,010525,Catering - Green Lane,Supplies and Services,324117,Provisions E324,07-Sep-2018,000007804842693,HOPWELLS LTD,5811,Catering costs - provisions,63.63,0.00,63.63
Regeneration and Local Services,Direct Services,010525,Catering - Green Lane,Supplies and Services,324117,Provisions E324,07-Sep-2018,000007804842695,JR HOLLAND FOODSERVICE,5422,Catering costs - provisions,56.91,0.00,56.91
Regeneration and Local Services,Direct Services,010525,Catering - Green Lane,Supplies and Services,324117,Provisions E324,07-Sep-2018,000007804842699,HOPWELLS LTD,5811,Catering costs - provisions,-11.06,0.00,-11.06
Transformation and Partnerships,Partnerships & Community Engagement Div.,060472,Syrian Vulnerable Persons Scheme,Supplies and Services,324117,Provisions E324,07-Sep-2018,000007804842709,TESCO STORES 2278,5411,Catering costs - provisions,15.00,0.00,15.00
Transformation and Partnerships,Partnerships & Community Engagement Div.,060472,Syrian Vulnerable Persons Scheme,Supplies and Services,304259,Equipment and Materials,07-Sep-2018,000007804842711,WILKO RETAIL LIMIT,5722,Equipment-purchase and rental,8.00,0.00,8.00
Transformation and Partnerships,Partnerships & Community Engagement Div.,060472,Syrian Vulnerable Persons Scheme,Supplies and Services,324117,Provisions E324,07-Sep-2018,000007804842715,TESCO STORES 2278,5411,Catering costs - provisions,-15.00,0.00,-15.00
Transformation and Partnerships,Comms & Information Management,060131,County Records,Supplies and Services,340001,Postages E340,07-Sep-2018,000007804842721,ROYAL MAIL ONLINE SHOP,9402,Postages,17.42,0.00,17.42
Regeneration and Local Services,Economic Development and Housing,030554,International Relations,Transport,235057,Public Transport,07-Sep-2018,000007804842769,WALKERGATE CAR PAR,7523,Staff travelling,3.00,0.00,3.00
Regeneration and Local Services,Economic Development and Housing,031500,Housing Solutions - Core Team,Supplies and Services,352001,Conference Expenses,07-Sep-2018,000007804842779,HOTEL 52,7011,Conferencesseminars fees etc,460.00,0.00,460.00
Regeneration and Local Services,Direct Services,010367,C&G - South Grounds Maintenance,Supplies and Services,304221,Equipment and Materials,07-Sep-2018,000007804842821,B & Q 1120,5211,Direct materials,118.38,0.00,118.38
Children and Young Peoples Services,Head of Childrens Social Care,085333,Coxhoe Satelite Home,Supplies and Services,324117,Provisions E324,07-Sep-2018,000007804842867,TESCO STORES 2916,5411,Catering costs - provisions,50.77,0.00,50.77
Regeneration and Local Services,Direct Services,030691,"Catering - Durham Dales Centre			",Supplies and Services,324117,Provisions E324,07-Sep-2018,000007804842909,HOPWELLS LTD,5811,Catering costs - provisions,210.48,0.00,210.48
Regeneration and Local Services,Direct Services,030691,"Catering - Durham Dales Centre			",Supplies and Services,324117,Provisions E324,07-Sep-2018,000007804842913,HOPWELLS LTD,5811,Catering costs - provisions,175.40,0.00,175.40
Regeneration and Local Services,Direct Services,030691,"Catering - Durham Dales Centre			",Supplies and Services,324117,Provisions E324,07-Sep-2018,000007804842917,JR HOLLAND FOODSERVICE,5422,Catering costs - provisions,69.24,0.00,69.24
Regeneration and Local Services,Direct Services,030691,"Catering - Durham Dales Centre			",Supplies and Services,324117,Provisions E324,07-Sep-2018,000007804842921,JR HOLLAND FOODSERVICE,5422,Catering costs - provisions,6.28,0.00,6.28
Regeneration and Local Services,Direct Services,030691,"Catering - Durham Dales Centre			",Supplies and Services,324117,Provisions E324,07-Sep-2018,000007804842925,JR HOLLAND FOODSERVICE,5422,Catering costs - provisions,3.11,0.00,3.11
Regeneration and Local Services,Economic Development and Housing,031576,B& B - Temp Accom,Supplies and Services,364320,Grants to Voluntary Organisations,07-Sep-2018,000007804842951,TRAVELODGE,3615,Accommodation assistance,203.00,33.83,169.17
Regeneration and Local Services,Economic Development and Housing,031576,B& B - Temp Accom,Supplies and Services,364320,Grants to Voluntary Organisations,07-Sep-2018,000007804842955,PREMIER INN,3811,Accommodation assistance,232.00,38.67,193.33
Adult and Health Services,Head of Adults,055643,Hawthorn House LD Respite Unit,Supplies and Services,324117,Provisions E324,07-Sep-2018,000007804842959,JR HOLLAND FOODSERVICE,5422,Catering costs - provisions,25.77,0.00,25.77
Adult and Health Services,Head of Adults,055643,Hawthorn House LD Respite Unit,Supplies and Services,324117,Provisions E324,07-Sep-2018,000007804842963,JR HOLLAND FOODSERVICE,5422,Catering costs - provisions,10.27,0.00,10.27
Adult and Health Services,Head of Adults,055643,Hawthorn House LD Respite Unit,Supplies and Services,324117,Provisions E324,07-Sep-2018,000007804842965,HOPWELLS LTD,5811,Catering costs - provisions,-17.92,0.00,-17.92
Regeneration and Local Services,Direct Services,010301,C&G - North Grounds Maintenance,Supplies and Services,304221,Equipment and Materials,07-Sep-2018,000007804842987,HARELAW SAWMILL,5211,Direct materials,268.81,44.80,224.01
Children and Young Peoples Services,Childrens Services Operational Support,052986,CYPS - Locality and Operational Support,Supplies and Services,304259,Equipment and Materials,07-Sep-2018,000007804842991,GATESHEAD COUNCIL MOTO,9399,Equipment-purchase and rental,18.00,0.00,18.00
Children and Young Peoples Services,"Head of Early Help, Inclusion and Vulnerable Children",074000,TTF-Attachment and Results,Supplies and Services,312011,Newspapers books and periodicals E312,07-Sep-2018,000007804843007,AMZN Mktp UK,5942,Books-school library,489.80,81.63,408.17
Regeneration and Local Services,Culture & Sport,054235,Bishop Auckland Town Hall Cafe,Supplies and Services,324117,Provisions E324,07-Sep-2018,000007804843039,HOPWELLS LTD,5811,Catering costs - provisions,70.36,0.00,70.36
Regeneration and Local Services,Direct Services,021324,Catering - Meadowfield,Supplies and Services,324117,Provisions E324,07-Sep-2018,000007804843053,HOPWELLS LTD,5811,Catering costs - provisions,48.07,0.00,48.07
Regeneration and Local Services,Direct Services,021324,Catering - Meadowfield,Supplies and Services,324117,Provisions E324,07-Sep-2018,000007804843057,JR HOLLAND FOODSERVICE,5422,Catering costs - provisions,22.54,0.00,22.54
Regeneration and Local Services,Direct Services,021324,Catering - Meadowfield,Supplies and Services,324117,Provisions E324,07-Sep-2018,000007804843061,JR HOLLAND FOODSERVICE,5422,Catering costs - provisions,9.90,0.00,9.90
Adult and Health Services,Head of Adults,055807,Newton Aycliffe Pathways,Premises,145015,Cleaning and Domestic Supplies,07-Sep-2018,000007804843247,WILKO RETAIL LIMIT,5722,Cleaning and domestic equipment,9.05,0.00,9.05
Adult and Health Services,Head of Adults,055807,Newton Aycliffe Pathways,Supplies and Services,304083,Equipment and Materials,07-Sep-2018,000007804843251,WILKO RETAIL LIMIT,5722,Catering equipment,4.00,0.00,4.00
Resources,Digital and Customer Services,069010,Administration,Supplies and Services,304999,Equipment and Materials,07-Sep-2018,000007804843281,HOO HOOTSUITE INC,5968,Misc equipment tools and materials,360.00,0.00,360.00
Regeneration and Local Services,Direct Services,021235,Catering - Wharton Park,Supplies and Services,324117,Provisions E324,07-Sep-2018,000007804843311,HOPWELLS LTD,5811,Catering costs - provisions,45.00,7.50,37.50
Regeneration and Local Services,Direct Services,021235,Catering - Wharton Park,Supplies and Services,324117,Provisions E324,07-Sep-2018,000007804843311 - 1,HOPWELLS LTD,5811,Catering costs - provisions,46.23,,46.23
Regeneration and Local Services,Spatial Policy Planning Assets & Environment,031071,Sustainability and Climate Change,Supplies and Services,304221,Equipment and Materials,07-Sep-2018,000007804843391,LANCHESTER GARDEN CENT,5261,Direct materials,41.05,0.00,41.05
Transformation and Partnerships,Partnerships & Community Engagement Div.,060472,Syrian Vulnerable Persons Scheme,Supplies and Services,308011,Furniture,07-Sep-2018,000007804843435,ASDA STORES LTD 4313,5411,Furniture repair and replacement,56.10,9.35,46.75
Regeneration and Local Services,Culture & Sport,011060,Hardwick Park Catering,Supplies and Services,324117,Provisions E324,07-Sep-2018,000007812616977,BATLEYS PERTH,5300,Catering costs - provisions,225.24,37.54,187.70
Regeneration and Local Services,Culture & Sport,011060,Hardwick Park Catering,Supplies and Services,324117,Provisions E324,07-Sep-2018,000007812616977 - 1,BATLEYS PERTH,5300,Catering costs - provisions,171.99,,171.99
Regeneration and Local Services,Culture & Sport,011060,Hardwick Park Catering,Supplies and Services,324117,Provisions E324,07-Sep-2018,000007812616983,BATLEYS PERTH,5300,Catering costs - provisions,-18.71,-3.12,-15.59
Regeneration and Local Services,Direct Services,010525,Catering - Green Lane,Supplies and Services,324117,Provisions E324,07-Sep-2018,000007812617073,BATLEYS PERTH,5300,Catering costs - provisions,160.74,26.79,133.95
Regeneration and Local Services,Direct Services,010525,Catering - Green Lane,Supplies and Services,324117,Provisions E324,07-Sep-2018,000007812617073 - 1,BATLEYS PERTH,5300,Catering costs - provisions,63.72,,63.72
Adult and Health Services,Head of Adults,055643,Hawthorn House LD Respite Unit,Supplies and Services,324117,Provisions E324,07-Sep-2018,000007812617185,BATLEYS PERTH,5300,Catering costs - provisions,38.16,6.36,31.80
Adult and Health Services,Head of Adults,055643,Hawthorn House LD Respite Unit,Supplies and Services,324117,Provisions E324,07-Sep-2018,000007812617185 - 1,BATLEYS PERTH,5300,Catering costs - provisions,123.33,,123.33
Children and Young Peoples Services,Head of Education and Skills,071801,Selby Cottage Childcare Centre,Supplies and Services,304259,Equipment and Materials,08-Sep-2018,000007804842041,ITUNES.COM/BILL,5735,Equipment-purchase and rental,5.92,0.00,5.92
Children and Young Peoples Services,Head of Education and Skills,071801,Selby Cottage Childcare Centre,Supplies and Services,304999,Equipment and Materials,08-Sep-2018,000007804842045,Amazon Prime,5968,Misc equipment tools and materials,7.99,0.00,7.99
Children and Young Peoples Services,Head of Childrens Social Care,085342,9 Cedar Drive Aycliffe,Supplies and Services,324117,Provisions E324,08-Sep-2018,000007804842151,TESCO STORES 2916,5411,Catering costs - provisions,44.83,0.00,44.83
Children and Young Peoples Services,"Head of Early Help, Inclusion and Vulnerable Children",085954,Walworth,Supplies and Services,324117,Provisions E324,08-Sep-2018,000007804842165,TESCO STORES 6329,5411,Catering costs - provisions,114.06,0.00,114.06
Children and Young Peoples Services,Head of Childrens Social Care,085380,Operations Manager Adoption & Fostering,Supplies and Services,312011,Newspapers books and periodicals E312,08-Sep-2018,000007804842275,AMZN Mktp UK,5942,Books-school library,6.30,0.00,6.30
Children and Young Peoples Services,Head of Education and Skills,070169,Durham SSP,Supplies and Services,384199,Miscellaneous Expenses,08-Sep-2018,000007804842293,MSFT <E01006IC6P>,5045,Other hired and contracted services,54.72,9.12,45.60
Children and Young Peoples Services,Head of Childrens Social Care,085511,Emergency Duty Team,Employees,040149,Recruitment Instruction and Training,08-Sep-2018,000007804842321,PREMIER INN,3811,Training-all costs,121.00,0.00,121.00
Children and Young Peoples Services,Head of Childrens Social Care,085352,Tow Law CU,Supplies and Services,304403,Equipment and Materials,08-Sep-2018,000007804842411,CEX,5065,Other consumables,39.50,0.00,39.50
Children and Young Peoples Services,Head of Childrens Social Care,085352,Tow Law CU,Supplies and Services,324117,Provisions E324,08-Sep-2018,000007804842415,WM MORRISON 058,5411,Catering costs - provisions,18.68,0.00,18.68
Children and Young Peoples Services,Head of Childrens Social Care,085352,Tow Law CU,Supplies and Services,304259,Equipment and Materials,08-Sep-2018,000007804842417,HMV RETAIL LTD,5735,Equipment-purchase and rental,40.05,0.00,40.05
Regeneration and Local Services,Culture & Sport,054813,Gala Theatre - Technical,Supplies and Services,312011,Newspapers books and periodicals E312,08-Sep-2018,000007804842537,Amazon.co.uk,5969,Books-school library,19.96,0.00,19.96
Regeneration and Local Services,Culture & Sport,054813,Gala Theatre - Technical,Supplies and Services,304221,Equipment and Materials,08-Sep-2018,000007804842543,B & Q 1221,5211,Direct materials,25.41,0.00,25.41
Regeneration and Local Services,Culture & Sport,054813,Gala Theatre - Technical,Supplies and Services,328041,Clothing uniforms and laundry E328,08-Sep-2018,000007804842545,TRUFFLESHUFFLE.COM,5651,Clothing uniforms and laundry,70.95,0.00,70.95
Children and Young Peoples Services,Head of Childrens Social Care,085341,High Etherley Satelite Home,Transport,215995,Running Costs of Vehicles,08-Sep-2018,000007804842811,SAINSBURYS PFS 1199,5541,Vehicle running expenses,36.30,0.00,36.30
Children and Young Peoples Services,Head of Childrens Social Care,085334,West Rainton Satelite Home,Supplies and Services,384999,Miscellaneous Expenses,08-Sep-2018,000007804842859,EMPIRE CINEMAS,7922,Other expenses,33.75,0.00,33.75
Regeneration and Local Services,Economic Development and Housing,031500,Housing Solutions - Core Team,Employees,040149,Recruitment Instruction and Training,08-Sep-2018,000007804842871,PREMIER INN,3811,Training-all costs,132.50,22.08,110.42
Regeneration and Local Services,Spatial Policy Planning Assets & Environment,031222,North Pennines Allen Valleys Landscape Partnership,Supplies and Services,348037,Subsistence E348,08-Sep-2018,000007804842969,GRAPE AND BEAN BIN21,5813,Subsistence,15.45,0.00,15.45
Regeneration and Local Services,Economic Development and Housing,030690,Durham Dales Centre - Tourist Information Centre,Supplies and Services,328041,Clothing uniforms and laundry E328,08-Sep-2018,000007812617221,WWW.AKHOSIERY.CO.UK,5621,Clothing uniforms and laundry,833.88,138.98,694.90
Dedicated Schools Grant,DSG High Needs Block,077099,Special General,Supplies and Services,312011,Newspapers books and periodicals E312,09-Sep-2018,000007804842065,Amazon.co.uk,5969,Books-school library,60.00,0.00,60.00
Children and Young Peoples Services,Head of Education and Skills,071903,EYDCP-Sustainability EDS,Supplies and Services,312011,Newspapers books and periodicals E312,09-Sep-2018,000007804842487,Amazon.co.uk,5969,Books-school library,32.78,0.00,32.78
Regeneration and Local Services,Culture & Sport,054813,Gala Theatre - Technical,Supplies and Services,304259,Equipment and Materials,09-Sep-2018,000007804842531,Prime Video,5735,Equipment-purchase and rental,7.99,0.00,7.99
Regeneration and Local Services,Culture & Sport,054813,Gala Theatre - Technical,Supplies and Services,304259,Equipment and Materials,09-Sep-2018,000007804842535,Prime Video,5735,Equipment-purchase and rental,4.49,0.00,4.49
Children and Young Peoples Services,"Head of Early Help, Inclusion and Vulnerable Children",074000,TTF-Attachment and Results,Supplies and Services,324117,Provisions E324,09-Sep-2018,000007804843011,ASDA GEORGE COM LEEDS,5411,Catering costs - provisions,-25.00,0.00,-25.00
Resources,Digital and Customer Services,069010,Administration,Supplies and Services,336005,Advertising E336,09-Sep-2018,000007804843285,FACEBK LCFLUFJ4B2,7311,Advertising other than for staff,500.00,0.00,500.00
Children and Young Peoples Services,Head of Childrens Social Care,085333,Coxhoe Satelite Home,Supplies and Services,312011,Newspapers books and periodicals E312,09-Sep-2018,000007812616609,PAYPAL WORLDBOOKSL,5942,Books-school library,3.97,0.00,3.97
Regeneration and Local Services,Spatial Policy Planning Assets & Environment,031200,North Pennines Core,Supplies and Services,348037,Subsistence E348,09-Sep-2018,000007812616995,BAR RISTORANTE PIZZERI,5812,Subsistence,5.37,0.00,5.37
Regeneration and Local Services,Spatial Policy Planning Assets & Environment,031200,North Pennines Core,Supplies and Services,348037,Subsistence E348,09-Sep-2018,000007812616999,RISTORANTE ANTICO FOCO,5812,Subsistence,31.35,0.00,31.35
Regeneration and Local Services,Spatial Policy Planning Assets & Environment,031200,North Pennines Core,Supplies and Services,352001,Conference Expenses,09-Sep-2018,000007812617001,HOTEL CIME D`ORO,7011,Conferencesseminars fees etc,295.58,0.00,295.58
Children and Young Peoples Services,Head of Education and Skills,071801,Selby Cottage Childcare Centre,Supplies and Services,312011,Newspapers books and periodicals E312,10-Sep-2018,000007812616423,HOME BARGAINS,5251,Books-school library,23.36,0.00,23.36
Children and Young Peoples Services,Head of Education and Skills,071801,Selby Cottage Childcare Centre,Supplies and Services,328041,Clothing uniforms and laundry E328,10-Sep-2018,000007812616427,B&M RETAIL,5310,Clothing uniforms and laundry,11.96,0.00,11.96
Resources,Digital and Customer Services,065461,Business Support,Supplies and Services,304259,Equipment and Materials,10-Sep-2018,000007812616431,PAYPAL JUYUANTECHN,5732,Equipment-purchase and rental,21.48,0.00,21.48
Children and Young Peoples Services,Head of Childrens Social Care,085342,9 Cedar Drive Aycliffe,Supplies and Services,324117,Provisions E324,10-Sep-2018,000007812616485,TESCO STORES 2916,5411,Catering costs - provisions,13.30,0.00,13.30
Children and Young Peoples Services,Head of Childrens Social Care,085342,9 Cedar Drive Aycliffe,Supplies and Services,324117,Provisions E324,10-Sep-2018,000007812616489,TESCO STORES 2916,5411,Catering costs - provisions,8.81,0.00,8.81
Children and Young Peoples Services,Head of Childrens Social Care,085342,9 Cedar Drive Aycliffe,Supplies and Services,304999,Equipment and Materials,10-Sep-2018,000007812616491,SUPERDRUG STORES PLC,5912,Misc equipment tools and materials,30.04,0.00,30.04
Children and Young Peoples Services,Head of Childrens Social Care,085342,9 Cedar Drive Aycliffe,Supplies and Services,304999,Equipment and Materials,10-Sep-2018,000007812616493,SUPERDRUG STORES PLC,5912,Misc equipment tools and materials,19.98,0.00,19.98
Children and Young Peoples Services,Head of Childrens Social Care,085342,9 Cedar Drive Aycliffe,Supplies and Services,304999,Equipment and Materials,10-Sep-2018,000007812616495,SUPERDRUG STORES PLC,5912,Misc equipment tools and materials,16.98,0.00,16.98
Children and Young Peoples Services,Head of Childrens Social Care,085342,9 Cedar Drive Aycliffe,Supplies and Services,304999,Equipment and Materials,10-Sep-2018,000007812616499,SUPERDRUG STORES PLC,5912,Misc equipment tools and materials,9.49,0.00,9.49
Children and Young Peoples Services,Head of Childrens Social Care,085342,9 Cedar Drive Aycliffe,Supplies and Services,324117,Provisions E324,10-Sep-2018,000007812616503,CO-OP GROUP FOOD,5411,Catering costs - provisions,3.94,0.00,3.94
Regeneration and Local Services,Economic Development and Housing,030699,Business Growth and Innovation General,Supplies and Services,304999,Equipment and Materials,10-Sep-2018,000007812616505,LINKEDIN-331 7936066,5968,Misc equipment tools and materials,12.80,0.00,12.80
Regeneration and Local Services,Direct Services,021242,Catering - County Hall,Supplies and Services,324117,Provisions E324,10-Sep-2018,000007812616533,WWW.ADELIEFOODS.CO.UK,5499,Catering costs - provisions,161.01,0.00,161.01
Regeneration and Local Services,Direct Services,021242,Catering - County Hall,Supplies and Services,324117,Provisions E324,10-Sep-2018,000007812616535,WWW.ADELIEFOODS.CO.UK,5499,Catering costs - provisions,136.94,0.00,136.94
Regeneration and Local Services,Direct Services,021242,Catering - County Hall,Supplies and Services,324117,Provisions E324,10-Sep-2018,000007812616537,WWW.ADELIEFOODS.CO.UK,5499,Catering costs - provisions,129.37,0.00,129.37
Regeneration and Local Services,Direct Services,021242,Catering - County Hall,Supplies and Services,324117,Provisions E324,10-Sep-2018,000007812616539,WWW.ADELIEFOODS.CO.UK,5499,Catering costs - provisions,115.06,0.00,115.06
Regeneration and Local Services,Direct Services,021242,Catering - County Hall,Supplies and Services,324117,Provisions E324,10-Sep-2018,000007812616543,WWW.ADELIEFOODS.CO.UK,5499,Catering costs - provisions,60.22,0.00,60.22
Regeneration and Local Services,Direct Services,021242,Catering - County Hall,Supplies and Services,324117,Provisions E324,10-Sep-2018,000007812616547,WWW.ADELIEFOODS.CO.UK,5499,Catering costs - provisions,52.93,0.00,52.93
Regeneration and Local Services,Direct Services,021242,Catering - County Hall,Supplies and Services,324117,Provisions E324,10-Sep-2018,000007812616551,WWW.ADELIEFOODS.CO.UK,5499,Catering costs - provisions,41.28,0.00,41.28
Regeneration and Local Services,Direct Services,021242,Catering - County Hall,Supplies and Services,324117,Provisions E324,10-Sep-2018,000007812616553,WWW.ADELIEFOODS.CO.UK,5499,Catering costs - provisions,25.24,0.00,25.24
Regeneration and Local Services,Direct Services,021242,Catering - County Hall,Supplies and Services,324117,Provisions E324,10-Sep-2018,000007812616555,JR HOLLAND FOODSERVICE,5422,Catering costs - provisions,278.86,0.00,278.86
Regeneration and Local Services,Direct Services,021242,Catering - County Hall,Supplies and Services,324117,Provisions E324,10-Sep-2018,000007812616557,JR HOLLAND FOODSERVICE,5422,Catering costs - provisions,6.94,0.00,6.94
Resources,Digital and Customer Services,065461,Business Support,Supplies and Services,372009,Subscriptions E372,10-Sep-2018,000007812616563,NOMINET UK,5734,Subscriptions 372009,54.00,9.00,45.00
Resources,Digital and Customer Services,065461,Business Support,Supplies and Services,372009,Subscriptions E372,10-Sep-2018,000007812616567,NOMINET UK,5734,Subscriptions 372009,49.50,8.25,41.25
Regeneration and Local Services,Economic Development and Housing,031576,B& B - Temp Accom,Supplies and Services,352001,Conference Expenses,10-Sep-2018,000007812616581,TRAVELODGE,3615,Conferencesseminars fees etc,184.00,30.67,153.33
Children and Young Peoples Services,Head of Childrens Social Care,085334,West Rainton Satelite Home,Supplies and Services,324117,Provisions E324,10-Sep-2018,000007812616657,TESCO STORES 2371,5411,Catering costs - provisions,29.59,0.00,29.59
Regeneration and Local Services,Direct Services,010551,Fleet - Chilton Fleet,Transport,215013,Running Costs of Vehicles,10-Sep-2018,000007812616663,DVLA VEHICLE TAX,9399,Vehicle Excise Duty (VED),252.50,0.00,252.50
Regeneration and Local Services,Direct Services,010900,Fleet - Meadowfield Fleet,Transport,215013,Running Costs of Vehicles,10-Sep-2018,000007812616667,DVLA VEHICLE TAX,9399,Vehicle Excise Duty (VED),167.50,0.00,167.50
Regeneration and Local Services,Direct Services,010900,Fleet - Meadowfield Fleet,Transport,215013,Running Costs of Vehicles,10-Sep-2018,000007812616671,DVLA VEHICLE TAX,9399,Vehicle Excise Duty (VED),252.50,0.00,252.50
Regeneration and Local Services,Direct Services,010561,Fleet - Morrison Busty Fleet,Transport,215013,Running Costs of Vehicles,10-Sep-2018,000007812616675,DVLA VEHICLE TAX,9399,Vehicle Excise Duty (VED),252.50,0.00,252.50
Regeneration and Local Services,Direct Services,010900,Fleet - Meadowfield Fleet,Transport,215013,Running Costs of Vehicles,10-Sep-2018,000007812616679,DVLA VEHICLE TAX,9399,Vehicle Excise Duty (VED),252.50,0.00,252.50
Regeneration and Local Services,Direct Services,010864,Fleet - Hackworth Road Fleet,Supplies and Services,304259,Equipment and Materials,10-Sep-2018,000007812616683,DVLA VEHICLE TAX,9399,Equipment-purchase and rental,252.50,0.00,252.50
Regeneration and Local Services,Direct Services,010864,Fleet - Hackworth Road Fleet,Transport,215013,Running Costs of Vehicles,10-Sep-2018,000007812616685,DVLA VEHICLE TAX,9399,Vehicle Excise Duty (VED),252.50,0.00,252.50
Regeneration and Local Services,Direct Services,010900,Fleet - Meadowfield Fleet,Transport,215013,Running Costs of Vehicles,10-Sep-2018,000007812616689,DVLA VEHICLE TAX,9399,Vehicle Excise Duty (VED),252.50,0.00,252.50
Regeneration and Local Services,Direct Services,010900,Fleet - Meadowfield Fleet,Transport,215013,Running Costs of Vehicles,10-Sep-2018,000007812616693,DVLA VEHICLE TAX,9399,Vehicle Excise Duty (VED),252.50,0.00,252.50
Regeneration and Local Services,Direct Services,010900,Fleet - Meadowfield Fleet,Transport,215013,Running Costs of Vehicles,10-Sep-2018,000007812616697,DVLA VEHICLE TAX,9399,Vehicle Excise Duty (VED),252.50,0.00,252.50
Regeneration and Local Services,Direct Services,010864,Fleet - Hackworth Road Fleet,Transport,215013,Running Costs of Vehicles,10-Sep-2018,000007812616699,DVLA VEHICLE TAX,9399,Vehicle Excise Duty (VED),252.50,0.00,252.50
Regeneration and Local Services,Direct Services,010561,Fleet - Morrison Busty Fleet,Transport,215013,Running Costs of Vehicles,10-Sep-2018,000007812616703,DVLA VEHICLE TAX,9399,Vehicle Excise Duty (VED),167.50,0.00,167.50
Regeneration and Local Services,Direct Services,010900,Fleet - Meadowfield Fleet,Transport,215013,Running Costs of Vehicles,10-Sep-2018,000007812616707,DVLA VEHICLE TAX,9399,Vehicle Excise Duty (VED),252.50,0.00,252.50
Regeneration and Local Services,Direct Services,010864,Fleet - Hackworth Road Fleet,Transport,215013,Running Costs of Vehicles,10-Sep-2018,000007812616711,DVLA VEHICLE TAX,9399,Vehicle Excise Duty (VED),252.50,0.00,252.50
Regeneration and Local Services,Direct Services,010900,Fleet - Meadowfield Fleet,Transport,215013,Running Costs of Vehicles,10-Sep-2018,000007812616715,DVLA VEHICLE TAX,9399,Vehicle Excise Duty (VED),252.50,0.00,252.50
Regeneration and Local Services,Direct Services,010900,Fleet - Meadowfield Fleet,Transport,215013,Running Costs of Vehicles,10-Sep-2018,000007812616719,DVLA VEHICLE TAX,9399,Vehicle Excise Duty (VED),252.50,0.00,252.50
Regeneration and Local Services,Direct Services,010900,Fleet - Meadowfield Fleet,Transport,215013,Running Costs of Vehicles,10-Sep-2018,000007812616721,DVLA VEHICLE TAX,9399,Vehicle Excise Duty (VED),252.50,0.00,252.50
Regeneration and Local Services,Direct Services,010561,Fleet - Morrison Busty Fleet,Transport,215013,Running Costs of Vehicles,10-Sep-2018,000007812616725,DVLA VEHICLE TAX,9399,Vehicle Excise Duty (VED),252.50,0.00,252.50
Regeneration and Local Services,Direct Services,010900,Fleet - Meadowfield Fleet,Transport,215013,Running Costs of Vehicles,10-Sep-2018,000007812616729,DVLA VEHICLE TAX,9399,Vehicle Excise Duty (VED),167.50,0.00,167.50
Regeneration and Local Services,Direct Services,010864,Fleet - Hackworth Road Fleet,Transport,215013,Running Costs of Vehicles,10-Sep-2018,000007812616733,DVLA VEHICLE TAX,9399,Vehicle Excise Duty (VED),167.50,0.00,167.50
Regeneration and Local Services,Direct Services,010900,Fleet - Meadowfield Fleet,Transport,215013,Running Costs of Vehicles,10-Sep-2018,000007812616735,DVLA VEHICLE TAX,9399,Vehicle Excise Duty (VED),252.50,0.00,252.50
Regeneration and Local Services,Direct Services,010551,Fleet - Chilton Fleet,Transport,215013,Running Costs of Vehicles,10-Sep-2018,000007812616739,DVLA VEHICLE TAX,9399,Vehicle Excise Duty (VED),252.50,0.00,252.50
Regeneration and Local Services,Direct Services,010900,Fleet - Meadowfield Fleet,Transport,215013,Running Costs of Vehicles,10-Sep-2018,000007812616743,DVLA VEHICLE TAX,9399,Vehicle Excise Duty (VED),252.50,0.00,252.50
Regeneration and Local Services,Direct Services,010900,Fleet - Meadowfield Fleet,Transport,215013,Running Costs of Vehicles,10-Sep-2018,000007812616747,DVLA VEHICLE TAX,9399,Vehicle Excise Duty (VED),252.50,0.00,252.50
Regeneration and Local Services,Direct Services,010551,Fleet - Chilton Fleet,Transport,215013,Running Costs of Vehicles,10-Sep-2018,000007812616751,DVLA VEHICLE TAX,9399,Vehicle Excise Duty (VED),252.50,0.00,252.50
Regeneration and Local Services,Direct Services,010900,Fleet - Meadowfield Fleet,Transport,215013,Running Costs of Vehicles,10-Sep-2018,000007812616755,DVLA VEHICLE TAX,9399,Vehicle Excise Duty (VED),252.50,0.00,252.50
Regeneration and Local Services,Direct Services,010561,Fleet - Morrison Busty Fleet,Transport,215013,Running Costs of Vehicles,10-Sep-2018,000007812616759,DVLA VEHICLE TAX,9399,Vehicle Excise Duty (VED),252.50,0.00,252.50
Regeneration and Local Services,Direct Services,010864,Fleet - Hackworth Road Fleet,Transport,215013,Running Costs of Vehicles,10-Sep-2018,000007812616763,DVLA VEHICLE TAX,9399,Vehicle Excise Duty (VED),167.50,0.00,167.50
Regeneration and Local Services,Direct Services,010900,Fleet - Meadowfield Fleet,Transport,215013,Running Costs of Vehicles,10-Sep-2018,000007812616767,DVLA VEHICLE TAX,9399,Vehicle Excise Duty (VED),252.50,0.00,252.50
Regeneration and Local Services,Direct Services,010561,Fleet - Morrison Busty Fleet,Transport,215013,Running Costs of Vehicles,10-Sep-2018,000007812616769,DVLA VEHICLE TAX,9399,Vehicle Excise Duty (VED),252.50,0.00,252.50
Regeneration and Local Services,Direct Services,010864,Fleet - Hackworth Road Fleet,Transport,215013,Running Costs of Vehicles,10-Sep-2018,000007812616773,DVLA VEHICLE TAX,9399,Vehicle Excise Duty (VED),167.50,0.00,167.50
Regeneration and Local Services,Direct Services,010864,Fleet - Hackworth Road Fleet,Transport,215013,Running Costs of Vehicles,10-Sep-2018,000007812616777,DVLA VEHICLE TAX,9399,Vehicle Excise Duty (VED),167.50,0.00,167.50
Regeneration and Local Services,Direct Services,010561,Fleet - Morrison Busty Fleet,Transport,215013,Running Costs of Vehicles,10-Sep-2018,000007812616781,DVLA VEHICLE TAX,9399,Vehicle Excise Duty (VED),252.50,0.00,252.50
Regeneration and Local Services,Direct Services,010900,Fleet - Meadowfield Fleet,Transport,215013,Running Costs of Vehicles,10-Sep-2018,000007812616785,DVLA VEHICLE TAX,9399,Vehicle Excise Duty (VED),252.50,0.00,252.50
Regeneration and Local Services,Direct Services,010900,Fleet - Meadowfield Fleet,Transport,215013,Running Costs of Vehicles,10-Sep-2018,000007812616789,DVLA VEHICLE TAX,9399,Vehicle Excise Duty (VED),252.50,0.00,252.50
Regeneration and Local Services,Direct Services,010900,Fleet - Meadowfield Fleet,Transport,215013,Running Costs of Vehicles,10-Sep-2018,000007812616793,DVLA VEHICLE TAX,9399,Vehicle Excise Duty (VED),252.50,0.00,252.50
Regeneration and Local Services,Direct Services,010900,Fleet - Meadowfield Fleet,Transport,215013,Running Costs of Vehicles,10-Sep-2018,000007812616797,DVLA VEHICLE TAX,9399,Vehicle Excise Duty (VED),252.50,0.00,252.50
Regeneration and Local Services,Direct Services,010864,Fleet - Hackworth Road Fleet,Transport,215013,Running Costs of Vehicles,10-Sep-2018,000007812616801,DVLA VEHICLE TAX,9399,Vehicle Excise Duty (VED),252.50,0.00,252.50
Regeneration and Local Services,Business Support,010832,Business Support,Transport,215013,Running Costs of Vehicles,10-Sep-2018,000007812616803,DVLA VEHICLE TAX,9399,Vehicle Excise Duty (VED),252.50,0.00,252.50
Regeneration and Local Services,Direct Services,010900,Fleet - Meadowfield Fleet,Transport,215013,Running Costs of Vehicles,10-Sep-2018,000007812616807,DVLA VEHICLE TAX,9399,Vehicle Excise Duty (VED),252.50,0.00,252.50
Regeneration and Local Services,Direct Services,010864,Fleet - Hackworth Road Fleet,Transport,215013,Running Costs of Vehicles,10-Sep-2018,000007812616811,DVLA VEHICLE TAX,9399,Vehicle Excise Duty (VED),252.50,0.00,252.50
Regeneration and Local Services,Direct Services,010900,Fleet - Meadowfield Fleet,Transport,215013,Running Costs of Vehicles,10-Sep-2018,000007812616815,DVLA VEHICLE TAX,9399,Vehicle Excise Duty (VED),252.50,0.00,252.50
Regeneration and Local Services,Direct Services,010900,Fleet - Meadowfield Fleet,Transport,215013,Running Costs of Vehicles,10-Sep-2018,000007812616819,DVLA VEHICLE TAX,9399,Vehicle Excise Duty (VED),252.50,0.00,252.50
Children and Young Peoples Services,Childrens Services Operational Support,052986,CYPS - Locality and Operational Support,Supplies and Services,312011,Newspapers books and periodicals E312,10-Sep-2018,000007812616853,HOME BARGAINS,5251,Books-school library,8.40,0.00,8.40
Children and Young Peoples Services,Head of Education and Skills,071732,Dean Bank Childcare,Supplies and Services,324117,Provisions E324,10-Sep-2018,000007812616867,SAINSBURYS SACAT (2303,5411,Catering costs - provisions,18.05,0.00,18.05
Regeneration and Local Services,Culture & Sport,054813,Gala Theatre - Technical,Supplies and Services,312011,Newspapers books and periodicals E312,10-Sep-2018,000007812616941,AMZN Mktp UK,5942,Books-school library,41.90,0.00,41.90
Regeneration and Local Services,Culture & Sport,054813,Gala Theatre - Technical,Supplies and Services,312011,Newspapers books and periodicals E312,10-Sep-2018,000007812616943,AMZN Mktp UK,5942,Books-school library,34.96,0.00,34.96
Regeneration and Local Services,Culture & Sport,054813,Gala Theatre - Technical,Supplies and Services,312011,Newspapers books and periodicals E312,10-Sep-2018,000007812616947,Amazon.co.uk,5969,Books-school library,13.00,0.00,13.00
Regeneration and Local Services,Culture & Sport,054813,Gala Theatre - Technical,Supplies and Services,312011,Newspapers books and periodicals E312,10-Sep-2018,000007812616949,Amazon.co.uk,5969,Books-school library,68.45,0.00,68.45
Regeneration and Local Services,Culture & Sport,054813,Gala Theatre - Technical,Supplies and Services,324117,Provisions E324,10-Sep-2018,000007812616953,TESCO STORES 2971,5411,Catering costs - provisions,73.30,0.00,73.30
Regeneration and Local Services,Culture & Sport,011060,Hardwick Park Catering,Supplies and Services,324117,Provisions E324,10-Sep-2018,000007812616973,JR HOLLAND FOODSERVICE,5422,Catering costs - provisions,39.06,0.00,39.06
Regeneration and Local Services,Economic Development and Housing,030757,Interserve/Skills Support for the Unemployed,Employees,040149,Recruitment Instruction and Training,10-Sep-2018,000007812617025,WWW.CSKILLS.ORG,8249,Training-all costs,36.00,6.00,30.00
Regeneration and Local Services,Culture & Sport,026591,Hardwick Park,Supplies and Services,304999,Equipment and Materials,10-Sep-2018,000007812617029,J G PAXTON SONS,5072,Misc equipment tools and materials,67.20,0.00,67.20
Regeneration and Local Services,Direct Services,021234,Catering - Locomotion,Supplies and Services,324117,Provisions E324,10-Sep-2018,000007812617043,WWW.ADELIEFOODS.CO.UK,5499,Catering costs - provisions,193.24,0.00,193.24
Regeneration and Local Services,Direct Services,021234,Catering - Locomotion,Supplies and Services,324117,Provisions E324,10-Sep-2018,000007812617045,WWW.ADELIEFOODS.CO.UK,5499,Catering costs - provisions,92.89,0.00,92.89
Regeneration and Local Services,Direct Services,021234,Catering - Locomotion,Supplies and Services,324117,Provisions E324,10-Sep-2018,000007812617047,WWW.ADELIEFOODS.CO.UK,5499,Catering costs - provisions,87.57,0.00,87.57
Regeneration and Local Services,Direct Services,021234,Catering - Locomotion,Supplies and Services,324117,Provisions E324,10-Sep-2018,000007812617051,WWW.ADELIEFOODS.CO.UK,5499,Catering costs - provisions,86.11,0.00,86.11
Regeneration and Local Services,Direct Services,021234,Catering - Locomotion,Supplies and Services,324117,Provisions E324,10-Sep-2018,000007812617053,WWW.ADELIEFOODS.CO.UK,5499,Catering costs - provisions,77.26,0.00,77.26
Regeneration and Local Services,Direct Services,021234,Catering - Locomotion,Supplies and Services,324117,Provisions E324,10-Sep-2018,000007812617055,WWW.ADELIEFOODS.CO.UK,5499,Catering costs - provisions,62.02,0.00,62.02
Regeneration and Local Services,Direct Services,021234,Catering - Locomotion,Supplies and Services,324117,Provisions E324,10-Sep-2018,000007812617057,WWW.ADELIEFOODS.CO.UK,5499,Catering costs - provisions,50.93,0.00,50.93
Children and Young Peoples Services,"Head of Early Help, Inclusion and Vulnerable Children",085957,Secure Management,Supplies and Services,304259,Equipment and Materials,10-Sep-2018,000007812617061,ARGOS RETAIL GROUP,5310,Equipment-purchase and rental,129.90,0.00,129.90
Regeneration and Local Services,Direct Services,010525,Catering - Green Lane,Supplies and Services,324117,Provisions E324,10-Sep-2018,000007812617069,WWW.ADELIEFOODS.CO.UK,5499,Catering costs - provisions,36.82,0.00,36.82
Children and Young Peoples Services,Head of Childrens Social Care,085352,Tow Law CU,Supplies and Services,304259,Equipment and Materials,10-Sep-2018,000007812617081,DISCLOSURE & BARRING,9399,Equipment-purchase and rental,13.00,0.00,13.00
Children and Young Peoples Services,Head of Childrens Social Care,085352,Tow Law CU,Supplies and Services,324117,Provisions E324,10-Sep-2018,000007812617085,MARKS&SPENCER PLC SF,5411,Catering costs - provisions,14.95,0.00,14.95
Regeneration and Local Services,Economic Development and Housing,031500,Housing Solutions - Core Team,Supplies and Services,352001,Conference Expenses,10-Sep-2018,000007812617115,HOTEL 52,7011,Conferencesseminars fees etc,340.00,0.00,340.00
Children and Young Peoples Services,Head of Childrens Social Care,085341,High Etherley Satelite Home,Supplies and Services,324117,Provisions E324,10-Sep-2018,000007812617127,TESCO STORES 6329,5411,Catering costs - provisions,94.33,0.00,94.33
Children and Young Peoples Services,Head of Childrens Social Care,085333,Coxhoe Satelite Home,Supplies and Services,324117,Provisions E324,10-Sep-2018,000007812617147,ALDI 12 774,5411,Catering costs - provisions,34.22,0.00,34.22
Children and Young Peoples Services,Head of Childrens Social Care,085380,Operations Manager Adoption & Fostering,Supplies and Services,324117,Provisions E324,10-Sep-2018,000007812617193,ASDA STORES,5411,Catering costs - provisions,37.55,0.00,37.55
Regeneration and Local Services,Direct Services,010301,C&G - North Grounds Maintenance,Supplies and Services,304221,Equipment and Materials,10-Sep-2018,000007812617201,HEXHAM MACHINERY CENTR,5261,Direct materials,71.28,11.88,59.40
Children and Young Peoples Services,"Head of Early Help, Inclusion and Vulnerable Children",085954,Walworth,Supplies and Services,384999,Miscellaneous Expenses,10-Sep-2018,000007812617203,ARGOS RETAIL GROUP,5310,Other expenses,152.98,0.00,152.98
Regeneration and Local Services,Economic Development and Housing,030690,Durham Dales Centre - Tourist Information Centre,Supplies and Services,384999,Miscellaneous Expenses,10-Sep-2018,000007812617223,GAINSBOROUGH GIFTWARE,5950,Other expenses,827.60,137.93,689.67
Regeneration and Local Services,Economic Development and Housing,030690,Durham Dales Centre - Tourist Information Centre,Supplies and Services,324117,Provisions E324,10-Sep-2018,000007812617227,LS BAGS,5300,Catering costs - provisions,256.62,42.77,213.85
Regeneration and Local Services,Culture & Sport,026591,Hardwick Park,Supplies and Services,332047,Printing Stationery and Gen Off Exps,10-Sep-2018,000007812617231,Amazon.co.uk,5969,Stationery,14.82,2.47,12.35
Regeneration and Local Services,Culture & Sport,026591,Hardwick Park,Supplies and Services,332047,Printing Stationery and Gen Off Exps,10-Sep-2018,000007812617231 - 1,Amazon.co.uk,5969,Stationery,10.12,,10.12
Regeneration and Local Services,Direct Services,010301,C&G - North Grounds Maintenance,Supplies and Services,304221,Equipment and Materials,10-Sep-2018,000007812617241,B & Q 1343,5211,Direct materials,100.00,16.67,83.33
Regeneration and Local Services,Culture & Sport,054233,Bishop Auckland Town Hall Library,Supplies and Services,324117,Provisions E324,10-Sep-2018,000007812617295,HERON FOODS LTD,5499,Catering costs - provisions,4.76,0.00,4.76
Regeneration and Local Services,Culture & Sport,054233,Bishop Auckland Town Hall Library,Employees,040149,Recruitment Instruction and Training,10-Sep-2018,000007812617297,WWW.FILMBANK.CO.UK,7829,Training-all costs,99.60,0.00,99.60
Children and Young Peoples Services,Head of Childrens Social Care,085331,New Lea Childrens Home,Supplies and Services,304259,Equipment and Materials,10-Sep-2018,000007812617313,DISCLOSURE & BARRING,9399,Equipment-purchase and rental,13.00,0.00,13.00
Adult and Health Services,Head of Adults,055309,Peterlee Pathways,Supplies and Services,324117,Provisions E324,10-Sep-2018,000007812617355,LIDL UK PETERLEE,5411,Catering costs - provisions,3.05,0.00,3.05
Regeneration and Local Services,Culture & Sport,054812,Gala Theatre - Catering etc,Supplies and Services,324117,Provisions E324,10-Sep-2018,000007816760165,BATLEYS PERTH,5300,Catering costs - provisions,48.00,8.00,40.00
Regeneration and Local Services,Culture & Sport,054812,Gala Theatre - Catering etc,Supplies and Services,324117,Provisions E324,10-Sep-2018,000007816760165 - 1,BATLEYS PERTH,5300,Catering costs - provisions,113.13,,113.13
Children and Young Peoples Services,Head of Education and Skills,071732,Dean Bank Childcare,Supplies and Services,324117,Provisions E324,10-Sep-2018,000007816760375,ASDA GROCERIES ONLINE,5411,Catering costs - provisions,60.78,0.00,60.78
Regeneration and Local Services,Culture & Sport,054813,Gala Theatre - Technical,Supplies and Services,312011,Newspapers books and periodicals E312,10-Sep-2018,000007816760483,AMZN MKTP UK AMAZON.CO,5942,Books-school library,8.99,0.00,8.99
Regeneration and Local Services,Culture & Sport,011060,Hardwick Park Catering,Supplies and Services,324117,Provisions E324,10-Sep-2018,000007816760513,BATLEYS PERTH,5300,Catering costs - provisions,-47.51,0.00,-47.51
Regeneration and Local Services,Economic Development and Housing,031500,Housing Solutions - Core Team,Employees,040149,Recruitment Instruction and Training,10-Sep-2018,000007816760829,PREMIER INN,3811,Training-all costs,287.00,47.83,239.17
Regeneration and Local Services,Direct Services,021235,Catering - Wharton Park,Supplies and Services,324117,Provisions E324,10-Sep-2018,000007816761053,BATLEYS PERTH,5300,Catering costs - provisions,101.82,16.97,84.85
Regeneration and Local Services,Direct Services,021235,Catering - Wharton Park,Supplies and Services,324117,Provisions E324,10-Sep-2018,000007816761053 - 1,BATLEYS PERTH,5300,Catering costs - provisions,14.42,,14.42
Regeneration and Local Services,Spatial Policy Planning Assets & Environment,031200,North Pennines Core,Supplies and Services,348037,Subsistence E348,11-Sep-2018,000007812617003,BAR RISTORANTE PIZZERI,5812,Subsistence,0.15,0.00,0.15
Regeneration and Local Services,Spatial Policy Planning Assets & Environment,031200,North Pennines Core,Supplies and Services,348037,Subsistence E348,11-Sep-2018,000007812617007,RISTORANTE ANTICO FOCO,5812,Subsistence,0.86,0.00,0.86
Regeneration and Local Services,Spatial Policy Planning Assets & Environment,031200,North Pennines Core,Supplies and Services,352001,Conference Expenses,11-Sep-2018,000007812617009,HOTEL CIME D`ORO,7011,Conferencesseminars fees etc,8.13,0.00,8.13
Children and Young Peoples Services,Head of Education and Skills,071801,Selby Cottage Childcare Centre,Supplies and Services,324117,Provisions E324,11-Sep-2018,000007816759897,ASDA GROCERIES ONLINE,5411,Catering costs - provisions,96.35,0.00,96.35
Children and Young Peoples Services,Head of Education and Skills,054640,Durham Learning Resources,Supplies and Services,304245,Equipment and Materials,11-Sep-2018,000007816759905,AMZ Fruit Salad Retro,5999,Materials,-29.28,0.00,-29.28
Resources,Digital and Customer Services,065461,Business Support,Supplies and Services,312011,Newspapers books and periodicals E312,11-Sep-2018,000007816759911,AMZN Mktp UK,5942,Books-school library,84.95,14.16,70.79
Children and Young Peoples Services,Head of Childrens Social Care,085342,9 Cedar Drive Aycliffe,Supplies and Services,304403,Equipment and Materials,11-Sep-2018,000007816759985,CARD FACTORY,5947,Other consumables,11.39,0.00,11.39
Children and Young Peoples Services,Head of Childrens Social Care,085342,9 Cedar Drive Aycliffe,Supplies and Services,304403,Equipment and Materials,11-Sep-2018,000007816759989,CARD FACTORY,5947,Other consumables,5.46,0.00,5.46
Children and Young Peoples Services,"Head of Early Help, Inclusion and Vulnerable Children",085957,Secure Management,Supplies and Services,384999,Miscellaneous Expenses,11-Sep-2018,000007816759993,AMZN Mktp UK,5942,Other expenses,14.98,0.00,14.98
Children and Young Peoples Services,"Head of Early Help, Inclusion and Vulnerable Children",085956,Lumley,Supplies and Services,324117,Provisions E324,11-Sep-2018,000007816759997,WILKO.COM,5399,Catering costs - provisions,22.00,0.00,22.00
Children and Young Peoples Services,"Head of Early Help, Inclusion and Vulnerable Children",085957,Secure Management,Supplies and Services,384999,Miscellaneous Expenses,11-Sep-2018,000007816760001,AMZN Mktp UK,5942,Other expenses,51.95,0.00,51.95
Children and Young Peoples Services,Head of Childrens Social Care,085332,Middlestone Moor CU,Supplies and Services,328041,Clothing uniforms and laundry E328,11-Sep-2018,000007816760013,WWW.EMBLEMATIC.CO.UK,5611,Clothing uniforms and laundry,-53.90,0.00,-53.90
Children and Young Peoples Services,"Head of Early Help, Inclusion and Vulnerable Children",071440,Barnard Castle One Point Hub,Supplies and Services,328041,Clothing uniforms and laundry E328,11-Sep-2018,000007816760087,ARGOS RETAIL GROUP,5310,Clothing uniforms and laundry,15.00,0.00,15.00
Regeneration and Local Services,Direct Services,021242,Catering - County Hall,Supplies and Services,324117,Provisions E324,11-Sep-2018,000007816760095,FREEMAN CATERING BUTCH,5422,Catering costs - provisions,202.80,0.00,202.80
Regeneration and Local Services,Direct Services,021242,Catering - County Hall,Supplies and Services,324117,Provisions E324,11-Sep-2018,000007816760101,JR HOLLAND FOODSERVICE,5422,Catering costs - provisions,72.03,0.00,72.03
Regeneration and Local Services,Direct Services,021242,Catering - County Hall,Supplies and Services,324117,Provisions E324,11-Sep-2018,000007816760105,JR HOLLAND FOODSERVICE,5422,Catering costs - provisions,54.52,0.00,54.52
Regeneration and Local Services,Direct Services,021242,Catering - County Hall,Supplies and Services,324117,Provisions E324,11-Sep-2018,000007816760111,JR HOLLAND FOODSERVICE,5422,Catering costs - provisions,6.94,0.00,6.94
Regeneration and Local Services,Direct Services,021242,Catering - County Hall,Supplies and Services,324117,Provisions E324,11-Sep-2018,000007816760115,JR HOLLAND FOODSERVICE,5422,Catering costs - provisions,6.60,0.00,6.60
Regeneration and Local Services,Direct Services,021242,Catering - County Hall,Supplies and Services,324117,Provisions E324,11-Sep-2018,000007816760119,JR HOLLAND FOODSERVICE,5422,Catering costs - provisions,-6.60,0.00,-6.60
Regeneration and Local Services,Direct Services,021242,Catering - County Hall,Supplies and Services,324117,Provisions E324,11-Sep-2018,000007816760125,JR HOLLAND FOODSERVICE,5422,Catering costs - provisions,-190.65,0.00,-190.65
Children and Young Peoples Services,Head of Education and Skills,070169,Durham SSP,Supplies and Services,384199,Miscellaneous Expenses,11-Sep-2018,000007816760147,B & M RETAIL,5310,Other hired and contracted services,38.87,0.00,38.87
Regeneration and Local Services,Culture & Sport,054812,Gala Theatre - Catering etc,Supplies and Services,324117,Provisions E324,11-Sep-2018,000007816760153,FREEMAN CATERING BUTCH,5422,Catering costs - provisions,16.20,0.00,16.20
Regeneration and Local Services,Culture & Sport,054812,Gala Theatre - Catering etc,Supplies and Services,324117,Provisions E324,11-Sep-2018,000007816760161,JR HOLLAND FOODSERVICE,5422,Catering costs - provisions,24.62,0.00,24.62
Regeneration and Local Services,Direct Services,010551,Fleet - Chilton Fleet,Transport,215013,Running Costs of Vehicles,11-Sep-2018,000007816760261,DVLA VEHICLE TAX,9399,Vehicle Excise Duty (VED),252.50,0.00,252.50
Regeneration and Local Services,Direct Services,010864,Fleet - Hackworth Road Fleet,Transport,215013,Running Costs of Vehicles,11-Sep-2018,000007816760265,DVLA VEHICLE TAX,9399,Vehicle Excise Duty (VED),252.50,0.00,252.50
Regeneration and Local Services,Direct Services,010561,Fleet - Morrison Busty Fleet,Transport,215013,Running Costs of Vehicles,11-Sep-2018,000007816760269,DVLA VEHICLE TAX,9399,Vehicle Excise Duty (VED),252.50,0.00,252.50
Regeneration and Local Services,Direct Services,010900,Fleet - Meadowfield Fleet,Transport,215013,Running Costs of Vehicles,11-Sep-2018,000007816760273,DVLA VEHICLE TAX,9399,Vehicle Excise Duty (VED),252.50,0.00,252.50
Regeneration and Local Services,Direct Services,010900,Fleet - Meadowfield Fleet,Transport,215013,Running Costs of Vehicles,11-Sep-2018,000007816760275,DVLA VEHICLE TAX,9399,Vehicle Excise Duty (VED),252.50,0.00,252.50
Regeneration and Local Services,Direct Services,010551,Fleet - Chilton Fleet,Transport,215013,Running Costs of Vehicles,11-Sep-2018,000007816760281,DVLA VEHICLE TAX,9399,Vehicle Excise Duty (VED),252.50,0.00,252.50
Regeneration and Local Services,Direct Services,010900,Fleet - Meadowfield Fleet,Transport,215013,Running Costs of Vehicles,11-Sep-2018,000007816760283,DVLA VEHICLE TAX,9399,Vehicle Excise Duty (VED),252.50,0.00,252.50
Regeneration and Local Services,Direct Services,010900,Fleet - Meadowfield Fleet,Transport,215013,Running Costs of Vehicles,11-Sep-2018,000007816760287,DVLA VEHICLE TAX,9399,Vehicle Excise Duty (VED),252.50,0.00,252.50
Regeneration and Local Services,Direct Services,010561,Fleet - Morrison Busty Fleet,Transport,215013,Running Costs of Vehicles,11-Sep-2018,000007816760291,DVLA VEHICLE TAX,9399,Vehicle Excise Duty (VED),252.50,0.00,252.50
Regeneration and Local Services,Direct Services,010551,Fleet - Chilton Fleet,Transport,215013,Running Costs of Vehicles,11-Sep-2018,000007816760293,DVLA VEHICLE TAX,9399,Vehicle Excise Duty (VED),252.50,0.00,252.50
Regeneration and Local Services,Direct Services,010900,Fleet - Meadowfield Fleet,Transport,215013,Running Costs of Vehicles,11-Sep-2018,000007816760297,DVLA VEHICLE TAX,9399,Vehicle Excise Duty (VED),252.50,0.00,252.50
Regeneration and Local Services,Direct Services,010551,Fleet - Chilton Fleet,Transport,215013,Running Costs of Vehicles,11-Sep-2018,000007816760301,DVLA VEHICLE TAX,9399,Vehicle Excise Duty (VED),652.50,0.00,652.50
Regeneration and Local Services,Direct Services,010864,Fleet - Hackworth Road Fleet,Transport,215013,Running Costs of Vehicles,11-Sep-2018,000007816760303,DVLA VEHICLE TAX,9399,Vehicle Excise Duty (VED),652.50,0.00,652.50
Regeneration and Local Services,Direct Services,010551,Fleet - Chilton Fleet,Transport,215013,Running Costs of Vehicles,11-Sep-2018,000007816760309,DVLA VEHICLE TAX,9399,Vehicle Excise Duty (VED),252.50,0.00,252.50
Regeneration and Local Services,Direct Services,010864,Fleet - Hackworth Road Fleet,Transport,215013,Running Costs of Vehicles,11-Sep-2018,000007816760313,DVLA VEHICLE TAX,9399,Vehicle Excise Duty (VED),652.50,0.00,652.50
Regeneration and Local Services,Direct Services,010561,Fleet - Morrison Busty Fleet,Transport,215013,Running Costs of Vehicles,11-Sep-2018,000007816760315,DVLA VEHICLE TAX,9399,Vehicle Excise Duty (VED),252.50,0.00,252.50
Regeneration and Local Services,Direct Services,010864,Fleet - Hackworth Road Fleet,Transport,215013,Running Costs of Vehicles,11-Sep-2018,000007816760321,DVLA VEHICLE TAX,9399,Vehicle Excise Duty (VED),652.50,0.00,652.50
Regeneration and Local Services,Direct Services,010864,Fleet - Hackworth Road Fleet,Transport,215013,Running Costs of Vehicles,11-Sep-2018,000007816760323,DVLA VEHICLE TAX,9399,Vehicle Excise Duty (VED),652.50,0.00,652.50
Regeneration and Local Services,Direct Services,010900,Fleet - Meadowfield Fleet,Transport,215013,Running Costs of Vehicles,11-Sep-2018,000007816760327,DVLA VEHICLE TAX,9399,Vehicle Excise Duty (VED),252.50,0.00,252.50
Regeneration and Local Services,Direct Services,010864,Fleet - Hackworth Road Fleet,Transport,215013,Running Costs of Vehicles,11-Sep-2018,000007816760331,DVLA VEHICLE TAX,9399,Vehicle Excise Duty (VED),652.50,0.00,652.50
Regeneration and Local Services,Direct Services,010900,Fleet - Meadowfield Fleet,Transport,215013,Running Costs of Vehicles,11-Sep-2018,000007816760335,DVLA VEHICLE TAX,9399,Vehicle Excise Duty (VED),652.50,0.00,652.50
Regeneration and Local Services,Direct Services,010561,Fleet - Morrison Busty Fleet,Transport,215013,Running Costs of Vehicles,11-Sep-2018,000007816760339,DVLA VEHICLE TAX,9399,Vehicle Excise Duty (VED),252.50,0.00,252.50
Regeneration and Local Services,Culture & Sport,054813,Gala Theatre - Technical,Supplies and Services,304221,Equipment and Materials,11-Sep-2018,000007816760389,SCREWFIX DIRECT,5211,Direct materials,66.56,0.00,66.56
Children and Young Peoples Services,Head of Childrens Social Care,071448,Newton Aycliffe One Point Hub,Supplies and Services,304259,Equipment and Materials,11-Sep-2018,000007816760461,MIDDLESBROUGH COUNCIL,9399,Equipment-purchase and rental,12.00,0.00,12.00
Regeneration and Local Services,Direct Services,010367,C&G - South Grounds Maintenance,Supplies and Services,304221,Equipment and Materials,11-Sep-2018,000007816760491,SCREWFIX PETERLEE,5211,Direct materials,247.58,41.26,206.32
Regeneration and Local Services,Culture & Sport,011060,Hardwick Park Catering,Supplies and Services,324117,Provisions E324,11-Sep-2018,000007816760497,FREEMAN CATERING BUTCH,5422,Catering costs - provisions,50.46,0.00,50.46
Regeneration and Local Services,Culture & Sport,011060,Hardwick Park Catering,Supplies and Services,324117,Provisions E324,11-Sep-2018,000007816760499,FREEMAN CATERING BUTCH,5422,Catering costs - provisions,37.76,0.00,37.76
Regeneration and Local Services,Culture & Sport,011060,Hardwick Park Catering,Supplies and Services,324117,Provisions E324,11-Sep-2018,000007816760505,FREEMAN CATERING BUTCH,5422,Catering costs - provisions,31.64,0.00,31.64
Regeneration and Local Services,Culture & Sport,011060,Hardwick Park Catering,Supplies and Services,324117,Provisions E324,11-Sep-2018,000007816760507,JR HOLLAND FOODSERVICE,5422,Catering costs - provisions,41.38,0.00,41.38
Regeneration and Local Services,Direct Services,021234,Catering - Locomotion,Supplies and Services,324117,Provisions E324,11-Sep-2018,000007816760533,FREEMAN CATERING BUTCH,5422,Catering costs - provisions,80.18,0.00,80.18
Regeneration and Local Services,Direct Services,021234,Catering - Locomotion,Supplies and Services,324117,Provisions E324,11-Sep-2018,000007816760537,FREEMAN CATERING BUTCH,5422,Catering costs - provisions,38.56,0.00,38.56
Regeneration and Local Services,Direct Services,021234,Catering - Locomotion,Supplies and Services,324117,Provisions E324,11-Sep-2018,000007816760539,JR HOLLAND FOODSERVICE,5422,Catering costs - provisions,91.19,0.00,91.19
Regeneration and Local Services,Direct Services,021234,Catering - Locomotion,Supplies and Services,324117,Provisions E324,11-Sep-2018,000007816760545,JR HOLLAND FOODSERVICE,5422,Catering costs - provisions,40.33,0.00,40.33
Children and Young Peoples Services,"Head of Early Help, Inclusion and Vulnerable Children",085952,Secure Education,Supplies and Services,324117,Provisions E324,11-Sep-2018,000007816760551,TESCO STORES 6329,5411,Catering costs - provisions,292.10,0.00,292.10
Resources,Corporate Finance & Commercial Services,069800,Corporate Procurement,Employees,040149,Recruitment Instruction and Training,11-Sep-2018,000007816760563,WWW.CIPS.ORG,8699,Training-all costs,105.00,0.00,105.00
Regeneration and Local Services,Direct Services,010525,Catering - Green Lane,Supplies and Services,324117,Provisions E324,11-Sep-2018,000007816760577,FREEMAN CATERING BUTCH,5422,Catering costs - provisions,40.58,0.00,40.58
Regeneration and Local Services,Direct Services,010525,Catering - Green Lane,Supplies and Services,324117,Provisions E324,11-Sep-2018,000007816760579,FREEMAN CATERING BUTCH,5422,Catering costs - provisions,40.48,0.00,40.48
Children and Young Peoples Services,Head of Childrens Social Care,085352,Tow Law CU,Supplies and Services,324117,Provisions E324,11-Sep-2018,000007816760609,TESCO STORES 2371,5411,Catering costs - provisions,204.00,0.00,204.00
Regeneration and Local Services,Economic Development and Housing,031500,Housing Solutions - Core Team,Supplies and Services,304403,Equipment and Materials,11-Sep-2018,000007816760631,WWW.VOUCHEREXPRESS.CO.,5947,Other consumables,70.00,0.00,70.00
Regeneration and Local Services,Economic Development and Housing,031500,Housing Solutions - Core Team,Supplies and Services,328041,Clothing uniforms and laundry E328,11-Sep-2018,000007816760633,ARGOS RETAIL GROUP,5310,Clothing uniforms and laundry,24.00,0.00,24.00
Children and Young Peoples Services,Head of Childrens Social Care,085333,Coxhoe Satelite Home,Supplies and Services,324117,Provisions E324,11-Sep-2018,000007816760689,TESCO STORES 2916,5411,Catering costs - provisions,38.21,0.00,38.21
Children and Young Peoples Services,Head of Childrens Social Care,085333,Coxhoe Satelite Home,Supplies and Services,324117,Provisions E324,11-Sep-2018,000007816760693,TESCO STORES 2916,5411,Catering costs - provisions,6.50,0.00,6.50
Regeneration and Local Services,Direct Services,030691,"Catering - Durham Dales Centre			",Supplies and Services,324117,Provisions E324,11-Sep-2018,000007816760713,FREEMAN CATERING BUTCH,5422,Catering costs - provisions,118.74,0.00,118.74
Regeneration and Local Services,Direct Services,030691,"Catering - Durham Dales Centre			",Supplies and Services,324117,Provisions E324,11-Sep-2018,000007816760719,FREEMAN CATERING BUTCH,5422,Catering costs - provisions,91.44,0.00,91.44
Regeneration and Local Services,Direct Services,030691,"Catering - Durham Dales Centre			",Supplies and Services,324117,Provisions E324,11-Sep-2018,000007816760725,JR HOLLAND FOODSERVICE,5422,Catering costs - provisions,107.87,0.00,107.87
Regeneration and Local Services,Direct Services,030691,"Catering - Durham Dales Centre			",Supplies and Services,324117,Provisions E324,11-Sep-2018,000007816760733,JR HOLLAND FOODSERVICE,5422,Catering costs - provisions,-1.30,0.00,-1.30
Adult and Health Services,Head of Adults,055643,Hawthorn House LD Respite Unit,Supplies and Services,324117,Provisions E324,11-Sep-2018,000007816760755,FREEMAN CATERING BUTCH,5422,Catering costs - provisions,52.76,0.00,52.76
Adult and Health Services,Head of Adults,055643,Hawthorn House LD Respite Unit,Supplies and Services,324117,Provisions E324,11-Sep-2018,000007816760767,JR HOLLAND FOODSERVICE,5422,Catering costs - provisions,33.31,0.00,33.31
Adult and Health Services,Head of Adults,055643,Hawthorn House LD Respite Unit,Supplies and Services,324117,Provisions E324,11-Sep-2018,000007816760771,JR HOLLAND FOODSERVICE,5422,Catering costs - provisions,21.60,0.00,21.60
Regeneration and Local Services,Direct Services,010301,C&G - North Grounds Maintenance,Supplies and Services,304221,Equipment and Materials,11-Sep-2018,000007816760799,TRAVIS PERKINS,5211,Direct materials,174.05,29.01,145.04
Children and Young Peoples Services,Head of Childrens Social Care,085517,Supporting Solutions Service (Edge of Care),Supplies and Services,328041,Clothing uniforms and laundry E328,11-Sep-2018,000007816760845,ARGOS BISHOP AUCKL,5310,Clothing uniforms and laundry,119.00,0.00,119.00
Regeneration and Local Services,Transport and Contracted Services,031701,Care Connect All Localities,Supplies and Services,312011,Newspapers books and periodicals E312,11-Sep-2018,000007816760853,AMZN Mktp UK,5942,Books-school library,52.29,0.00,52.29
Regeneration and Local Services,Direct Services,021324,Catering - Meadowfield,Supplies and Services,324117,Provisions E324,11-Sep-2018,000007816760857,FREEMAN CATERING BUTCH,5422,Catering costs - provisions,75.24,0.00,75.24
Children and Young Peoples Services,Head of Childrens Social Care,085333,Coxhoe Satelite Home,Supplies and Services,324117,Provisions E324,11-Sep-2018,000007816760863,ASDA STORES LTD,5411,Catering costs - provisions,10.66,0.00,10.66
Children and Young Peoples Services,Head of Childrens Social Care,085333,Coxhoe Satelite Home,Supplies and Services,324117,Provisions E324,11-Sep-2018,000007816760865,CO-OP GROUP 310016,5411,Catering costs - provisions,22.77,0.00,22.77
Children and Young Peoples Services,Head of Childrens Social Care,085363,LAC & Permanence Team 3,Supplies and Services,304259,Equipment and Materials,11-Sep-2018,000007816761069,HM PASSPORT OFFICE,9399,Equipment-purchase and rental,49.00,0.00,49.00
Transformation and Partnerships,Partnerships & Community Engagement Div.,060472,Syrian Vulnerable Persons Scheme,Supplies and Services,308011,Furniture,11-Sep-2018,000007816761103,WILKO DURHAM 426,5722,Furniture repair and replacement,40.00,6.67,33.33
Transformation and Partnerships,Partnerships & Community Engagement Div.,060472,Syrian Vulnerable Persons Scheme,Supplies and Services,308011,Furniture,11-Sep-2018,000007816761107,ASDA STORES LTD 4313,5411,Furniture repair and replacement,18.00,3.00,15.00
Regeneration and Local Services,Spatial Policy Planning Assets & Environment,031200,North Pennines Core,Supplies and Services,340001,Postages E340,11-Sep-2018,000007816761115,THE POST OFFICE,9402,Postages,2.22,0.00,2.22
Children and Young Peoples Services,"Head of Early Help, Inclusion and Vulnerable Children",074000,TTF-Attachment and Results,Supplies and Services,308011,Furniture,11-Sep-2018,000007821882941,FRANKS THE FLOORING ST,5713,Furniture repair and replacement,115.02,19.17,95.85
Children and Young Peoples Services,"Head of Early Help, Inclusion and Vulnerable Children",074000,TTF-Attachment and Results,Supplies and Services,308011,Furniture,11-Sep-2018,000007821882941 - 1,FRANKS THE FLOORING ST,5713,Furniture repair and replacement,34.98,,34.98
Regeneration and Local Services,Direct Services,021242,Catering - County Hall,Supplies and Services,324117,Provisions E324,11-Sep-2018,000007827407085,BATLEYS PERTH,5300,Catering costs - provisions,641.04,106.84,534.20
Regeneration and Local Services,Direct Services,021242,Catering - County Hall,Supplies and Services,324117,Provisions E324,11-Sep-2018,000007827407085 - 1,BATLEYS PERTH,5300,Catering costs - provisions,259.75,,259.75
Regeneration and Local Services,Culture & Sport,011060,Hardwick Park Catering,Supplies and Services,324117,Provisions E324,11-Sep-2018,000007827407167,BATLEYS PERTH,5300,Catering costs - provisions,50.04,8.34,41.70
Regeneration and Local Services,Culture & Sport,011060,Hardwick Park Catering,Supplies and Services,324117,Provisions E324,11-Sep-2018,000007827407167 - 1,BATLEYS PERTH,5300,Catering costs - provisions,35.67,,35.67
Regeneration and Local Services,Direct Services,010525,Catering - Green Lane,Supplies and Services,324117,Provisions E324,11-Sep-2018,000007827407187,BATLEYS PERTH,5300,Catering costs - provisions,103.98,17.33,86.65
Regeneration and Local Services,Direct Services,010525,Catering - Green Lane,Supplies and Services,324117,Provisions E324,11-Sep-2018,000007827407187 - 1,BATLEYS PERTH,5300,Catering costs - provisions,66.02,,66.02
Regeneration and Local Services,Direct Services,010525,Catering - Green Lane,Supplies and Services,324117,Provisions E324,11-Sep-2018,000007827407189,BATLEYS PERTH,5300,Catering costs - provisions,5.55,0.00,5.55
Regeneration and Local Services,Direct Services,010525,Catering - Green Lane,Supplies and Services,324117,Provisions E324,11-Sep-2018,000007827407191,BATLEYS PERTH,5300,Catering costs - provisions,5.49,0.00,5.49
Regeneration and Local Services,Culture & Sport,054235,Bishop Auckland Town Hall Cafe,Supplies and Services,324117,Provisions E324,11-Sep-2018,000007827407271,BATLEYS PERTH,5300,Catering costs - provisions,51.33,0.00,51.33
Regeneration and Local Services,Culture & Sport,054235,Bishop Auckland Town Hall Cafe,Supplies and Services,324117,Provisions E324,11-Sep-2018,000007827407273,BATLEYS PERTH,5300,Catering costs - provisions,17.70,0.00,17.70
Regeneration and Local Services,Direct Services,021324,Catering - Meadowfield,Supplies and Services,324117,Provisions E324,11-Sep-2018,000007827407277,BATLEYS PERTH,5300,Catering costs - provisions,44.52,7.42,37.10
Regeneration and Local Services,Direct Services,021324,Catering - Meadowfield,Supplies and Services,324117,Provisions E324,11-Sep-2018,000007827407277 - 1,BATLEYS PERTH,5300,Catering costs - provisions,120.61,,120.61
Adult and Health Services,Head of Adults,052760,OP Management,Charges,720130,Fees and Charges,12-Sep-2018,000007821882625,HMCOURT-SERVICES.G,9222,Fees-legal,80.00,0.00,80.00
Adult and Health Services,Head of Adults,052760,OP Management,Charges,720130,Fees and Charges,12-Sep-2018,000007821882627,HMCOURT-SERVICES.G,9222,Fees-legal,100.00,0.00,100.00
Resources,Digital and Customer Services,065461,Business Support,Supplies and Services,312011,Newspapers books and periodicals E312,12-Sep-2018,000007821882629,AMZN Mktp UK,5942,Books-school library,17.98,0.00,17.98
Resources,Digital and Customer Services,065461,Business Support,Supplies and Services,312011,Newspapers books and periodicals E312,12-Sep-2018,000007821882631,AMZN Mktp UK,5942,Books-school library,3.49,0.58,2.91
Resources,Digital and Customer Services,065461,Business Support,Supplies and Services,312011,Newspapers books and periodicals E312,12-Sep-2018,000007821882633,AMZN Mktp UK,5942,Books-school library,69.99,11.67,58.32
Resources,Digital and Customer Services,065461,Business Support,Supplies and Services,342033,Computers and Communications,12-Sep-2018,000007821882637,WWW.OSBORNEBOOKS.CO.UK,5964,Computer hardware,81.40,0.00,81.40
Adult and Health Services,Head of Adults,055302,Durham Pathways,Supplies and Services,324117,Provisions E324,12-Sep-2018,000007821882661,SAINSBURYS SACAT 0776,5411,Catering costs - provisions,4.15,0.00,4.15
Children and Young Peoples Services,"Head of Early Help, Inclusion and Vulnerable Children",085962,Aycliffe Secure - Durham,Supplies and Services,384999,Miscellaneous Expenses,12-Sep-2018,000007821882681,AMZN MKTP UK AMAZON.CO,5942,Other expenses,10.13,0.00,10.13
Children and Young Peoples Services,"Head of Early Help, Inclusion and Vulnerable Children",085965,Barnard,Supplies and Services,328041,Clothing uniforms and laundry E328,12-Sep-2018,000007821882683,FOOTASYLUM PLC,5691,Clothing uniforms and laundry,25.94,0.00,25.94
Children and Young Peoples Services,"Head of Early Help, Inclusion and Vulnerable Children",085955,Auckland,Supplies and Services,324117,Provisions E324,12-Sep-2018,000007821882685,TESCO STORES 6329,5411,Catering costs - provisions,85.90,0.00,85.90
Children and Young Peoples Services,"Head of Early Help, Inclusion and Vulnerable Children",085957,Secure Management,Supplies and Services,304259,Equipment and Materials,12-Sep-2018,000007821882687,ARGOS RETAIL GROUP,5310,Equipment-purchase and rental,129.90,0.00,129.90
Children and Young Peoples Services,"Head of Early Help, Inclusion and Vulnerable Children",085954,Walworth,Supplies and Services,328041,Clothing uniforms and laundry E328,12-Sep-2018,000007821882689,WWW.FOOTLOCKER.EU,5661,Clothing uniforms and laundry,129.99,0.00,129.99
Children and Young Peoples Services,"Head of Early Help, Inclusion and Vulnerable Children",085954,Walworth,Supplies and Services,328041,Clothing uniforms and laundry E328,12-Sep-2018,000007821882691,WWW.FOOTLOCKER.EU,5661,Clothing uniforms and laundry,-129.99,0.00,-129.99
Children and Young Peoples Services,Childrens Services Operational Support,052711,CYPS - Development and Learning,Supplies and Services,312009,Newspapers books and periodicals E312,12-Sep-2018,000007821882713,PAYPAL DARTINGTON,8398,Newspapers books and periodicals,12.00,2.00,10.00
Regeneration and Local Services,Direct Services,021242,Catering - County Hall,Supplies and Services,324117,Provisions E324,12-Sep-2018,000007821882715,JR HOLLAND FOODSERVICE,5422,Catering costs - provisions,122.64,0.00,122.64
Regeneration and Local Services,Direct Services,021242,Catering - County Hall,Supplies and Services,324117,Provisions E324,12-Sep-2018,000007821882717,JR HOLLAND FOODSERVICE,5422,Catering costs - provisions,99.00,0.00,99.00
Regeneration and Local Services,Direct Services,021242,Catering - County Hall,Supplies and Services,324117,Provisions E324,12-Sep-2018,000007821882719,JR HOLLAND FOODSERVICE,5422,Catering costs - provisions,28.05,0.00,28.05
Regeneration and Local Services,Direct Services,021242,Catering - County Hall,Supplies and Services,324117,Provisions E324,12-Sep-2018,000007821882721,JR HOLLAND FOODSERVICE,5422,Catering costs - provisions,7.04,0.00,7.04
Children and Young Peoples Services,Head of Education and Skills,070169,Durham SSP,Supplies and Services,384199,Miscellaneous Expenses,12-Sep-2018,000007821882723,Amazon.co.uk,5969,Other hired and contracted services,56.97,0.00,56.97
Regeneration and Local Services,Direct Services,021242,Catering - County Hall,Supplies and Services,324117,Provisions E324,12-Sep-2018,000007821882743,CO-OP GROUP FOOD,5411,Catering costs - provisions,1.90,0.00,1.90
Children and Young Peoples Services,Head of Childrens Social Care,085361,LAC & Permanence Team 1,Supplies and Services,384999,Miscellaneous Expenses,12-Sep-2018,000007821882745,DARLINGTON BC INTERNET,9399,Other expenses,12.00,0.00,12.00
Children and Young Peoples Services,Head of Childrens Social Care,085334,West Rainton Satelite Home,Supplies and Services,312011,Newspapers books and periodicals E312,12-Sep-2018,000007821882767,HOME BARGAINS,5251,Books-school library,12.95,0.00,12.95
Children and Young Peoples Services,Head of Childrens Social Care,085334,West Rainton Satelite Home,Supplies and Services,312011,Newspapers books and periodicals E312,12-Sep-2018,000007821882769,HOME BARGAINS,5251,Books-school library,8.99,0.00,8.99
Children and Young Peoples Services,Head of Childrens Social Care,085334,West Rainton Satelite Home,Supplies and Services,324117,Provisions E324,12-Sep-2018,000007821882771,TESCO STORES 2371,5411,Catering costs - provisions,8.55,0.00,8.55
Children and Young Peoples Services,Head of Childrens Social Care,085334,West Rainton Satelite Home,Supplies and Services,324117,Provisions E324,12-Sep-2018,000007821882773,ALDI 12 774,5411,Catering costs - provisions,53.50,0.00,53.50
Regeneration and Local Services,Culture & Sport,054813,Gala Theatre - Technical,Supplies and Services,312011,Newspapers books and periodicals E312,12-Sep-2018,000007821882787,AMZN Mktp UK,5942,Books-school library,39.98,0.00,39.98
Children and Young Peoples Services,Head of Education and Skills,071903,EYDCP-Sustainability EDS,Supplies and Services,312011,Newspapers books and periodicals E312,12-Sep-2018,000007821882805,AMZN Mktp UK,5942,Books-school library,3.45,0.00,3.45
Children and Young Peoples Services,Head of Education and Skills,071903,EYDCP-Sustainability EDS,Supplies and Services,312011,Newspapers books and periodicals E312,12-Sep-2018,000007821882807,AMZN Mktp UK,5942,Books-school library,7.87,0.00,7.87
Children and Young Peoples Services,Head of Education and Skills,071903,EYDCP-Sustainability EDS,Third Party Payments 4THIRD,430100,Rendered by Private Contractors,12-Sep-2018,000007821882809,EB SEMINAR DEVELOPING,7399,Payments to sub-contractors,299.94,49.99,249.95
Children and Young Peoples Services,Head of Childrens Social Care,085341,High Etherley Satelite Home,Supplies and Services,324117,Provisions E324,12-Sep-2018,000007821882815,SAINSBURYS 2199,5411,Catering costs - provisions,2.44,0.00,2.44
Children and Young Peoples Services,Head of Childrens Social Care,085341,High Etherley Satelite Home,Supplies and Services,328041,Clothing uniforms and laundry E328,12-Sep-2018,000007821882817,ARGOS BISHOP AUCKL,5310,Clothing uniforms and laundry,16.34,0.00,16.34
Regeneration and Local Services,Economic Development and Housing,031500,Housing Solutions - Core Team,Supplies and Services,352001,Conference Expenses,12-Sep-2018,000007821882819,TRAVELODGE,3615,Conferencesseminars fees etc,396.00,66.00,330.00
Regeneration and Local Services,Culture & Sport,054813,Gala Theatre - Technical,Supplies and Services,324117,Provisions E324,12-Sep-2018,000007821882825,TESCO STORES 2971,5411,Catering costs - provisions,8.60,0.00,8.60
Regeneration and Local Services,Culture & Sport,054813,Gala Theatre - Technical,Supplies and Services,324117,Provisions E324,12-Sep-2018,000007821882827,TESCO STORES 2971,5411,Catering costs - provisions,31.63,0.00,31.63
Regeneration and Local Services,Culture & Sport,010919,Countryside Site Management,Supplies and Services,324117,Provisions E324,12-Sep-2018,000007821882829,CARRS BILLINGTON AGRI,5399,Catering costs - provisions,28.80,4.80,24.00
Regeneration and Local Services,Culture & Sport,011060,Hardwick Park Catering,Supplies and Services,324117,Provisions E324,12-Sep-2018,000007821882833,JR HOLLAND FOODSERVICE,5422,Catering costs - provisions,106.36,0.00,106.36
Regeneration and Local Services,Culture & Sport,011060,Hardwick Park Catering,Supplies and Services,324117,Provisions E324,12-Sep-2018,000007821882835,JR HOLLAND FOODSERVICE,5422,Catering costs - provisions,32.55,0.00,32.55
Regeneration and Local Services,Culture & Sport,011060,Hardwick Park Catering,Supplies and Services,324117,Provisions E324,12-Sep-2018,000007821882837,JR HOLLAND FOODSERVICE,5422,Catering costs - provisions,5.58,0.00,5.58
Regeneration and Local Services,Culture & Sport,011060,Hardwick Park Catering,Supplies and Services,324117,Provisions E324,12-Sep-2018,000007821882839,JR HOLLAND FOODSERVICE,5422,Catering costs - provisions,-3.90,0.00,-3.90
Regeneration and Local Services,Culture & Sport,054815,Gala Theatre Stage School,Supplies and Services,312011,Newspapers books and periodicals E312,12-Sep-2018,000007821882841,WWW.SAMUELFRENCH-,5942,Books-school library,5.00,0.00,5.00
Regeneration and Local Services,Culture & Sport,026591,Hardwick Park,Supplies and Services,304403,Equipment and Materials,12-Sep-2018,000007821882843,RSPB SALES LTD,5947,Other consumables,54.18,0.00,54.18
Regeneration and Local Services,Direct Services,021234,Catering - Locomotion,Supplies and Services,324117,Provisions E324,12-Sep-2018,000007821882845,JR HOLLAND FOODSERVICE,5422,Catering costs - provisions,23.98,0.00,23.98
Regeneration and Local Services,Direct Services,010525,Catering - Green Lane,Supplies and Services,324117,Provisions E324,12-Sep-2018,000007821882849,JR HOLLAND FOODSERVICE,5422,Catering costs - provisions,90.72,0.00,90.72
Children and Young Peoples Services,Head of Childrens Social Care,085551,Short Break Services-Park Hse Sher,Supplies and Services,304403,Equipment and Materials,12-Sep-2018,000007821882857,UNIFIT,5065,Other consumables,23.13,0.00,23.13
Regeneration and Local Services,Economic Development and Housing,031500,Housing Solutions - Core Team,Supplies and Services,352001,Conference Expenses,12-Sep-2018,000007821882869,HOTEL 52,7011,Conferencesseminars fees etc,170.00,0.00,170.00
Regeneration and Local Services,Economic Development and Housing,031500,Housing Solutions - Core Team,Transport,235057,Public Transport,12-Sep-2018,000007821882871,GO NORTH EAST LIMITED,4131,Staff travelling,53.00,0.00,53.00
Children and Young Peoples Services,Head of Childrens Social Care,085341,High Etherley Satelite Home,Supplies and Services,324117,Provisions E324,12-Sep-2018,000007821882873,SAINSBURYS SACAT 2199,5411,Catering costs - provisions,4.00,0.00,4.00
Children and Young Peoples Services,Head of Childrens Social Care,085341,High Etherley Satelite Home,Supplies and Services,328041,Clothing uniforms and laundry E328,12-Sep-2018,000007821882875,ARGOS BISHOP AUCKL,5310,Clothing uniforms and laundry,49.99,0.00,49.99
Regeneration and Local Services,Direct Services,010367,C&G - South Grounds Maintenance,Supplies and Services,324117,Provisions E324,12-Sep-2018,000007821882881,J M RAINE,5399,Catering costs - provisions,171.54,28.59,142.95
Regeneration and Local Services,Direct Services,010367,C&G - South Grounds Maintenance,Supplies and Services,324117,Provisions E324,12-Sep-2018,000007821882881 - 1,J M RAINE,5399,Catering costs - provisions,35.01,,35.01
Children and Young Peoples Services,Head of Childrens Social Care,085333,Coxhoe Satelite Home,Supplies and Services,324117,Provisions E324,12-Sep-2018,000007821882893,TESCO STORES 2371,5411,Catering costs - provisions,216.26,0.00,216.26
Children and Young Peoples Services,Head of Childrens Social Care,085342,9 Cedar Drive Aycliffe,Supplies and Services,348037,Subsistence E348,12-Sep-2018,000007821882903,UNO MOMENTO DARLINGTON,5812,Subsistence,45.60,0.00,45.60
Children and Young Peoples Services,Head of Childrens Social Care,085342,9 Cedar Drive Aycliffe,Employees,040149,Recruitment Instruction and Training,12-Sep-2018,000007821882905,PARENTPAY E-COM R,8220,Training-all costs,17.00,0.00,17.00
Children and Young Peoples Services,Head of Childrens Social Care,085342,9 Cedar Drive Aycliffe,Supplies and Services,332047,Printing Stationery and Gen Off Exps,12-Sep-2018,000007821882907,VUE BSL SITE,7832,Stationery,20.00,0.00,20.00
Adult and Health Services,Head of Adults,055301,Stanley Pathways,Supplies and Services,308011,Furniture,12-Sep-2018,000007821882909,POUNDSTRETCHER 354,5714,Furniture repair and replacement,11.00,0.00,11.00
Adult and Health Services,Head of Adults,055643,Hawthorn House LD Respite Unit,Supplies and Services,324117,Provisions E324,12-Sep-2018,000007821882927,JR HOLLAND FOODSERVICE,5422,Catering costs - provisions,17.10,0.00,17.10
Adult and Health Services,Head of Adults,055643,Hawthorn House LD Respite Unit,Supplies and Services,324117,Provisions E324,12-Sep-2018,000007821882929,JR HOLLAND FOODSERVICE,5422,Catering costs - provisions,16.56,0.00,16.56
Regeneration and Local Services,Direct Services,010301,C&G - North Grounds Maintenance,Supplies and Services,304403,Equipment and Materials,12-Sep-2018,000007821882933,BESCOL,5231,Other consumables,21.20,3.53,17.67
Children and Young Peoples Services,"Head of Early Help, Inclusion and Vulnerable Children",074000,TTF-Attachment and Results,Supplies and Services,312011,Newspapers books and periodicals E312,12-Sep-2018,000007821882937,AMZN MKTP UK AMAZON.CO,5942,Books-school library,16.95,0.00,16.95
Children and Young Peoples Services,"Head of Early Help, Inclusion and Vulnerable Children",074000,TTF-Attachment and Results,Supplies and Services,312011,Newspapers books and periodicals E312,12-Sep-2018,000007821882939,AMZN MKTP UK AMAZON.CO,5942,Books-school library,9.99,0.00,9.99
Children and Young Peoples Services,"Head of Early Help, Inclusion and Vulnerable Children",085957,Secure Management,Supplies and Services,384999,Miscellaneous Expenses,12-Sep-2018,000007821882949,AMZN Mktp UK,5942,Other expenses,61.80,10.30,51.50
Children and Young Peoples Services,"Head of Early Help, Inclusion and Vulnerable Children",085962,Aycliffe Secure - Durham,Supplies and Services,328041,Clothing uniforms and laundry E328,12-Sep-2018,000007821882951,VERY,5964,Clothing uniforms and laundry,73.99,0.00,73.99
Children and Young Peoples Services,"Head of Early Help, Inclusion and Vulnerable Children",085954,Walworth,Supplies and Services,304245,Equipment and Materials,12-Sep-2018,000007821882953,SMART WALL PAINT,5231,Materials,170.00,0.00,170.00
Children and Young Peoples Services,Head of Childrens Social Care,085517,Supporting Solutions Service (Edge of Care),Supplies and Services,324117,Provisions E324,12-Sep-2018,000007821882959,ASDA STORES LTD 4313,5411,Catering costs - provisions,146.00,0.00,146.00
Regeneration and Local Services,Culture & Sport,054235,Bishop Auckland Town Hall Cafe,Supplies and Services,324117,Provisions E324,12-Sep-2018,000007821882961,JR HOLLAND FOODSERVICE,5422,Catering costs - provisions,50.47,0.00,50.47
Regeneration and Local Services,Direct Services,021324,Catering - Meadowfield,Supplies and Services,324117,Provisions E324,12-Sep-2018,000007821882965,JR HOLLAND FOODSERVICE,5422,Catering costs - provisions,43.97,0.00,43.97
Regeneration and Local Services,Direct Services,021324,Catering - Meadowfield,Supplies and Services,324117,Provisions E324,12-Sep-2018,000007821882967,JR HOLLAND FOODSERVICE,5422,Catering costs - provisions,13.89,0.00,13.89
Children and Young Peoples Services,Head of Childrens Social Care,085333,Coxhoe Satelite Home,Supplies and Services,328041,Clothing uniforms and laundry E328,12-Sep-2018,000007821882971,MATALAN,5691,Clothing uniforms and laundry,6.00,0.00,6.00
Children and Young Peoples Services,Head of Childrens Social Care,085333,Coxhoe Satelite Home,Supplies and Services,328041,Clothing uniforms and laundry E328,12-Sep-2018,000007821882973,B&M RETAIL,5310,Clothing uniforms and laundry,20.13,0.00,20.13
Children and Young Peoples Services,Head of Childrens Social Care,085333,Coxhoe Satelite Home,Supplies and Services,304259,Equipment and Materials,12-Sep-2018,000007821882975,SPORTSDIRECT.COM,5941,Equipment-purchase and rental,114.98,0.00,114.98
Regeneration and Local Services,Direct Services,010301,C&G - North Grounds Maintenance,Supplies and Services,312011,Newspapers books and periodicals E312,12-Sep-2018,000007821882979,TOOLSTATION LTD,5251,Books-school library,9.10,1.52,7.58
Children and Young Peoples Services,Head of Childrens Social Care,085331,New Lea Childrens Home,Transport,235057,Public Transport,12-Sep-2018,000007821883021,SEASIDETRAVELEASINGTON,4722,Staff travelling,155.00,0.00,155.00
Regeneration and Local Services,Direct Services,021235,Catering - Wharton Park,Supplies and Services,324117,Provisions E324,12-Sep-2018,000007821883035,JR HOLLAND FOODSERVICE,5422,Catering costs - provisions,34.61,0.00,34.61
Children and Young Peoples Services,"Head of Early Help, Inclusion and Vulnerable Children",085954,Walworth,Supplies and Services,328041,Clothing uniforms and laundry E328,12-Sep-2018,000007827407025,SPORTSDIRECT.COM,5941,Clothing uniforms and laundry,46.99,0.00,46.99
Children and Young Peoples Services,"Head of Early Help, Inclusion and Vulnerable Children",085954,Walworth,Supplies and Services,328041,Clothing uniforms and laundry E328,12-Sep-2018,000007827407027,SPORTSDIRECT.COM,5941,Clothing uniforms and laundry,68.98,0.00,68.98
Children and Young Peoples Services,"Head of Early Help, Inclusion and Vulnerable Children",085965,Barnard,Supplies and Services,384999,Miscellaneous Expenses,12-Sep-2018,000007827407029,SPORTSDIRECT.COM,5941,Other expenses,91.94,0.00,91.94
Regeneration and Local Services,Economic Development and Housing,031576,B& B - Temp Accom,Supplies and Services,364320,Grants to Voluntary Organisations,12-Sep-2018,000007827407115,PREMIER INN,3811,Accommodation assistance,97.00,16.17,80.83
Regeneration and Local Services,Spatial Policy Planning Assets & Environment,031200,North Pennines Core,Supplies and Services,348037,Subsistence E348,12-Sep-2018,000007827407169,RISTORANTE ANTICO FOCO,5812,Subsistence,28.13,0.00,28.13
Children and Young Peoples Services,Head of Childrens Social Care,085333,Coxhoe Satelite Home,Supplies and Services,328041,Clothing uniforms and laundry E328,12-Sep-2018,000007827407281,PRIMARK 670 GATESHEAD,5651,Clothing uniforms and laundry,53.20,0.00,53.20
Regeneration and Local Services,Direct Services,030691,"Catering - Durham Dales Centre			",Supplies and Services,324001,Provisions E324,12-Sep-2018,000007834497791,LANCHESTER WINE CE,5921,Bar supplies,59.10,0.00,59.10
Children and Young Peoples Services,Head of Education and Skills,071801,Selby Cottage Childcare Centre,Supplies and Services,312011,Newspapers books and periodicals E312,13-Sep-2018,000007827406969,AMZN MKTP UK AMAZON.CO,5942,Books-school library,41.66,0.00,41.66
Children and Young Peoples Services,Head of Education and Skills,054640,Durham Learning Resources,Supplies and Services,304245,Equipment and Materials,13-Sep-2018,000007827406971,Amazon.co.uk,5969,Materials,21.08,0.00,21.08
Resources,Digital and Customer Services,065461,Business Support,Supplies and Services,312011,Newspapers books and periodicals E312,13-Sep-2018,000007827406973,AMZN Mktp UK,5942,Books-school library,69.99,11.67,58.32
Adult and Health Services,Head of Adults,055302,Durham Pathways,Supplies and Services,324117,Provisions E324,13-Sep-2018,000007827407003,SAINSBURYS SACAT 0776,5411,Catering costs - provisions,6.50,0.00,6.50
Dedicated Schools Grant,DSG High Needs Block,079050,SENSS-Sensory,Supplies and Services,304649,Equipment and Materials,13-Sep-2018,000007827407019,AMZN Mktp UK,5942,Toys,24.99,0.00,24.99
Children and Young Peoples Services,"Head of Early Help, Inclusion and Vulnerable Children",085952,Secure Education,Supplies and Services,304259,Equipment and Materials,13-Sep-2018,000007827407021,AMZN Mktp UK,5942,Equipment-purchase and rental,34.95,0.00,34.95
Children and Young Peoples Services,"Head of Early Help, Inclusion and Vulnerable Children",085952,Secure Education,Supplies and Services,304259,Equipment and Materials,13-Sep-2018,000007827407023,AMZN Mktp UK,5942,Equipment-purchase and rental,5.78,0.00,5.78
Children and Young Peoples Services,"Head of Early Help, Inclusion and Vulnerable Children",085952,Secure Education,Supplies and Services,304259,Equipment and Materials,13-Sep-2018,000007827407031,WWW.GEAR4MUSIC.COM,5733,Equipment-purchase and rental,31.99,0.00,31.99
Children and Young Peoples Services,Head of Childrens Social Care,085621,Families First Aycliffe,Supplies and Services,304259,Equipment and Materials,13-Sep-2018,000007827407033,WWW.GEAR4MUSIC.COM,5733,Equipment-purchase and rental,65.49,0.00,65.49
Children and Young Peoples Services,"Head of Early Help, Inclusion and Vulnerable Children",085965,Barnard,Supplies and Services,324117,Provisions E324,13-Sep-2018,000007827407035,TESCO STORES 6329,5411,Catering costs - provisions,99.24,0.00,99.24
Children and Young Peoples Services,Head of Childrens Social Care,085621,Families First Aycliffe,Supplies and Services,342033,Computers and Communications,13-Sep-2018,000007827407037,VERY,5964,Computer hardware,178.99,0.00,178.99
Regeneration and Local Services,Direct Services,021242,Catering - County Hall,Supplies and Services,324117,Provisions E324,13-Sep-2018,000007827407081,JR HOLLAND FOODSERVICE,5422,Catering costs - provisions,94.98,0.00,94.98
Regeneration and Local Services,Direct Services,021242,Catering - County Hall,Supplies and Services,324117,Provisions E324,13-Sep-2018,000007827407083,JR HOLLAND FOODSERVICE,5422,Catering costs - provisions,19.80,0.00,19.80
Regeneration and Local Services,Culture & Sport,054812,Gala Theatre - Catering etc,Supplies and Services,324117,Provisions E324,13-Sep-2018,000007827407093,JR HOLLAND FOODSERVICE,5422,Catering costs - provisions,45.15,0.00,45.15
Children and Young Peoples Services,Head of Childrens Social Care,085362,LAC & Permanence Team 2,Supplies and Services,384999,Miscellaneous Expenses,13-Sep-2018,000007827407109,GRO HM PASSPORT OFFICE,9399,Other expenses,27.75,0.00,27.75
Regeneration and Local Services,Direct Services,010900,Fleet - Meadowfield Fleet,Transport,215013,Running Costs of Vehicles,13-Sep-2018,000007827407119,DVLA VEHICLE TAX,9399,Vehicle Excise Duty (VED),652.50,0.00,652.50
Regeneration and Local Services,Direct Services,010900,Fleet - Meadowfield Fleet,Transport,215013,Running Costs of Vehicles,13-Sep-2018,000007827407121,DVLA VEHICLE TAX,9399,Vehicle Excise Duty (VED),252.50,0.00,252.50
Regeneration and Local Services,Direct Services,010900,Fleet - Meadowfield Fleet,Transport,215013,Running Costs of Vehicles,13-Sep-2018,000007827407123,DVLA VEHICLE TAX,9399,Vehicle Excise Duty (VED),252.50,0.00,252.50
Children and Young Peoples Services,Head of Education and Skills,071732,Dean Bank Childcare,Supplies and Services,312011,Newspapers books and periodicals E312,13-Sep-2018,000007827407127,AMZN Mktp UK,5942,Books-school library,13.99,0.00,13.99
Resources,Corporate Finance & Commercial Services,069800,Corporate Procurement,Employees,040149,Recruitment Instruction and Training,13-Sep-2018,000007827407133,WWW.CIPS.ORG,8699,Training-all costs,184.00,0.00,184.00
Regeneration and Local Services,Culture & Sport,054813,Gala Theatre - Technical,Supplies and Services,312011,Newspapers books and periodicals E312,13-Sep-2018,000007827407157,AMZN Mktp UK,5942,Books-school library,18.97,0.00,18.97
Regeneration and Local Services,Culture & Sport,054813,Gala Theatre - Technical,Supplies and Services,312011,Newspapers books and periodicals E312,13-Sep-2018,000007827407159,Amazon.co.uk,5969,Books-school library,6.49,0.00,6.49
Regeneration and Local Services,Culture & Sport,054813,Gala Theatre - Technical,Supplies and Services,324117,Provisions E324,13-Sep-2018,000007827407161,TESCO STORES 2971,5411,Catering costs - provisions,13.92,0.00,13.92
Regeneration and Local Services,Culture & Sport,010919,Countryside Site Management,Supplies and Services,304221,Equipment and Materials,13-Sep-2018,000007827407163,SCREWFIX BISHOP AUCKLA,5211,Direct materials,79.26,13.21,66.05
Regeneration and Local Services,Culture & Sport,010919,Countryside Site Management,Supplies and Services,304221,Equipment and Materials,13-Sep-2018,000007827407165,SCREWFIX DIRECT LT,5211,Direct materials,49.35,8.23,41.12
Regeneration and Local Services,Direct Services,021234,Catering - Locomotion,Supplies and Services,324117,Provisions E324,13-Sep-2018,000007827407183,JR HOLLAND FOODSERVICE,5422,Catering costs - provisions,49.03,0.00,49.03
Children and Young Peoples Services,Head of Childrens Social Care,085551,Short Break Services-Park Hse Sher,Supplies and Services,324117,Provisions E324,13-Sep-2018,000007827407195,ALDI 59 774,5411,Catering costs - provisions,81.96,0.00,81.96
Children and Young Peoples Services,Head of Childrens Social Care,085341,High Etherley Satelite Home,Transport,215995,Running Costs of Vehicles,13-Sep-2018,000007827407205,SAINSBURYS PFS 1199,5541,Vehicle running expenses,52.70,0.00,52.70
Regeneration and Local Services,Direct Services,020041,Bldg Serv - Business Development - General,Transport,235057,Public Transport,13-Sep-2018,000007827407215,LNE RAILWAY DHM STN,4112,Staff travelling,11.00,0.00,11.00
Children and Young Peoples Services,Head of Childrens Social Care,085333,Coxhoe Satelite Home,Supplies and Services,324117,Provisions E324,13-Sep-2018,000007827407217,TESCO STORES 2916,5411,Catering costs - provisions,143.70,0.00,143.70
Children and Young Peoples Services,"Head of Early Help, Inclusion and Vulnerable Children",074000,TTF-Attachment and Results,Supplies and Services,312011,Newspapers books and periodicals E312,13-Sep-2018,000007827407249,AMZN MKTP UK AMAZON.CO,5942,Books-school library,2.78,0.46,2.32
Children and Young Peoples Services,"Head of Early Help, Inclusion and Vulnerable Children",085957,Secure Management,Supplies and Services,304245,Equipment and Materials,13-Sep-2018,000007827407251,AMZN Mktp UK,5942,Materials,58.45,9.74,48.71
Children and Young Peoples Services,"Head of Early Help, Inclusion and Vulnerable Children",085957,Secure Management,Supplies and Services,384999,Miscellaneous Expenses,13-Sep-2018,000007827407253,AMZN Mktp UK,5942,Other expenses,13.90,2.32,11.58
Children and Young Peoples Services,"Head of Early Help, Inclusion and Vulnerable Children",085962,Aycliffe Secure - Durham,Supplies and Services,328041,Clothing uniforms and laundry E328,13-Sep-2018,000007827407255,FOOTASYLUM PLC,5691,Clothing uniforms and laundry,54.98,0.00,54.98
Children and Young Peoples Services,"Head of Early Help, Inclusion and Vulnerable Children",085962,Aycliffe Secure - Durham,Supplies and Services,328041,Clothing uniforms and laundry E328,13-Sep-2018,000007827407257,VERY,5964,Clothing uniforms and laundry,63.99,0.00,63.99
Regeneration and Local Services,Culture & Sport,011060,Hardwick Park Catering,Premises,145023,Cleaning and Domestic Supplies,13-Sep-2018,000007827407275,CPD-DIRECT.CO.UK,7349,Cleaning and domestic materials,58.79,9.80,48.99
Regeneration and Local Services,Direct Services,010301,C&G - North Grounds Maintenance,Supplies and Services,304221,Equipment and Materials,13-Sep-2018,000007827407285,JEWSON LTD,5211,Direct materials,10.49,1.75,8.74
Regeneration and Local Services,Economic Development and Housing,030554,International Relations,Supplies and Services,304999,Equipment and Materials,13-Sep-2018,000007827407301,Namco Uk Ltd,7929,Misc equipment tools and materials,50.00,0.00,50.00
Children and Young Peoples Services,"Head of Early Help, Inclusion and Vulnerable Children",085801,CDYOS - Support,Supplies and Services,312011,Newspapers books and periodicals E312,13-Sep-2018,000007827407345,AMZN Mktp UK,5942,Books-school library,19.48,0.00,19.48
Children and Young Peoples Services,"Head of Early Help, Inclusion and Vulnerable Children",085801,CDYOS - Support,Supplies and Services,348037,Subsistence E348,13-Sep-2018,000007827407347,GREGGS,5812,Subsistence,23.00,0.00,23.00
Children and Young Peoples Services,"Head of Early Help, Inclusion and Vulnerable Children",085801,CDYOS - Support,Supplies and Services,324117,Provisions E324,13-Sep-2018,000007827407349,CO-OP GROUP 310015,5411,Catering costs - provisions,3.70,0.00,3.70
Regeneration and Local Services,Direct Services,020041,Bldg Serv - Business Development - General,Transport,235057,Public Transport,13-Sep-2018,000007834496845,3C_ ECML DURHAM P&D C&,7523,Staff travelling,2.50,0.00,2.50
Regeneration and Local Services,Economic Development and Housing,031500,Housing Solutions - Core Team,Employees,040149,Recruitment Instruction and Training,13-Sep-2018,000007834496903,PREMIER INN,3811,Training-all costs,61.50,10.25,51.25
Children and Young Peoples Services,"Head of Early Help, Inclusion and Vulnerable Children",085955,Auckland,Supplies and Services,384999,Miscellaneous Expenses,13-Sep-2018,000007834497087,WWW.ARGOS.CO.UK,5310,Other expenses,59.96,0.00,59.96
Regeneration and Local Services,Culture & Sport,011060,Hardwick Park Catering,Supplies and Services,324117,Provisions E324,13-Sep-2018,000007842328521,BATLEYS PERTH,5300,Catering costs - provisions,198.54,33.09,165.45
Regeneration and Local Services,Culture & Sport,011060,Hardwick Park Catering,Supplies and Services,324117,Provisions E324,13-Sep-2018,000007842328521 - 1,BATLEYS PERTH,5300,Catering costs - provisions,242.15,,242.15
Regeneration and Local Services,Culture & Sport,011060,Hardwick Park Catering,Supplies and Services,324117,Provisions E324,13-Sep-2018,000007842328525,BATLEYS PERTH,5300,Catering costs - provisions,220.68,36.78,183.90
Regeneration and Local Services,Culture & Sport,011060,Hardwick Park Catering,Supplies and Services,324117,Provisions E324,13-Sep-2018,000007842328525 - 1,BATLEYS PERTH,5300,Catering costs - provisions,204.50,,204.50
Regeneration and Local Services,Direct Services,021234,Catering - Locomotion,Supplies and Services,324117,Provisions E324,13-Sep-2018,000007842328575,BATLEYS PERTH,5300,Catering costs - provisions,176.94,29.49,147.45
Regeneration and Local Services,Direct Services,021234,Catering - Locomotion,Supplies and Services,324117,Provisions E324,13-Sep-2018,000007842328575 - 1,BATLEYS PERTH,5300,Catering costs - provisions,46.48,,46.48
Regeneration and Local Services,Spatial Policy Planning Assets & Environment,031200,North Pennines Core,Supplies and Services,348037,Subsistence E348,14-Sep-2018,000007827407171,RISTORANTE ANTICO FOCO,5812,Subsistence,0.77,0.00,0.77
Children and Young Peoples Services,Head of Education and Skills,071801,Selby Cottage Childcare Centre,Supplies and Services,324117,Provisions E324,14-Sep-2018,000007834495303,TESCO STORES 2278,5411,Catering costs - provisions,41.10,0.00,41.10
Children and Young Peoples Services,"Head of Early Help, Inclusion and Vulnerable Children",085952,Secure Education,Supplies and Services,304259,Equipment and Materials,14-Sep-2018,000007834495509,Amazon.co.uk,5969,Equipment-purchase and rental,14.99,0.00,14.99
Children and Young Peoples Services,"Head of Early Help, Inclusion and Vulnerable Children",085952,Secure Education,Supplies and Services,304259,Equipment and Materials,14-Sep-2018,000007834495513,Amazon.co.uk,5969,Equipment-purchase and rental,74.95,12.49,62.46
Children and Young Peoples Services,"Head of Early Help, Inclusion and Vulnerable Children",085956,Lumley,Supplies and Services,324117,Provisions E324,14-Sep-2018,000007834495517,TESCO STORES 6329,5411,Catering costs - provisions,63.55,0.00,63.55
Regeneration and Local Services,Economic Development and Housing,030699,Business Growth and Innovation General,Supplies and Services,342033,Computers and Communications,14-Sep-2018,000007834495541,WATCHFULPAYPAL,7379,Computer hardware,15.29,0.00,15.29
Resources,Finance & Transactional Services,065180,Collections,Supplies and Services,304259,Equipment and Materials,14-Sep-2018,000007834495627,WWW.MONEYCLAIM.GOV,9399,Equipment-purchase and rental,410.00,0.00,410.00
Regeneration and Local Services,Direct Services,021242,Catering - County Hall,Supplies and Services,324117,Provisions E324,14-Sep-2018,000007834495733,JR HOLLAND FOODSERVICE,5422,Catering costs - provisions,80.80,0.00,80.80
Regeneration and Local Services,Direct Services,021242,Catering - County Hall,Supplies and Services,324117,Provisions E324,14-Sep-2018,000007834495737,JR HOLLAND FOODSERVICE,5422,Catering costs - provisions,13.20,0.00,13.20
Regeneration and Local Services,Direct Services,021242,Catering - County Hall,Supplies and Services,324117,Provisions E324,14-Sep-2018,000007834495745,JR HOLLAND FOODSERVICE,5422,Catering costs - provisions,10.88,0.00,10.88
Regeneration and Local Services,Culture & Sport,054233,Bishop Auckland Town Hall Library,Supplies and Services,328041,Clothing uniforms and laundry E328,14-Sep-2018,000007834495751,W BOYES & CO LTD BISHO,5310,Clothing uniforms and laundry,5.50,0.00,5.50
Regeneration and Local Services,Culture & Sport,054233,Bishop Auckland Town Hall Library,Supplies and Services,328041,Clothing uniforms and laundry E328,14-Sep-2018,000007834495759,POUNDLAND LTD 1390,5310,Clothing uniforms and laundry,2.00,0.00,2.00
Regeneration and Local Services,Culture & Sport,054233,Bishop Auckland Town Hall Library,Supplies and Services,328041,Clothing uniforms and laundry E328,14-Sep-2018,000007834495767,POUNDLAND LTD 1390,5310,Clothing uniforms and laundry,36.00,0.00,36.00
Regeneration and Local Services,Culture & Sport,054233,Bishop Auckland Town Hall Library,Supplies and Services,328041,Clothing uniforms and laundry E328,14-Sep-2018,000007834495771,B&M RETAIL LTD,5310,Clothing uniforms and laundry,3.99,0.00,3.99
Regeneration and Local Services,Culture & Sport,054233,Bishop Auckland Town Hall Library,Employees,040149,Recruitment Instruction and Training,14-Sep-2018,000007834495777,PREMIER INN,3811,Training-all costs,42.00,0.00,42.00
Children and Young Peoples Services,Head of Education and Skills,070169,Durham SSP,Supplies and Services,384199,Miscellaneous Expenses,14-Sep-2018,000007834495809,NET WORLD SPORTS,5999,Other hired and contracted services,69.93,0.00,69.93
Regeneration and Local Services,Culture & Sport,054399,Local Delivery-Libraries,Supplies and Services,336005,Advertising E336,14-Sep-2018,000007834496013,Shutterstock,7333,Advertising other than for staff,34.80,5.80,29.00
Regeneration and Local Services,Culture & Sport,054399,Local Delivery-Libraries,Supplies and Services,336005,Advertising E336,14-Sep-2018,000007834496019,Shutterstock,7333,Advertising other than for staff,34.80,5.80,29.00
Regeneration and Local Services,Culture & Sport,054399,Local Delivery-Libraries,Supplies and Services,336005,Advertising E336,14-Sep-2018,000007834496021,WWW.ISTOCK.COM,5971,Advertising other than for staff,82.80,13.80,69.00
Regeneration and Local Services,Direct Services,010367,C&G - South Grounds Maintenance,Supplies and Services,312009,Newspapers books and periodicals E312,14-Sep-2018,000007834496111,WH SMITH,5994,Newspapers books and periodicals,11.99,0.00,11.99
Adult and Health Services,Head of Adults,055807,Newton Aycliffe Pathways,Supplies and Services,340001,Postages E340,14-Sep-2018,000007834496171,THE POST OFFICE,9402,Postages,2.95,0.00,2.95
Regeneration and Local Services,Economic Development and Housing,030771,Durham Advance Flexible Fund,Supplies and Services,324117,Provisions E324,14-Sep-2018,000007834496417,ASDA STORES,5411,Catering costs - provisions,22.05,0.00,22.05
Regeneration and Local Services,Economic Development and Housing,031500,Housing Solutions - Core Team,Employees,040149,Recruitment Instruction and Training,14-Sep-2018,000007834496425,PREMIER INN,3811,Training-all costs,181.50,30.25,151.25
Regeneration and Local Services,Economic Development and Housing,031500,Housing Solutions - Core Team,Employees,040149,Recruitment Instruction and Training,14-Sep-2018,000007834496433,PREMIER INN,3811,Training-all costs,184.50,0.00,184.50
Regeneration and Local Services,Economic Development and Housing,031500,Housing Solutions - Core Team,Employees,040149,Recruitment Instruction and Training,14-Sep-2018,000007834496439,PREMIER INN,3811,Training-all costs,-184.50,0.00,-184.50
Regeneration and Local Services,Culture & Sport,054813,Gala Theatre - Technical,Supplies and Services,304259,Equipment and Materials,14-Sep-2018,000007834496465,HALFORDS 0784,5940,Equipment-purchase and rental,23.48,0.00,23.48
Regeneration and Local Services,Culture & Sport,011060,Hardwick Park Catering,Supplies and Services,324117,Provisions E324,14-Sep-2018,000007834496491,JR HOLLAND FOODSERVICE,5422,Catering costs - provisions,21.61,0.00,21.61
Regeneration and Local Services,Spatial Policy Planning Assets & Environment,031200,North Pennines Core,Supplies and Services,348037,Subsistence E348,14-Sep-2018,000007834496527,RISTORANTE ANTICO FOCO,5812,Subsistence,29.92,0.00,29.92
Regeneration and Local Services,Economic Development and Housing,030757,Interserve/Skills Support for the Unemployed,Employees,040149,Recruitment Instruction and Training,14-Sep-2018,000007834496551,WWW.CSKILLS.ORG,8249,Training-all costs,36.00,6.00,30.00
Regeneration and Local Services,Economic Development and Housing,030757,Interserve/Skills Support for the Unemployed,Employees,040149,Recruitment Instruction and Training,14-Sep-2018,000007834496557,WWW.CSKILLS.ORG,8249,Training-all costs,36.00,6.00,30.00
Regeneration and Local Services,Direct Services,010525,Catering - Green Lane,Supplies and Services,324117,Provisions E324,14-Sep-2018,000007834496593,JR HOLLAND FOODSERVICE,5422,Catering costs - provisions,52.54,0.00,52.54
Children and Young Peoples Services,Head of Childrens Social Care,085341,High Etherley Satelite Home,Supplies and Services,332047,Printing Stationery and Gen Off Exps,14-Sep-2018,000007834496711,WWW.NUSU.CO.UK,8641,Stationery,70.00,0.00,70.00
Children and Young Peoples Services,Head of Childrens Social Care,085341,High Etherley Satelite Home,Supplies and Services,324117,Provisions E324,14-Sep-2018,000007834496719,TESCO STORES 6329,5411,Catering costs - provisions,63.91,0.00,63.91
Regeneration and Local Services,Direct Services,010367,C&G - South Grounds Maintenance,Supplies and Services,324117,Provisions E324,14-Sep-2018,000007834496737,J M RAINE,5399,Catering costs - provisions,238.20,39.70,198.50
Children and Young Peoples Services,Head of Childrens Social Care,085333,Coxhoe Satelite Home,Supplies and Services,324117,Provisions E324,14-Sep-2018,000007834496853,ASDA SUPERSTORE 4987,5411,Catering costs - provisions,49.16,0.00,49.16
Adult and Health Services,Head of Adults,055643,Hawthorn House LD Respite Unit,Supplies and Services,324117,Provisions E324,14-Sep-2018,000007834496971,JR HOLLAND FOODSERVICE,5422,Catering costs - provisions,22.25,0.00,22.25
Adult and Health Services,Head of Adults,055643,Hawthorn House LD Respite Unit,Supplies and Services,324117,Provisions E324,14-Sep-2018,000007834496973,JR HOLLAND FOODSERVICE,5422,Catering costs - provisions,10.27,0.00,10.27
Regeneration and Local Services,Culture & Sport,011215,Museums Heritage & Collections,Supplies and Services,304221,Equipment and Materials,14-Sep-2018,000007834496987,DECOR PANEL LTD,5085,Direct materials,67.25,0.00,67.25
Regeneration and Local Services,Direct Services,010301,C&G - North Grounds Maintenance,Supplies and Services,324117,Provisions E324,14-Sep-2018,000007834497023,J VAN VLIET GATESHEAD,5399,Catering costs - provisions,375.26,62.54,312.72
Children and Young Peoples Services,"Head of Early Help, Inclusion and Vulnerable Children",074000,TTF-Attachment and Results,Supplies and Services,312011,Newspapers books and periodicals E312,14-Sep-2018,000007834497033,Amazon.co.uk,5969,Books-school library,17.79,2.97,14.82
Children and Young Peoples Services,"Head of Early Help, Inclusion and Vulnerable Children",074000,TTF-Attachment and Results,Supplies and Services,312011,Newspapers books and periodicals E312,14-Sep-2018,000007834497037,Amazon.co.uk,5969,Books-school library,19.99,3.33,16.66
Children and Young Peoples Services,"Head of Early Help, Inclusion and Vulnerable Children",074000,TTF-Attachment and Results,Supplies and Services,312011,Newspapers books and periodicals E312,14-Sep-2018,000007834497043,Amazon.co.uk,5969,Books-school library,19.99,3.33,16.66
Children and Young Peoples Services,"Head of Early Help, Inclusion and Vulnerable Children",085954,Walworth,Supplies and Services,328041,Clothing uniforms and laundry E328,14-Sep-2018,000007834497083,VERY,5964,Clothing uniforms and laundry,73.99,0.00,73.99
Resources,Digital and Customer Services,069010,Administration,Supplies and Services,304259,Equipment and Materials,14-Sep-2018,000007834497117,SUNDERLAND CC,9399,Equipment-purchase and rental,30.00,0.00,30.00
Regeneration and Local Services,Culture & Sport,054235,Bishop Auckland Town Hall Cafe,Supplies and Services,324117,Provisions E324,14-Sep-2018,000007834497169,JR HOLLAND FOODSERVICE,5422,Catering costs - provisions,18.23,0.00,18.23
Regeneration and Local Services,Direct Services,021324,Catering - Meadowfield,Supplies and Services,324117,Provisions E324,14-Sep-2018,000007834497221,JR HOLLAND FOODSERVICE,5422,Catering costs - provisions,47.10,0.00,47.10
Regeneration and Local Services,Direct Services,021324,Catering - Meadowfield,Supplies and Services,324117,Provisions E324,14-Sep-2018,000007834497229,JR HOLLAND FOODSERVICE,5422,Catering costs - provisions,9.90,0.00,9.90
Regeneration and Local Services,Culture & Sport,054820,Gala Theatre - Overheads,Employees,040149,Recruitment Instruction and Training,14-Sep-2018,000007834497425,WWW.FILMBANK.CO.UK,7829,Training-all costs,199.20,0.00,199.20
Adult and Health Services,Head of Adults,055306,Spennymoor Pathways,Supplies and Services,312011,Newspapers books and periodicals E312,14-Sep-2018,000007834497577,AMZN Mktp UK,5942,Books-school library,17.20,0.00,17.20
Children and Young Peoples Services,Head of Childrens Social Care,085363,LAC & Permanence Team 3,Supplies and Services,304259,Equipment and Materials,14-Sep-2018,000007834497665,WWW.DURHAM.GOV.UK,9399,Equipment-purchase and rental,12.00,0.00,12.00
Children and Young Peoples Services,"Head of Early Help, Inclusion and Vulnerable Children",085801,CDYOS - Support,Supplies and Services,324117,Provisions E324,14-Sep-2018,000007834497783,ASDA GROCERIES ONLINE,5411,Catering costs - provisions,91.95,0.00,91.95
Regeneration and Local Services,Direct Services,021242,Catering - County Hall,Supplies and Services,324117,Provisions E324,14-Sep-2018,000007842328277,BATLEYS PERTH,5300,Catering costs - provisions,356.22,59.37,296.85
Regeneration and Local Services,Direct Services,021242,Catering - County Hall,Supplies and Services,324117,Provisions E324,14-Sep-2018,000007842328277 - 1,BATLEYS PERTH,5300,Catering costs - provisions,201.13,,201.13
Regeneration and Local Services,Culture & Sport,054812,Gala Theatre - Catering etc,Supplies and Services,324117,Provisions E324,14-Sep-2018,000007842328299,BATLEYS PERTH,5300,Catering costs - provisions,-9.59,-1.60,-7.99
Regeneration and Local Services,Culture & Sport,011060,Hardwick Park Catering,Supplies and Services,324117,Provisions E324,14-Sep-2018,000007842328531,BATLEYS PERTH,5300,Catering costs - provisions,22.40,0.00,22.40
Adult and Health Services,Head of Adults,055643,Hawthorn House LD Respite Unit,Supplies and Services,324117,Provisions E324,14-Sep-2018,000007842328731,BATLEYS PERTH,5300,Catering costs - provisions,5.58,0.93,4.65
Adult and Health Services,Head of Adults,055643,Hawthorn House LD Respite Unit,Supplies and Services,324117,Provisions E324,14-Sep-2018,000007842328731 - 1,BATLEYS PERTH,5300,Catering costs - provisions,61.02,,61.02
Adult and Health Services,Head of Adults,055643,Hawthorn House LD Respite Unit,Supplies and Services,324117,Provisions E324,14-Sep-2018,000007842328733,BATLEYS PERTH,5300,Catering costs - provisions,3.90,0.00,3.90
Resources,Digital and Customer Services,065335,School Services - Implementations,Supplies and Services,304639,Equipment and Materials,14-Sep-2018,000007842328763,ALIEXPRESS,5311,Technicians-supplies,32.55,0.00,32.55
Children and Young Peoples Services,Head of Education and Skills,071801,Selby Cottage Childcare Centre,Supplies and Services,324117,Provisions E324,15-Sep-2018,000007834495307,ASDA GROCERIES ONLINE,5411,Catering costs - provisions,5.00,0.00,5.00
Children and Young Peoples Services,Head of Education and Skills,054640,Durham Learning Resources,Supplies and Services,304245,Equipment and Materials,15-Sep-2018,000007834495325,AMZN MKTP UK AMAZON.CO,5942,Materials,19.13,0.00,19.13
Dedicated Schools Grant,DSG High Needs Block,077099,Special General,Supplies and Services,312011,Newspapers books and periodicals E312,15-Sep-2018,000007834495357,AMZN Mktp UK,5942,Books-school library,64.96,0.00,64.96
Children and Young Peoples Services,"Head of Early Help, Inclusion and Vulnerable Children",085954,Walworth,Supplies and Services,324117,Provisions E324,15-Sep-2018,000007834495523,TESCO STORES 6329,5411,Catering costs - provisions,117.57,0.00,117.57
Regeneration and Local Services,Economic Development and Housing,030699,Business Growth and Innovation General,Supplies and Services,304999,Equipment and Materials,15-Sep-2018,000007834495545,MOZ,5817,Misc equipment tools and materials,75.72,0.00,75.72
Regeneration and Local Services,Spatial Policy Planning Assets & Environment,031200,North Pennines Core,Supplies and Services,324117,Provisions E324,15-Sep-2018,000007834496533,AIREST RETAIL S. R. L.,5309,Catering costs - provisions,23.13,0.00,23.13
Regeneration and Local Services,Spatial Policy Planning Assets & Environment,031200,North Pennines Core,Supplies and Services,352001,Conference Expenses,15-Sep-2018,000007834496537,DOLOMITI HOTEL COZZIO,7011,Conferencesseminars fees etc,302.77,0.00,302.77
Children and Young Peoples Services,Head of Childrens Social Care,085352,Tow Law CU,Supplies and Services,324117,Provisions E324,15-Sep-2018,000007834496633,TESCO STORES 6329,5411,Catering costs - provisions,6.00,0.00,6.00
Regeneration and Local Services,Spatial Policy Planning Assets & Environment,031200,North Pennines Core,Supplies and Services,304259,Equipment and Materials,15-Sep-2018,000007834496983,BLACKS,5941,Equipment-purchase and rental,15.00,0.00,15.00
Regeneration and Local Services,Economic Development and Housing,031500,Housing Solutions - Core Team,Employees,040149,Recruitment Instruction and Training,15-Sep-2018,000007834497131,PREMIER INN,3811,Training-all costs,136.50,22.75,113.75
Regeneration and Local Services,Economic Development and Housing,030699,Business Growth and Innovation General,Supplies and Services,304999,Equipment and Materials,16-Sep-2018,000007834495549,LINKEDIN-332 9706616,5968,Misc equipment tools and materials,14.01,0.00,14.01
Children and Young Peoples Services,Head of Education and Skills,071903,EYDCP-Sustainability EDS,Supplies and Services,312011,Newspapers books and periodicals E312,16-Sep-2018,000007834496347,AMZN Mktp UK,5942,Books-school library,18.47,0.00,18.47
Regeneration and Local Services,Culture & Sport,054813,Gala Theatre - Technical,Supplies and Services,304259,Equipment and Materials,16-Sep-2018,000007834496473,Prime Video,5735,Equipment-purchase and rental,3.99,0.00,3.99
Children and Young Peoples Services,Head of Childrens Social Care,085334,West Rainton Satelite Home,Supplies and Services,304259,Equipment and Materials,16-Sep-2018,000007834496827,CURRYS,5732,Equipment-purchase and rental,268.99,0.00,268.99
Regeneration and Local Services,Economic Development and Housing,030699,Business Growth and Innovation General,Supplies and Services,304403,Equipment and Materials,16-Sep-2018,000007842328179,FONTS.COM,5734,Other consumables,9.60,1.60,8.00
Regeneration and Local Services,Economic Development and Housing,030699,Business Growth and Innovation General,Supplies and Services,342033,Computers and Communications,17-Sep-2018,000007834495555,WATCHFULPAYPAL,7379,Computer hardware,0.42,0.00,0.42
Regeneration and Local Services,Economic Development and Housing,030699,Business Growth and Innovation General,Supplies and Services,304999,Equipment and Materials,17-Sep-2018,000007834495557,MOZ,5817,Misc equipment tools and materials,2.08,0.00,2.08
Regeneration and Local Services,Spatial Policy Planning Assets & Environment,031200,North Pennines Core,Supplies and Services,348037,Subsistence E348,17-Sep-2018,000007834496541,RISTORANTE ANTICO FOCO,5812,Subsistence,0.82,0.00,0.82
Regeneration and Local Services,Spatial Policy Planning Assets & Environment,031200,North Pennines Core,Supplies and Services,324117,Provisions E324,17-Sep-2018,000007834496543,AIREST RETAIL S. R. L.,5309,Catering costs - provisions,0.64,0.00,0.64
Regeneration and Local Services,Spatial Policy Planning Assets & Environment,031200,North Pennines Core,Supplies and Services,352001,Conference Expenses,17-Sep-2018,000007834496545,DOLOMITI HOTEL COZZIO,7011,Conferencesseminars fees etc,8.33,0.00,8.33
Regeneration and Local Services,Economic Development and Housing,030554,International Relations,Transport,235057,Public Transport,17-Sep-2018,000007842328083,Trainline,4112,Staff travelling,213.66,0.00,213.66
Regeneration and Local Services,EnvironmentHealth & Consumer Protection,010934,Works in Default Holding Code,Charges,720130,Fees and Charges,17-Sep-2018,000007842328105,WWW.MONEYCLAIM.GOV,9399,Fees-legal,60.00,0.00,60.00
Resources,Digital and Customer Services,065461,Business Support,Supplies and Services,312011,Newspapers books and periodicals E312,17-Sep-2018,000007842328109,AMZN Mktp UK,5942,Books-school library,56.25,9.38,46.87
Regeneration and Local Services,Economic Development and Housing,030737,Durham Works Flexible Fund,Transport,230031,Contract Hire,17-Sep-2018,000007842328231,GO NORTH EAST LIMITED,4131,Pupils-transport to play fields etc,5.20,0.00,5.20
Regeneration and Local Services,Economic Development and Housing,030737,Durham Works Flexible Fund,Transport,230031,Contract Hire,17-Sep-2018,000007842328235,GO NORTH EAST LIMITED,4131,Pupils-transport to play fields etc,5.20,0.00,5.20
Regeneration and Local Services,Economic Development and Housing,030737,Durham Works Flexible Fund,Transport,230031,Contract Hire,17-Sep-2018,000007842328239,GO NORTH EAST LIMITED,4131,Pupils-transport to play fields etc,5.20,0.00,5.20
Regeneration and Local Services,Economic Development and Housing,030737,Durham Works Flexible Fund,Transport,235057,Public Transport,17-Sep-2018,000007842328243,GO NORTH EAST LIMITED,4131,Staff travelling,5.20,0.00,5.20
Regeneration and Local Services,Direct Services,021242,Catering - County Hall,Supplies and Services,324117,Provisions E324,17-Sep-2018,000007842328247,WWW.ADELIEFOODS.CO.UK,5499,Catering costs - provisions,302.24,0.00,302.24
Regeneration and Local Services,Direct Services,021242,Catering - County Hall,Supplies and Services,324117,Provisions E324,17-Sep-2018,000007842328249,WWW.ADELIEFOODS.CO.UK,5499,Catering costs - provisions,183.94,0.00,183.94
Regeneration and Local Services,Direct Services,021242,Catering - County Hall,Supplies and Services,324117,Provisions E324,17-Sep-2018,000007842328253,WWW.ADELIEFOODS.CO.UK,5499,Catering costs - provisions,132.14,0.00,132.14
Regeneration and Local Services,Direct Services,021242,Catering - County Hall,Supplies and Services,324117,Provisions E324,17-Sep-2018,000007842328257,WWW.ADELIEFOODS.CO.UK,5499,Catering costs - provisions,124.43,0.00,124.43
Regeneration and Local Services,Direct Services,021242,Catering - County Hall,Supplies and Services,324117,Provisions E324,17-Sep-2018,000007842328261,WWW.ADELIEFOODS.CO.UK,5499,Catering costs - provisions,17.80,0.00,17.80
Regeneration and Local Services,Direct Services,021242,Catering - County Hall,Supplies and Services,324117,Provisions E324,17-Sep-2018,000007842328263,HOPWELLS LTD,5811,Catering costs - provisions,179.55,0.00,179.55
Regeneration and Local Services,Direct Services,021242,Catering - County Hall,Supplies and Services,324117,Provisions E324,17-Sep-2018,000007842328267,FREEMAN CATERING BUTCH,5422,Catering costs - provisions,246.09,0.00,246.09
Regeneration and Local Services,Direct Services,021242,Catering - County Hall,Supplies and Services,324117,Provisions E324,17-Sep-2018,000007842328269,JR HOLLAND FOODSERVICE,5422,Catering costs - provisions,101.03,0.00,101.03
Regeneration and Local Services,Direct Services,021242,Catering - County Hall,Supplies and Services,324117,Provisions E324,17-Sep-2018,000007842328273,JR HOLLAND FOODSERVICE,5422,Catering costs - provisions,34.00,0.00,34.00
Regeneration and Local Services,Direct Services,021242,Catering - County Hall,Supplies and Services,324117,Provisions E324,17-Sep-2018,000007842328275,JR HOLLAND FOODSERVICE,5422,Catering costs - provisions,13.54,0.00,13.54
Regeneration and Local Services,Direct Services,021242,Catering - County Hall,Supplies and Services,324117,Provisions E324,17-Sep-2018,000007842328285,HOPWELLS LTD,5811,Catering costs - provisions,-9.10,0.00,-9.10
Regeneration and Local Services,Culture & Sport,054812,Gala Theatre - Catering etc,Supplies and Services,324117,Provisions E324,17-Sep-2018,000007842328297,HOPWELLS LTD,5811,Catering costs - provisions,12.38,0.00,12.38
Children and Young Peoples Services,Head of Childrens Social Care,085334,West Rainton Satelite Home,Supplies and Services,324117,Provisions E324,17-Sep-2018,000007842328375,SAINSBURYS 0776,5411,Catering costs - provisions,64.91,0.00,64.91
Children and Young Peoples Services,Head of Childrens Social Care,085334,West Rainton Satelite Home,Supplies and Services,304259,Equipment and Materials,17-Sep-2018,000007842328379,WILKO DURHAM 426,5722,Equipment-purchase and rental,54.00,0.00,54.00
Children and Young Peoples Services,Head of Education and Skills,071732,Dean Bank Childcare,Supplies and Services,340001,Postages E340,17-Sep-2018,000007842328415,POST OFFICE COUNTER,9402,Postages,10.05,0.00,10.05
Children and Young Peoples Services,Head of Education and Skills,071732,Dean Bank Childcare,Supplies and Services,324117,Provisions E324,17-Sep-2018,000007842328417,SAINSBURYS SACAT (2303,5411,Catering costs - provisions,14.55,0.00,14.55
Children and Young Peoples Services,Head of Education and Skills,071732,Dean Bank Childcare,Supplies and Services,328041,Clothing uniforms and laundry E328,17-Sep-2018,000007842328421,B & M RETAIL,5310,Clothing uniforms and laundry,31.58,0.00,31.58
Children and Young Peoples Services,Head of Education and Skills,071903,EYDCP-Sustainability EDS,Supplies and Services,312011,Newspapers books and periodicals E312,17-Sep-2018,000007842328457,AMZN Mktp UK,5942,Books-school library,2.88,0.00,2.88
Children and Young Peoples Services,Head of Education and Skills,071903,EYDCP-Sustainability EDS,Supplies and Services,312011,Newspapers books and periodicals E312,17-Sep-2018,000007842328459,AMZN Mktp UK,5942,Books-school library,13.10,0.00,13.10
Regeneration and Local Services,Culture & Sport,054813,Gala Theatre - Technical,Supplies and Services,324117,Provisions E324,17-Sep-2018,000007842328497,TESCO-STORES 2765,5411,Catering costs - provisions,8.75,0.00,8.75
Children and Young Peoples Services,Childrens Services Operational Support,052986,CYPS - Locality and Operational Support,Supplies and Services,308011,Furniture,17-Sep-2018,000007842328501,EDS BEDS LTD,5712,Furniture repair and replacement,111.00,0.00,111.00
Regeneration and Local Services,Culture & Sport,011060,Hardwick Park Catering,Supplies and Services,324117,Provisions E324,17-Sep-2018,000007842328507,HOPWELLS LTD,5811,Catering costs - provisions,245.28,40.88,204.40
Regeneration and Local Services,Culture & Sport,011060,Hardwick Park Catering,Supplies and Services,324117,Provisions E324,17-Sep-2018,000007842328507 - 1,HOPWELLS LTD,5811,Catering costs - provisions,121.56,,121.56
